Workbook

Sheet CoverSheet
A1: Ongoing Progress Update and Disbursement Request
A2: Cover Sheet: Instructions • This template is compatible with MS Excel 2000 and later versions. Some drop-downs and formulae may not work with earlier versions. Therefore, Principal Recipients with earlier versions of MS Excel are requested to upgrade to MS 2000 or more recent versions. • Principal Recipients are first required to complete the Cover Sheet with the General Grant Information listed in the boxes below. They can refer to their Grant Face Sheet/Grant Confirmation to fill part of this information. • Principal Recipients are required to fill in the information related to the periods covered by the progress update and disbursement request. • Principal Recipients are required to select the type of submission, i.e. whether they are submitting a Mid-Year (or Quarterly) Progress Update or a Year-End Progress Update/Disbursement Request. This is important as the forms will change depending on the type of submission selected.
A4: GENERAL GRANT INFORMATION
A5: Country: | D5: Georgia | F5: PROGRESS UPDATE
A6: (Disease) Component | D6: Tuberculosis | F6: Progress Update - Reporting Period: | I6: Cycle: | J6: Semester | K6: Number: | L6: 4
A7: Grant Name/Number: | D7: GEO-T-NCDC | F7: Progress Update - Period Covered: | I7: Beginning Date: | J7: 2015-07-01 | K7: End Date: | L7: 2015-12-31
A8: Principal Recipient: | D8: NCDC
A9: LFA Name: | D9: UNOPS | F9: DISBURSEMENT REQUEST
A10: Program Start Date: | D10: 2014-04-01 | F10: Disbursement Request - Disbursement Period: | I10: Cycle: | J10: Semester | K10: Number: | L10: 3
A11: Currency: | D11: EUR | F11: Disbursement Request - Period Covered: | I11: Beginning Date: | J11: 2016-01-01 | K11: End Date: | L11: 2016-06-30
D13: Are you submitting: • A Progress Update (PU); or • A Progress Update/Disbursement Request (PU/DR).

Sheet Data (hidden)
A1: Component | B1: Catalog Module Name | C1: Intervention Name | D1: Old Component | E1: Module - Intervention | I1: Component | L1: Component | M1: Catalog Module Name | O1: Component | P1: Impact/Outcome | S1: Data Sources
A2: Malaria | B2: Specific prevention interventions (SPI) | C2: Intermittent preventive treatment (IPT) - In pregnancy | D2: Malaria | E2: =CONCATENATE(B2," - ",C2) -> Specific prevention interventions (SPI) - Intermittent preventive treatment (IPT) - In pregnancy | I2: Malaria | L2: Malaria | M2: Specific prevention interventions (SPI) | N2: Module1 | O2: Malaria | P2: Impact | Q2: =CONCATENATE(O2,P2) -> MalariaImpact | R2: Type1 | S2: HMIS
A3: Malaria | B3: Specific prevention interventions (SPI) | C3: Intermittent preventive treatment (IPT) - In infancy | D3: Malaria | E3: =CONCATENATE(B3," - ",C3) -> Specific prevention interventions (SPI) - Intermittent preventive treatment (IPT) - In infancy | I3: Tuberculosis | L3: Malaria | M3: Vector control | N3: Module2 | O3: Tuberculosis | P3: Impact | Q3: =CONCATENATE(O3,P3) -> TuberculosisImpact | R3: Type2 | S3: Patient records
A4: Malaria | B4: Specific prevention interventions (SPI) | C4: Seasonal malaria chemoprevention | D4: Malaria | E4: Specific prevention interventions (SPI) - Seasonal malaria chemoprevention | I4: HIV/TB | L4: Malaria | M4: Case management | N4: Module3 | O4: HIV/TB | P4: Impact | Q4: HIV/TBImpact | R4: Type3 | S4: Training records
A5: Malaria | B5: Specific prevention interventions (SPI) | C5: IEC/BCC | D5: Malaria | E5: Specific prevention interventions (SPI) - IEC/BCC | I5: HIV/AIDS | L5: Tuberculosis | M5: TB care and prevention | N5: Module4 | O5: HIV/AIDS | P5: Impact | Q5: HIV/AIDSImpact | R5: Type4 | S5: MICS (Multiple Indicator Cluster Survey)
A6: Malaria | B6: Vector control | C6: Long-lasting insecticidal nets (LLIN) - Mass campaign | D6: Malaria | E6: Vector control - Long-lasting insecticidal nets (LLIN) - Mass campaign | I6: Health Systems Strengthening | L6: Tuberculosis | M6: MDR-TB | N6: Module5 | O6: Health Systems Strengthening | P6: Impact | Q6: Health Systems StrengtheningImpact | R6: Type5 | S6: DHS/DHS+ (Demographic and Health Survey)
A7: Malaria | B7: Vector control | C7: Long-lasting insecticidal nets (LLIN) - Continuous distribution | D7: Malaria | E7: Vector control - Long-lasting insecticidal nets (LLIN) - Continuous distribution | L7: HIV/TB | M7: TB care and prevention | N7: Module6 | O7: Malaria | P7: Outcome | Q7: MalariaOutcome | R7: Type6 | S7: AIS (AIDS Indicator Survey)
A8: Malaria | B8: Vector control | C8: Indoor residual spraying (IRS) | D8: Malaria | E8: Vector control - Indoor residual spraying (IRS) | L8: HIV/TB | M8: MDR-TB | N8: Module7 | O8: Tuberculosis | P8: Outcome | Q8: TuberculosisOutcome | R8: Type7 | S8: BSS (Behavioral Surveillance Survey)
A9: Malaria | B9: Vector control | C9: Other vector vontrol measures | D9: Malaria | E9: Vector control - Other vector vontrol measures | L9: HIV/TB | M9: Prevention programs for general population | N9: Module8 | O9: HIV/TB | P9: Outcome | Q9: HIV/TBOutcome | R9: Type8 | S9: Health Facility survey
A10: Malaria | B10: Vector control | C10: Entomological monitoring | D10: Malaria | E10: Vector control - Entomological monitoring | L10: HIV/TB | M10: Prevention programs for MSM and TGs | N10: Module9 | O10: HIV/AIDS | P10: Outcome | Q10: HIV/AIDSOutcome | R10: Type9 | S10: SAMS (Service Availability Mapping Survey)
A11: Malaria | B11: Case management | C11: Facility-based treatment | D11: Malaria | E11: Case management - Facility-based treatment | L11: HIV/TB | M11: Prevention programs for people who inject drugs (PWID) and their partners | N11: Module10 | O11: Health Systems Strengthening | P11: Outcome | Q11: Health Systems StrengtheningOutcome | R11: Type10 | S11: Households survey
A12: Malaria | B12: Case management | C12: Epidemic preparedness and response | D12: Malaria | E12: Case management - Epidemic preparedness and response | L12: HIV/TB | M12: Prevention programs for other vulnerable populations (please specify) | N12: Module11 | S12: Specific surveys and research (specify)
A13: Malaria | B13: Case management | C13: Integrated community case management (ICCM) | D13: Malaria | E13: Case management - Integrated community case management (ICCM) | L13: HIV/TB | M13: Prevention programs for adolescents and youth, in and out of school | N13: Module12 | S13: Reports (specify)
A14: Malaria | B14: Case management | C14: Active case detection and investigation (elimination phase) | D14: Malaria | E14: Case management - Active case detection and investigation (elimination phase) | L14: HIV/TB | M14: Prevention programs for sex workers and their clients | N14: Module13 | S14: Vital and disease-specific registry
A15: Malaria | B15: Case management | C15: Therapeutic efficacy surveillance | D15: Malaria | E15: Case management - Therapeutic efficacy surveillance | L15: HIV/TB | M15: PMTCT | N15: Module14 | S15: Operational Research
A16: Malaria | B16: Case management | C16: Severe malaria | D16: Malaria | E16: Case management - Severe malaria | L16: HIV/TB | M16: Treatment, care and support | N16: Module15 | S16: Health Provider survey
A17: Malaria | B17: Case management | C17: Private sector co-payment mechanism | D17: Malaria | E17: Case management - Private sector co-payment mechanism | L17: HIV/AIDS | M17: Prevention programs for general population | N17: Module16 | S17: National Health Account
A18: Malaria | B18: Case management | C18: Private sector case management (other) | D18: Malaria | E18: Case management - Private sector case management (other) | L18: HIV/AIDS | M18: Prevention programs for MSM and TGs | N18: Module17 | S18: Administrative records
A19: Malaria | B19: Case management | C19: Ensuring drug quality | D19: Malaria | E19: Case management - Ensuring drug quality | L19: HIV/AIDS | M19: Prevention programs for people who inject drugs (PWID) and their partners | N19: Module18 | S19: R&R TB system, quarterly reports
A20: Tuberculosis | B20: TB care and prevention | C20: Case detection and diagnosis | D20: Tuberculosis; HIV/TB | E20: TB care and prevention - Case detection and diagnosis | L20: HIV/AIDS | M20: Prevention programs for other vulnerable populations (please specify) | N20: Module19 | S20: R&R TB system, yearly management report
A21: Tuberculosis | B21: TB care and prevention | C21: Treatment | D21: Tuberculosis; HIV/TB | E21: TB care and prevention - Treatment | L21: HIV/AIDS | M21: Prevention programs for adolescents and youth, in and out of school | N21: Module20 | S21: TB prevalence survey
A22: Tuberculosis | B22: TB care and prevention | C22: Prevention | D22: Tuberculosis; HIV/TB | E22: TB care and prevention - Prevention | L22: HIV/AIDS | M22: Prevention programs for sex workers and their clients | N22: Module21 | S22: TB patient register
A23: Tuberculosis | B23: MDR-TB | C23: Case detection and diagnosis: MDR-TB | D23: Tuberculosis; HIV/TB | E23: MDR-TB - Case detection and diagnosis: MDR-TB | L23: HIV/AIDS | M23: PMTCT | N23: Module22 | S23: TB laboratory register
A24: Tuberculosis | B24: MDR-TB | C24: Treatment: MDR-TB | D24: Tuberculosis; HIV/TB | E24: MDR-TB - Treatment: MDR-TB | L24: HIV/AIDS | M24: Treatment, care and support | N24: Module23 | S24: TB treatment card
A25: Tuberculosis | B25: MDR-TB | C25: Prevention for MDR-TB | D25: Tuberculosis; HIV/TB | E25: MDR-TB - Prevention for MDR-TB | L25: HIV/AIDS | M25: TB/HIV | N25: Module24 | S25: Specify- Reports, Surveys, Questionnaires etc.
A26: HIV/TB | B26: TB care and prevention | C26: Case detection and diagnosis | D26: Tuberculosis; HIV/TB | E26: TB care and prevention - Case detection and diagnosis | L26: Tuberculosis | M26: TB/HIV | N26: Module25 | S26: MIS (Malaria Indicator Survey)
A27: HIV/TB | B27: TB care and prevention | C27: Treatment | D27: Tuberculosis; HIV/TB | E27: TB care and prevention - Treatment | L27: HIV/TB | M27: TB/HIV | N27: Module26 | S27: Situation Analysis
A28: HIV/TB | B28: TB care and prevention | C28: Prevention | D28: Tuberculosis; HIV/TB | E28: TB care and prevention - Prevention | L28: HIV/AIDS | M28: Removing legal barriers to access | N28: Module27 | S28: Key informant survey
A29: HIV/TB | B29: MDR-TB | C29: Case detection and diagnosis: MDR-TB | D29: Tuberculosis; HIV/TB | E29: MDR-TB - Case detection and diagnosis: MDR-TB | L29: HIV/AIDS | M29: HSS - Service delivery | N29: Module28 | S29: Surveillance systems
A30: HIV/TB | B30: MDR-TB | C30: Treatment: MDR-TB | D30: Tuberculosis; HIV/TB | E30: MDR-TB - Treatment: MDR-TB | L30: HIV/AIDS | M30: HSS - Health and community workforce | N30: Module29 | S30: Modelled
A31: HIV/TB | B31: MDR-TB | C31: Prevention for MDR-TB | D31: Tuberculosis; HIV/TB | E31: MDR-TB - Prevention for MDR-TB | L31: HIV/AIDS | M31: HSS - Health information systems and M&E | N31: Module30 | S31: Other survey, specify
A32: HIV/TB | B32: Prevention programs for general population | C32: RMNCH linkages and gender-based violence (GBV) | D32: HIV/AIDS; HIV/TB | E32: Prevention programs for general population - RMNCH linkages and gender-based violence (GBV) | L32: HIV/AIDS | M32: Program management | N32: Module31 | S32: IBBS
A33: HIV/TB | B33: Prevention programs for general population | C33: Other interventions for general population - Please specify | D33: HIV/AIDS; HIV/TB | E33: Prevention programs for general population - Other interventions for general population - Please specify | L33: HIV/AIDS | M33: HSS - Procurement supply chain management (PSCM) | N33: Module32
A34: HIV/TB | B34: Prevention programs for MSM and TGs | C34: Behavioral change as part of programs for MSM and TGs | D34: HIV/AIDS; HIV/TB | E34: Prevention programs for MSM and TGs - Behavioral change as part of programs for MSM and TGs | L34: HIV/AIDS | M34: HSS - Policy and governance | N34: Module33
A35: HIV/TB | B35: Prevention programs for MSM and TGs | C35: Condoms as part of programs for MSM and TGs | D35: HIV/AIDS; HIV/TB | E35: Prevention programs for MSM and TGs - Condoms as part of programs for MSM and TGs | L35: HIV/AIDS | M35: HSS - Healthcare financing | N35: Module34
A36: HIV/TB | B36: Prevention programs for MSM and TGs | C36: HIV testing and counseling as part of programs for MSM and TGs | D36: HIV/AIDS; HIV/TB | E36: Prevention programs for MSM and TGs - HIV testing and counseling as part of programs for MSM and TGs | L36: HIV/AIDS | M36: HSS - Financial management | N36: Module35
A37: HIV/TB | B37: Prevention programs for MSM and TGs | C37: Diagnosis and treatment of STIs as part of programs for MSM and TGs | D37: HIV/AIDS; HIV/TB | E37: Prevention programs for MSM and TGs - Diagnosis and treatment of STIs as part of programs for MSM and TGs | L37: Tuberculosis | M37: Removing legal barriers to access | N37: Module36
A38: HIV/TB | B38: Prevention programs for people who inject drugs (PWID) and their partners | C38: Needle and Syringe programs as part of programs for PWID and their partners | D38: HIV/AIDS; HIV/TB | E38: Prevention programs for people who inject drugs (PWID) and their partners - Needle and Syringe programs as part of programs for PWID and their partners | L38: Tuberculosis | M38: HSS - Service delivery | N38: Module37
A39: HIV/TB | B39: Prevention programs for people who inject drugs (PWID) and their partners | C39: OST and other drug dependence treatment (PWIDs and their partners) | D39: HIV/AIDS; HIV/TB | E39: Prevention programs for people who inject drugs (PWID) and their partners - OST and other drug dependence treatment (PWIDs and their partners) | L39: Tuberculosis | M39: HSS - Health and community workforce | N39: Module38
A40: HIV/TB | B40: Prevention programs for other vulnerable populations (please specify) | C40: Condoms as part of programs for other vulnerable populations | D40: HIV/AIDS; HIV/TB | E40: Prevention programs for other vulnerable populations (please specify) - Condoms as part of programs for other vulnerable populations | L40: Tuberculosis | M40: HSS - Health information systems and M&E | N40: Module39
A41: HIV/TB | B41: Prevention programs for other vulnerable populations (please specify) | C41: Behavioral change as part of programs for other vulnerable populations | D41: HIV/AIDS; HIV/TB | E41: Prevention programs for other vulnerable populations (please specify) - Behavioral change as part of programs for other vulnerable populations | L41: Tuberculosis | M41: Program management | N41: Module40
A42: HIV/TB | B42: Prevention programs for other vulnerable populations (please specify) | C42: Diagnosis and treatment of STIs (other vulnerable populations) | D42: HIV/AIDS; HIV/TB | E42: Prevention programs for other vulnerable populations (please specify) - Diagnosis and treatment of STIs (other vulnerable populations) | L42: Tuberculosis | M42: HSS - Procurement supply chain management (PSCM) | N42: Module41
A43: HIV/TB | B43: Prevention programs for other vulnerable populations (please specify) | C43: Other interventions for other vulnerable populations - Please specify | D43: HIV/AIDS; HIV/TB | E43: Prevention programs for other vulnerable populations (please specify) - Other interventions for other vulnerable populations - Please specify | L43: Tuberculosis | M43: HSS - Policy and governance | N43: Module42
A44: HIV/TB | B44: Prevention programs for adolescents and youth, in and out of school | C44: Behavioral change as part of programs for adolescent and youth | D44: HIV/AIDS; HIV/TB | E44: Prevention programs for adolescents and youth, in and out of school - Behavioral change as part of programs for adolescent and youth | L44: Tuberculosis | M44: HSS - Healthcare financing | N44: Module43
A45: HIV/TB | B45: Prevention programs for adolescents and youth, in and out of school | C45: Condoms part of programs for adolescent and youth | D45: HIV/AIDS; HIV/TB | E45: Prevention programs for adolescents and youth, in and out of school - Condoms part of programs for adolescent and youth | L45: Tuberculosis | M45: HSS - Financial management | N45: Module44
A46: HIV/TB | B46: Prevention programs for general population | C46: Behavioral change as part of programs for general population | D46: HIV/AIDS; HIV/TB | E46: Prevention programs for general population - Behavioral change as part of programs for general population | L46: Malaria | M46: Removing legal barriers to access | N46: Module45
A47: HIV/TB | B47: Prevention programs for general population | C47: Condoms as part of programs for general population | D47: HIV/AIDS; HIV/TB | E47: Prevention programs for general population - Condoms as part of programs for general population | L47: Malaria | M47: HSS - Service delivery | N47: Module46
A48: HIV/TB | B48: Prevention programs for general population | C48: Male circumcision | D48: HIV/AIDS; HIV/TB | E48: Prevention programs for general population - Male circumcision | L48: Malaria | M48: HSS - Health and community workforce | N48: Module47
A49: HIV/TB | B49: Prevention programs for MSM and TGs | C49: Diagnosis and treatment of viral hepatitis as part of programs for MSM and TGs | D49: HIV/AIDS; HIV/TB | E49: Prevention programs for MSM and TGs - Diagnosis and treatment of viral hepatitis as part of programs for MSM and TGs | L49: Malaria | M49: HSS - Health information systems and M&E | N49: Module48
A50: HIV/TB | B50: Prevention programs for MSM and TGs | C50: Other interventions for MSM and TGs - Please specify | D50: HIV/AIDS; HIV/TB | E50: Prevention programs for MSM and TGs - Other interventions for MSM and TGs - Please specify | L50: Malaria | M50: Program management | N50: Module49
A51: HIV/TB | B51: Prevention programs for sex workers and their clients | C51: Behavioral change as part of programs for sex workers and their clients | D51: HIV/AIDS; HIV/TB | E51: Prevention programs for sex workers and their clients - Behavioral change as part of programs for sex workers and their clients | L51: Malaria | M51: HSS - Procurement supply chain management (PSCM) | N51: Module50
A52: HIV/TB | B52: Prevention programs for people who inject drugs (PWID) and their partners | C52: Diagnosis and treatment of viral hepatitis (PWIDs and their partners) | D52: HIV/AIDS; HIV/TB | E52: Prevention programs for people who inject drugs (PWID) and their partners - Diagnosis and treatment of viral hepatitis (PWIDs and their partners) | L52: Malaria | M52: HSS - Policy and governance | N52: Module51
A53: HIV/TB | B53: Prevention programs for people who inject drugs (PWID) and their partners | C53: Other interventions for IDUs and their partners - Please specify | D53: HIV/AIDS; HIV/TB | E53: Prevention programs for people who inject drugs (PWID) and their partners - Other interventions for IDUs and their partners - Please specify | L53: Malaria | M53: HSS - Healthcare financing | N53: Module52
A54: HIV/TB | B54: Prevention programs for other vulnerable populations (please specify) | C54: HIV testing and counseling as part of programs for other vulnerable populations | D54: HIV/AIDS; HIV/TB | E54: Prevention programs for other vulnerable populations (please specify) - HIV testing and counseling as part of programs for other vulnerable populations | L54: Malaria | M54: HSS - Financial management | N54: Module53
A55: HIV/TB | B55: Prevention programs for adolescents and youth, in and out of school | C55: HIV testing and counseling as part of programs for adolescent and youth | D55: HIV/AIDS; HIV/TB | E55: Prevention programs for adolescents and youth, in and out of school - HIV testing and counseling as part of programs for adolescent and youth | L55: Health Systems Strengthening | M55: Removing legal barriers to access | N55: Module54
A56: HIV/TB | B56: Prevention programs for adolescents and youth, in and out of school | C56: RMNCH linkages and GBV as part of programs for adolescent youth | D56: HIV/AIDS; HIV/TB | E56: Prevention programs for adolescents and youth, in and out of school - RMNCH linkages and GBV as part of programs for adolescent youth | L56: Health Systems Strengthening | M56: HSS - Service delivery | N56: Module55
A57: HIV/TB | B57: Prevention programs for adolescents and youth, in and out of school | C57: Young Key Population interventions as part of programs for adolescent and youth | D57: HIV/AIDS; HIV/TB | E57: Prevention programs for adolescents and youth, in and out of school - Young Key Population interventions as part of programs for adolescent and youth | L57: Health Systems Strengthening | M57: HSS - Health and community workforce | N57: Module56
A58: HIV/TB | B58: Prevention programs for adolescents and youth, in and out of school | C58: Other interventions for adolescent and youth | D58: HIV/AIDS; HIV/TB | E58: Prevention programs for adolescents and youth, in and out of school - Other interventions for adolescent and youth | L58: Health Systems Strengthening | M58: HSS - Health information systems and M&E | N58: Module57
A59: HIV/TB | B59: Prevention programs for general population | C59: HIV testing and counseling as part of programs for general population | D59: HIV/AIDS; HIV/TB | E59: Prevention programs for general population - HIV testing and counseling as part of programs for general population | L59: Health Systems Strengthening | M59: Program management | N59: Module58
A60: HIV/TB | B60: Prevention programs for sex workers and their clients | C60: Condoms as part of programs for sex workers and their clients | D60: HIV/AIDS; HIV/TB | E60: Prevention programs for sex workers and their clients - Condoms as part of programs for sex workers and their clients | L60: Health Systems Strengthening | M60: HSS - Procurement supply chain management (PSCM) | N60: Module59
A61: HIV/TB | B61: Prevention programs for sex workers and their clients | C61: HIV testing and counseling as part of programs for sex workers and their clients | D61: HIV/AIDS; HIV/TB | E61: Prevention programs for sex workers and their clients - HIV testing and counseling as part of programs for sex workers and their clients | L61: Health Systems Strengthening | M61: HSS - Policy and governance | N61: Module60
A62: HIV/TB | B62: Prevention programs for sex workers and their clients | C62: Diagnosis and treatment of STIs (sex workers and their clients) | D62: HIV/AIDS; HIV/TB | E62: Prevention programs for sex workers and their clients - Diagnosis and treatment of STIs (sex workers and their clients) | L62: Health Systems Strengthening | M62: HSS - Healthcare financing | N62: Module61
A63: HIV/TB | B63: Prevention programs for sex workers and their clients | C63: Harm reduction as part of programs for sex workers and their clients | D63: HIV/AIDS; HIV/TB | E63: Prevention programs for sex workers and their clients - Harm reduction as part of programs for sex workers and their clients | L63: Health Systems Strengthening | M63: HSS - Financial management | N63: Module62
A64: HIV/TB | B64: PMTCT | C64: Prong 1: Primary prevention of HIV infection among women of childbearing age | D64: HIV/AIDS; HIV/TB | E64: PMTCT - Prong 1: Primary prevention of HIV infection among women of childbearing age | L64: HIV/TB | M64: Removing legal barriers to access | N64: Module63
A65: HIV/TB | B65: PMTCT | C65: Prong 2: Preventing unintended pregnancies among women living with HIV | D65: HIV/AIDS; HIV/TB | E65: PMTCT - Prong 2: Preventing unintended pregnancies among women living with HIV | L65: HIV/TB | M65: HSS - Service delivery | N65: Module64
A66: HIV/TB | B66: PMTCT | C66: Prong 3: Preventing vertical HIV transmission | D66: HIV/AIDS; HIV/TB | E66: PMTCT - Prong 3: Preventing vertical HIV transmission | L66: HIV/TB | M66: HSS - Health and community workforce | N66: Module65
A67: HIV/TB | B67: PMTCT | C67: Prong 4: Treatment, care & support to mothers living with HIV, their children & | D67: HIV/AIDS; HIV/TB | E67: =CONCATENATE(B67," - ",C67) -> PMTCT - Prong 4: Treatment, care & support to mothers living with HIV, their children & | L67: HIV/TB | M67: HSS - Health information systems and M&E | N67: Module66
A68: HIV/TB | B68: PMTCT | C68: Other interventions for PMTCT- Please specify | D68: HIV/AIDS; HIV/TB | E68: PMTCT - Other interventions for PMTCT- Please specify | L68: HIV/TB | M68: Program management | N68: Module67
A69: HIV/TB | B69: Prevention programs for sex workers and their clients | C69: Other interventions for sex workers and their clients - Please specify | D69: HIV/AIDS; HIV/TB | E69: Prevention programs for sex workers and their clients - Other interventions for sex workers and their clients - Please specify | L69: HIV/TB | M69: HSS - Procurement supply chain management (PSCM) | N69: Module68
A70: HIV/TB | B70: Prevention programs for people who inject drugs (PWID) and their partners | C70: Behavioural change as part of programs for PWID and their partners | D70: HIV/AIDS; HIV/TB | E70: Prevention programs for people who inject drugs (PWID) and their partners - Behavioural change as part of programs for PWID and their partners | L70: HIV/TB | M70: HSS - Policy and governance | N70: Module69
A71: HIV/TB | B71: Prevention programs for people who inject drugs (PWID) and their partners | C71: Condoms as part of programs for PWID and their partners | D71: HIV/AIDS; HIV/TB | E71: Prevention programs for people who inject drugs (PWID) and their partners - Condoms as part of programs for PWID and their partners | L71: HIV/TB | M71: HSS - Healthcare financing | N71: Module70
A72: HIV/TB | B72: Treatment, care and support | C72: Pre-ART care | D72: HIV/AIDS; HIV/TB | E72: Treatment, care and support - Pre-ART care | L72: HIV/TB | M72: HSS - Financial management | N72: Module71
A73: HIV/TB | B73: Treatment, care and support | C73: Antiretroviral Therapy (ART) | D73: HIV/AIDS; HIV/TB | E73: Treatment, care and support - Antiretroviral Therapy (ART) | L73: HIV/AIDS | M73: Community systems strengthening | N73: Module72
A74: HIV/TB | B74: Treatment, care and support | C74: Treatment monitoring | D74: HIV/AIDS; HIV/TB | E74: Treatment, care and support - Treatment monitoring | L74: HIV/AIDS | M74: Results based Financing | N74: Module73
A75: HIV/TB | B75: Treatment, care and support | C75: Treatment adherence | D75: HIV/AIDS; HIV/TB | E75: Treatment, care and support - Treatment adherence | L75: Tuberculosis | M75: Community systems strengthening | N75: Module74
A76: HIV/TB | B76: Treatment, care and support | C76: Prevention, diagnosis and treatment of opportunistic infections | D76: HIV/AIDS; HIV/TB | E76: Treatment, care and support - Prevention, diagnosis and treatment of opportunistic infections | L76: Tuberculosis | M76: Results based Financing | N76: Module75
A77: HIV/TB | B77: Prevention programs for people who inject drugs (PWID) and their partners | C77: Diagnosis and treatment of STIs as part of programs for PWID and their partners | D77: HIV/AIDS; HIV/TB | E77: Prevention programs for people who inject drugs (PWID) and their partners - Diagnosis and treatment of STIs as part of programs for PWID and their partners | L77: Malaria | M77: Community systems strengthening | N77: Module76
A78: HIV/TB | B78: Treatment, care and support | C78: Counseling and psycho-social support | D78: HIV/AIDS; HIV/TB | E78: Treatment, care and support - Counseling and psycho-social support | L78: Malaria | M78: Results based Financing | N78: Module77
A79: HIV/TB | B79: Treatment, care and support | C79: Out-patient care | D79: HIV/AIDS; HIV/TB | E79: Treatment, care and support - Out-patient care | L79: HIV/TB | M79: Community systems strengthening | N79: Module78
A80: HIV/TB | B80: Treatment, care and support | C80: In-patient care | D80: HIV/AIDS; HIV/TB | E80: Treatment, care and support - In-patient care | L80: HIV/TB | M80: Results based Financing | N80: Module79
A81: HIV/TB | B81: Treatment, care and support | C81: Other interventions for treatment - Please specify | D81: HIV/AIDS; HIV/TB | E81: Treatment, care and support - Other interventions for treatment - Please specify
A82: HIV/TB | B82: Prevention programs for general population | C82: Diagnosis and treatment of STIs as part of programs for general population | D82: HIV/AIDS; HIV/TB | E82: Prevention programs for general population - Diagnosis and treatment of STIs as part of programs for general population
A83: HIV/TB | B83: Prevention programs for general population | C83: Blood safety | D83: HIV/AIDS; HIV/TB | E83: Prevention programs for general population - Blood safety
A84: HIV/AIDS | B84: Prevention programs for general population | C84: Orphan and vulnerable children (OVC) package | D84: HIV/AIDS; HIV/TB | E84: Prevention programs for general population - Orphan and vulnerable children (OVC) package
A85: HIV/AIDS | B85: Prevention programs for general population | C85: RMNCH linkages and gender-based violence (GBV) | D85: HIV/AIDS; HIV/TB | E85: Prevention programs for general population - RMNCH linkages and gender-based violence (GBV)
A86: HIV/AIDS | B86: Prevention programs for general population | C86: Other interventions for general population - Please specify | D86: HIV/AIDS; HIV/TB | E86: Prevention programs for general population - Other interventions for general population - Please specify
A87: HIV/AIDS | B87: Prevention programs for MSM and TGs | C87: Behavioral change as part of programs for MSM and TGs | D87: HIV/AIDS; HIV/TB | E87: Prevention programs for MSM and TGs - Behavioral change as part of programs for MSM and TGs
A88: HIV/AIDS | B88: Prevention programs for MSM and TGs | C88: Condoms as part of programs for MSM and TGs | D88: HIV/AIDS; HIV/TB | E88: Prevention programs for MSM and TGs - Condoms as part of programs for MSM and TGs
A89: HIV/AIDS | B89: Prevention programs for MSM and TGs | C89: HIV testing and counseling as part of programs for MSM and TGs | D89: HIV/AIDS; HIV/TB | E89: Prevention programs for MSM and TGs - HIV testing and counseling as part of programs for MSM and TGs
A90: HIV/AIDS | B90: Prevention programs for MSM and TGs | C90: Diagnosis and treatment of STIs as part of programs for MSM and TGs | D90: HIV/AIDS; HIV/TB | E90: Prevention programs for MSM and TGs - Diagnosis and treatment of STIs as part of programs for MSM and TGs
A91: HIV/AIDS | B91: Prevention programs for people who inject drugs (PWID) and their partners | C91: Needle and Syringe programs as part of programs for PWID and their partners | D91: HIV/AIDS; HIV/TB | E91: Prevention programs for people who inject drugs (PWID) and their partners - Needle and Syringe programs as part of programs for PWID and their partners
A92: HIV/AIDS | B92: Prevention programs for people who inject drugs (PWID) and their partners | C92: OST and other drug dependence treatment (PWIDs and their partners) | D92: HIV/AIDS; HIV/TB | E92: Prevention programs for people who inject drugs (PWID) and their partners - OST and other drug dependence treatment (PWIDs and their partners)
A93: HIV/AIDS | B93: Prevention programs for other vulnerable populations (please specify) | C93: Condoms as part of programs for other vulnerable populations | D93: HIV/AIDS; HIV/TB | E93: Prevention programs for other vulnerable populations (please specify) - Condoms as part of programs for other vulnerable populations
A94: HIV/AIDS | B94: Prevention programs for other vulnerable populations (please specify) | C94: Behavioral change as part of programs for other vulnerable populations | D94: HIV/AIDS; HIV/TB | E94: Prevention programs for other vulnerable populations (please specify) - Behavioral change as part of programs for other vulnerable populations
A95: HIV/AIDS | B95: Prevention programs for other vulnerable populations (please specify) | C95: Diagnosis and treatment of STIs (other vulnerable populations) | D95: HIV/AIDS; HIV/TB | E95: Prevention programs for other vulnerable populations (please specify) - Diagnosis and treatment of STIs (other vulnerable populations)
A96: HIV/AIDS | B96: Prevention programs for other vulnerable populations (please specify) | C96: Other interventions for other vulnerable populations - Please specify | D96: HIV/AIDS; HIV/TB | E96: Prevention programs for other vulnerable populations (please specify) - Other interventions for other vulnerable populations - Please specify
A97: HIV/AIDS | B97: Prevention programs for adolescents and youth, in and out of school | C97: Behavioral change as part of programs for adolescent and youth | D97: HIV/AIDS; HIV/TB | E97: Prevention programs for adolescents and youth, in and out of school - Behavioral change as part of programs for adolescent and youth
A98: HIV/AIDS | B98: Prevention programs for adolescents and youth, in and out of school | C98: Condoms part of programs for adolescent and youth | D98: HIV/AIDS; HIV/TB | E98: Prevention programs for adolescents and youth, in and out of school - Condoms part of programs for adolescent and youth
A99: HIV/AIDS | B99: Prevention programs for general population | C99: Behavioral change as part of programs for general population | D99: HIV/AIDS; HIV/TB | E99: Prevention programs for general population - Behavioral change as part of programs for general population
A100: HIV/AIDS | B100: Prevention programs for general population | C100: Condoms as part of programs for general population | D100: HIV/AIDS; HIV/TB | E100: Prevention programs for general population - Condoms as part of programs for general population
A101: HIV/AIDS | B101: Prevention programs for general population | C101: Male circumcision | D101: HIV/AIDS; HIV/TB | E101: Prevention programs for general population - Male circumcision
A102: HIV/AIDS | B102: Prevention programs for MSM and TGs | C102: Diagnosis and treatment of viral hepatitis as part of programs for MSM and TGs | D102: HIV/AIDS; HIV/TB | E102: Prevention programs for MSM and TGs - Diagnosis and treatment of viral hepatitis as part of programs for MSM and TGs
A103: HIV/AIDS | B103: Prevention programs for MSM and TGs | C103: Other interventions for MSM and TGs - Please specify | D103: HIV/AIDS; HIV/TB | E103: Prevention programs for MSM and TGs - Other interventions for MSM and TGs - Please specify
A104: HIV/AIDS | B104: Prevention programs for sex workers and their clients | C104: Behavioral change as part of programs for sex workers and their clients | D104: HIV/AIDS; HIV/TB | E104: Prevention programs for sex workers and their clients - Behavioral change as part of programs for sex workers and their clients
A105: HIV/AIDS | B105: Prevention programs for people who inject drugs (PWID) and their partners | C105: Diagnosis and treatment of viral hepatitis (PWIDs and their partners) | D105: HIV/AIDS; HIV/TB | E105: Prevention programs for people who inject drugs (PWID) and their partners - Diagnosis and treatment of viral hepatitis (PWIDs and their partners)
A106: HIV/AIDS | B106: Prevention programs for people who inject drugs (PWID) and their partners | C106: Other interventions for IDUs and their partners - Please specify | D106: HIV/AIDS; HIV/TB | E106: Prevention programs for people who inject drugs (PWID) and their partners - Other interventions for IDUs and their partners - Please specify
A107: HIV/AIDS | B107: Prevention programs for other vulnerable populations (please specify) | C107: HIV testing and counseling as part of programs for other vulnerable populations | D107: HIV/AIDS; HIV/TB | E107: Prevention programs for other vulnerable populations (please specify) - HIV testing and counseling as part of programs for other vulnerable populations
A108: HIV/AIDS | B108: Prevention programs for adolescents and youth, in and out of school | C108: HIV testing and counseling as part of programs for adolescent and youth | D108: HIV/AIDS; HIV/TB | E108: Prevention programs for adolescents and youth, in and out of school - HIV testing and counseling as part of programs for adolescent and youth
A109: HIV/AIDS | B109: Prevention programs for adolescents and youth, in and out of school | C109: RMNCH linkages and GBV as part of programs for adolescent youth | D109: HIV/AIDS; HIV/TB | E109: Prevention programs for adolescents and youth, in and out of school - RMNCH linkages and GBV as part of programs for adolescent youth
A110: HIV/AIDS | B110: Prevention programs for adolescents and youth, in and out of school | C110: Young Key Population interventions as part of programs for adolescent and youth | D110: HIV/AIDS; HIV/TB | E110: Prevention programs for adolescents and youth, in and out of school - Young Key Population interventions as part of programs for adolescent and youth
A111: HIV/AIDS | B111: Prevention programs for adolescents and youth, in and out of school | C111: Other interventions for adolescent and youth | D111: HIV/AIDS; HIV/TB | E111: Prevention programs for adolescents and youth, in and out of school - Other interventions for adolescent and youth
A112: HIV/AIDS | B112: Prevention programs for general population | C112: HIV testing and counseling as part of programs for general population | D112: HIV/AIDS; HIV/TB | E112: Prevention programs for general population - HIV testing and counseling as part of programs for general population
A113: HIV/AIDS | B113: Prevention programs for sex workers and their clients | C113: Condoms as part of programs for sex workers and their clients | D113: HIV/AIDS; HIV/TB | E113: Prevention programs for sex workers and their clients - Condoms as part of programs for sex workers and their clients
A114: HIV/AIDS | B114: Prevention programs for sex workers and their clients | C114: HIV testing and counseling as part of programs for sex workers and their clients | D114: HIV/AIDS; HIV/TB | E114: Prevention programs for sex workers and their clients - HIV testing and counseling as part of programs for sex workers and their clients
A115: HIV/AIDS | B115: Prevention programs for sex workers and their clients | C115: Diagnosis and treatment of STIs (sex workers and their clients) | D115: HIV/AIDS; HIV/TB | E115: Prevention programs for sex workers and their clients - Diagnosis and treatment of STIs (sex workers and their clients)
A116: HIV/AIDS | B116: Prevention programs for sex workers and their clients | C116: Harm reduction as part of programs for sex workers and their clients | D116: HIV/AIDS; HIV/TB | E116: Prevention programs for sex workers and their clients - Harm reduction as part of programs for sex workers and their clients
A117: HIV/AIDS | B117: PMTCT | C117: Prong 1: Primary prevention of HIV infection among women of childbearing age | D117: HIV/AIDS; HIV/TB | E117: PMTCT - Prong 1: Primary prevention of HIV infection among women of childbearing age
A118: HIV/AIDS | B118: PMTCT | C118: Prong 2: Preventing unintended pregnancies among women living with HIV | D118: HIV/AIDS; HIV/TB | E118: PMTCT - Prong 2: Preventing unintended pregnancies among women living with HIV
A119: HIV/AIDS | B119: PMTCT | C119: Prong 3: Preventing vertical HIV transmission | D119: HIV/AIDS; HIV/TB | E119: PMTCT - Prong 3: Preventing vertical HIV transmission
A120: HIV/AIDS | B120: PMTCT | C120: Prong 4: Treatment, care & support to mothers living with HIV, their children & | D120: HIV/AIDS; HIV/TB | E120: PMTCT - Prong 4: Treatment, care & support to mothers living with HIV, their children &
A121: HIV/AIDS | B121: PMTCT | C121: Other interventions for PMTCT- Please specify | D121: HIV/AIDS; HIV/TB | E121: PMTCT - Other interventions for PMTCT- Please specify
A122: HIV/AIDS | B122: Prevention programs for sex workers and their clients | C122: Other interventions for sex workers and their clients - Please specify | D122: HIV/AIDS; HIV/TB | E122: Prevention programs for sex workers and their clients - Other interventions for sex workers and their clients - Please specify
A123: HIV/AIDS | B123: Prevention programs for people who inject drugs (PWID) and their partners | C123: Behavioural change as part of programs for PWID and their partners | D123: HIV/AIDS; HIV/TB | E123: Prevention programs for people who inject drugs (PWID) and their partners - Behavioural change as part of programs for PWID and their partners
A124: HIV/AIDS | B124: Prevention programs for people who inject drugs (PWID) and their partners | C124: Condoms as part of programs for PWID and their partners | D124: HIV/AIDS; HIV/TB | E124: Prevention programs for people who inject drugs (PWID) and their partners - Condoms as part of programs for PWID and their partners
A125: HIV/AIDS | B125: Treatment, care and support | C125: Pre-ART care | D125: HIV/AIDS; HIV/TB | E125: Treatment, care and support - Pre-ART care
A126: HIV/AIDS | B126: Treatment, care and support | C126: Antiretroviral Therapy (ART) | D126: HIV/AIDS; HIV/TB | E126: Treatment, care and support - Antiretroviral Therapy (ART)
A127: HIV/AIDS | B127: Treatment, care and support | C127: Treatment monitoring | D127: HIV/AIDS; HIV/TB | E127: Treatment, care and support - Treatment monitoring
A128: HIV/AIDS | B128: Treatment, care and support | C128: Treatment adherence | D128: HIV/AIDS; HIV/TB | E128: Treatment, care and support - Treatment adherence
A129: HIV/AIDS | B129: Treatment, care and support | C129: Prevention, diagnosis and treatment of opportunistic infections | D129: HIV/AIDS; HIV/TB | E129: Treatment, care and support - Prevention, diagnosis and treatment of opportunistic infections
A130: HIV/AIDS | B130: Prevention programs for people who inject drugs (PWID) and their partners | C130: Diagnosis and treatment of STIs as part of programs for PWID and their partners | D130: HIV/AIDS; HIV/TB | E130: Prevention programs for people who inject drugs (PWID) and their partners - Diagnosis and treatment of STIs as part of programs for PWID and their partners
A131: HIV/AIDS | B131: Treatment, care and support | C131: Counseling and psycho-social support | D131: HIV/AIDS; HIV/TB | E131: =CONCATENATE(B131," - ",C131) -> Treatment, care and support - Counseling and psycho-social support
A132: HIV/AIDS | B132: Treatment, care and support | C132: Out-patient care | D132: HIV/AIDS; HIV/TB | E132: Treatment, care and support - Out-patient care
A133: HIV/AIDS | B133: Treatment, care and support | C133: In-patient care | D133: HIV/AIDS; HIV/TB | E133: Treatment, care and support - In-patient care
A134: HIV/AIDS | B134: Treatment, care and support | C134: Other interventions for treatment - Please specify | D134: HIV/AIDS; HIV/TB | E134: Treatment, care and support - Other interventions for treatment - Please specify
A135: HIV/AIDS | B135: Prevention programs for general population | C135: Diagnosis and treatment of STIs as part of programs for general population | D135: HIV/AIDS; HIV/TB | E135: Prevention programs for general population - Diagnosis and treatment of STIs as part of programs for general population
A136: HIV/AIDS | B136: Prevention programs for general population | C136: Blood safety | D136: HIV/AIDS; HIV/TB | E136: Prevention programs for general population - Blood safety
A137: HIV/AIDS | B137: Prevention programs for general population | C137: Orphan and vulnerable children (OVC) package | D137: HIV/AIDS; HIV/TB | E137: Prevention programs for general population - Orphan and vulnerable children (OVC) package
A138: HIV/AIDS | B138: TB/HIV | C138: TB/HIV collaborative interventions | D138: HIV/AIDS; Tuberculosis; HIV/TB | E138: TB/HIV - TB/HIV collaborative interventions
A139: HIV/AIDS | B139: TB/HIV | C139: Engaging all care providers | D139: HIV/AIDS; Tuberculosis; HIV/TB | E139: TB/HIV - Engaging all care providers
A140: HIV/AIDS | B140: TB/HIV | C140: Community TB care delivery | D140: HIV/AIDS; Tuberculosis; HIV/TB | E140: TB/HIV - Community TB care delivery
A141: HIV/AIDS | B141: TB/HIV | C141: Key Affected Populations | D141: HIV/AIDS; Tuberculosis; HIV/TB | E141: TB/HIV - Key Affected Populations
A142: HIV/AIDS | B142: TB/HIV | C142: Collaborative activities with other programs and sectors | D142: HIV/AIDS; Tuberculosis; HIV/TB | E142: TB/HIV - Collaborative activities with other programs and sectors
A143: Tuberculosis | B143: TB/HIV | C143: TB/HIV collaborative interventions | D143: HIV/AIDS; Tuberculosis; HIV/TB | E143: TB/HIV - TB/HIV collaborative interventions
A144: Tuberculosis | B144: TB/HIV | C144: Engaging all care providers | D144: HIV/AIDS; Tuberculosis; HIV/TB | E144: TB/HIV - Engaging all care providers
A145: Tuberculosis | B145: TB/HIV | C145: Community TB care delivery | D145: HIV/AIDS; Tuberculosis; HIV/TB | E145: TB/HIV - Community TB care delivery
A146: Tuberculosis | B146: TB/HIV | C146: Key Affected Populations | D146: HIV/AIDS; Tuberculosis; HIV/TB | E146: TB/HIV - Key Affected Populations
A147: Tuberculosis | B147: TB/HIV | C147: Collaborative activities with other programs and sectors | D147: HIV/AIDS; Tuberculosis; HIV/TB | E147: TB/HIV - Collaborative activities with other programs and sectors
A148: HIV/TB | B148: TB/HIV | C148: TB/HIV collaborative interventions | D148: HIV/AIDS; Tuberculosis; HIV/TB | E148: TB/HIV - TB/HIV collaborative interventions
A149: HIV/TB | B149: TB/HIV | C149: Engaging all care providers | D149: HIV/AIDS; Tuberculosis; HIV/TB | E149: TB/HIV - Engaging all care providers
A150: HIV/TB | B150: TB/HIV | C150: Community TB care delivery | D150: HIV/AIDS; Tuberculosis; HIV/TB | E150: TB/HIV - Community TB care delivery
A151: HIV/TB | B151: TB/HIV | C151: Key Affected Populations | D151: HIV/AIDS; Tuberculosis; HIV/TB | E151: TB/HIV - Key Affected Populations
A152: HIV/TB | B152: TB/HIV | C152: Collaborative activities with other programs and sectors | D152: HIV/AIDS; Tuberculosis; HIV/TB | E152: TB/HIV - Collaborative activities with other programs and sectors
A153: HIV/AIDS | B153: Removing legal barriers to access | C153: Training on rights for officials, health workers and police | D153: HIV/AIDS; Tuberculosis; Malaria; Health Systems Strengthening; HIV/TB | E153: Removing legal barriers to access - Training on rights for officials, health workers and police
A154: HIV/AIDS | B154: HSS - Service delivery | C154: Service organization and facility management | D154: HIV/AIDS; Tuberculosis; Malaria; Health Systems Strengthening; HIV/TB | E154: HSS - Service delivery - Service organization and facility management
A155: HIV/AIDS | B155: HSS - Service delivery | C155: Improving laboratory systems | D155: HIV/AIDS; Tuberculosis; Malaria; Health Systems Strengthening; HIV/TB | E155: HSS - Service delivery - Improving laboratory systems
A156: HIV/AIDS | B156: HSS - Service delivery | C156: Improving service delivery infrastructure | D156: HIV/AIDS; Tuberculosis; Malaria; Health Systems Strengthening; HIV/TB | E156: HSS - Service delivery - Improving service delivery infrastructure
A157: HIV/AIDS | B157: HSS - Service delivery | C157: Other | D157: HIV/AIDS; Tuberculosis; Malaria; Health Systems Strengthening; HIV/TB | E157: HSS - Service delivery - Other
A158: HIV/AIDS | B158: HSS - Health and community workforce | C158: Health and community workers capacity building | D158: HIV/AIDS; Tuberculosis; Malaria; Health Systems Strengthening; HIV/TB | E158: HSS - Health and community workforce - Health and community workers capacity building
A159: HIV/AIDS | B159: HSS - Health information systems and M&E | C159: Administrative and finance data sources | D159: HIV/AIDS; Tuberculosis; Malaria; Health Systems Strengthening; HIV/TB | E159: HSS - Health information systems and M&E - Administrative and finance data sources
A160: HIV/AIDS | B160: HSS - Health information systems and M&E | C160: Vital registration system | D160: HIV/AIDS; Tuberculosis; Malaria; Health Systems Strengthening; HIV/TB | E160: HSS - Health information systems and M&E - Vital registration system
A161: HIV/AIDS | B161: HSS - Health information systems and M&E | C161: Routine reporting | D161: HIV/AIDS; Tuberculosis; Malaria; Health Systems Strengthening; HIV/TB | E161: HSS - Health information systems and M&E - Routine reporting
A162: HIV/AIDS | B162: HSS - Health information systems and M&E | C162: Analysis, review and transparency | D162: HIV/AIDS; Tuberculosis; Malaria; Health Systems Strengthening; HIV/TB | E162: HSS - Health information systems and M&E - Analysis, review and transparency
A163: HIV/AIDS | B163: HSS - Health information systems and M&E | C163: Surveys | D163: HIV/AIDS; Tuberculosis; Malaria; Health Systems Strengthening; HIV/TB | E163: HSS - Health information systems and M&E - Surveys
A164: HIV/AIDS | B164: Program management | C164: Policy, planning, coordination and management | D164: HIV/AIDS; Tuberculosis; Malaria; Health Systems Strengthening; HIV/TB | E164: Program management - Policy, planning, coordination and management
A165: HIV/AIDS | B165: Program management | C165: Grant management | D165: HIV/AIDS; Tuberculosis; Malaria; Health Systems Strengthening; HIV/TB | E165: Program management - Grant management
A166: HIV/AIDS | B166: HSS - Health and community workforce | C166: Scaling up health and community workers | D166: HIV/AIDS; Tuberculosis; Malaria; Health Systems Strengthening; HIV/TB | E166: HSS - Health and community workforce - Scaling up health and community workers
A167: HIV/AIDS | B167: HSS - Health and community workforce | C167: Retention and distribution of health and community workers | D167: HIV/AIDS; Tuberculosis; Malaria; Health Systems Strengthening; HIV/TB | E167: HSS - Health and community workforce - Retention and distribution of health and community workers
A168: HIV/AIDS | B168: HSS - Procurement supply chain management (PSCM) | C168: Operationalization of procurement and supply chain management system | D168: HIV/AIDS; Tuberculosis; Malaria; Health Systems Strengthening; HIV/TB | E168: HSS - Procurement supply chain management (PSCM) - Operationalization of procurement and supply chain management system
A169: HIV/AIDS | B169: HSS - Procurement supply chain management (PSCM) | C169: PSM infrastructure and development of tools | D169: HIV/AIDS; Tuberculosis; Malaria; Health Systems Strengthening; HIV/TB | E169: HSS - Procurement supply chain management (PSCM) - PSM infrastructure and development of tools
A170: HIV/AIDS | B170: HSS - Policy and governance | C170: Development and implementation of health legislation, strategies and policies | D170: HIV/AIDS; Tuberculosis; Malaria; Health Systems Strengthening; HIV/TB | E170: HSS - Policy and governance - Development and implementation of health legislation, strategies and policies
A171: HIV/AIDS | B171: Program management | C171: Supporting procurement and supply management | D171: HIV/AIDS; Tuberculosis; Malaria; Health Systems Strengthening; HIV/TB | E171: Program management - Supporting procurement and supply management
A172: HIV/AIDS | B172: HSS - Policy and governance | C172: Monitoring and reporting implementation of laws and policies | D172: HIV/AIDS; Tuberculosis; Malaria; Health Systems Strengthening; HIV/TB | E172: HSS - Policy and governance - Monitoring and reporting implementation of laws and policies
A173: HIV/AIDS | B173: HSS - Healthcare financing | C173: Financial sustainability | D173: HIV/AIDS; Tuberculosis; Malaria; Health Systems Strengthening; HIV/TB | E173: HSS - Healthcare financing - Financial sustainability
A174: HIV/AIDS | B174: HSS - Healthcare financing | C174: Equity of healthcare financing | D174: HIV/AIDS; Tuberculosis; Malaria; Health Systems Strengthening; HIV/TB | E174: HSS - Healthcare financing - Equity of healthcare financing
A175: HIV/AIDS | B175: HSS - Financial management | C175: Performance,transparency&accountability of financial management system in health | D175: HIV/AIDS; Tuberculosis; Malaria; Health Systems Strengthening; HIV/TB | E175: HSS - Financial management - Performance,transparency&accountability of financial management system in health
A176: HIV/AIDS | B176: Removing legal barriers to access | C176: Legal and policy environment assessment and law reform | D176: HIV/AIDS; Tuberculosis; Malaria; Health Systems Strengthening; HIV/TB | E176: Removing legal barriers to access - Legal and policy environment assessment and law reform
A177: HIV/AIDS | B177: Removing legal barriers to access | C177: Legal aid services and legal literacy | D177: HIV/AIDS; Tuberculosis; Malaria; Health Systems Strengthening; HIV/TB | E177: Removing legal barriers to access - Legal aid services and legal literacy
A178: HIV/AIDS | B178: Removing legal barriers to access | C178: Community-based monitoring of legal rights | D178: HIV/AIDS; Tuberculosis; Malaria; Health Systems Strengthening; HIV/TB | E178: Removing legal barriers to access - Community-based monitoring of legal rights
A179: HIV/AIDS | B179: Removing legal barriers to access | C179: Policy advocacy on legal rights | D179: HIV/AIDS; Tuberculosis; Malaria; Health Systems Strengthening; HIV/TB | E179: Removing legal barriers to access - Policy advocacy on legal rights
A180: Tuberculosis | B180: Removing legal barriers to access | C180: Training on rights for officials, health workers and police | D180: HIV/AIDS; Tuberculosis; Malaria; Health Systems Strengthening; HIV/TB | E180: Removing legal barriers to access - Training on rights for officials, health workers and police
A181: Tuberculosis | B181: HSS - Service delivery | C181: Service organization and facility management | D181: HIV/AIDS; Tuberculosis; Malaria; Health Systems Strengthening; HIV/TB | E181: HSS - Service delivery - Service organization and facility management
A182: Tuberculosis | B182: HSS - Service delivery | C182: Improving laboratory systems | D182: HIV/AIDS; Tuberculosis; Malaria; Health Systems Strengthening; HIV/TB | E182: HSS - Service delivery - Improving laboratory systems
A183: Tuberculosis | B183: HSS - Service delivery | C183: Improving service delivery infrastructure | D183: HIV/AIDS; Tuberculosis; Malaria; Health Systems Strengthening; HIV/TB | E183: HSS - Service delivery - Improving service delivery infrastructure
A184: Tuberculosis | B184: HSS - Service delivery | C184: Other | D184: HIV/AIDS; Tuberculosis; Malaria; Health Systems Strengthening; HIV/TB | E184: HSS - Service delivery - Other
A185: Tuberculosis | B185: HSS - Health and community workforce | C185: Health and community workers capacity building | D185: HIV/AIDS; Tuberculosis; Malaria; Health Systems Strengthening; HIV/TB | E185: HSS - Health and community workforce - Health and community workers capacity building
A186: Tuberculosis | B186: HSS - Health information systems and M&E | C186: Administrative and finance data sources | D186: HIV/AIDS; Tuberculosis; Malaria; Health Systems Strengthening; HIV/TB | E186: HSS - Health information systems and M&E - Administrative and finance data sources
A187: Tuberculosis | B187: HSS - Health information systems and M&E | C187: Vital registration system | D187: HIV/AIDS; Tuberculosis; Malaria; Health Systems Strengthening; HIV/TB | E187: HSS - Health information systems and M&E - Vital registration system
A188: Tuberculosis | B188: HSS - Health information systems and M&E | C188: Routine reporting | D188: HIV/AIDS; Tuberculosis; Malaria; Health Systems Strengthening; HIV/TB | E188: HSS - Health information systems and M&E - Routine reporting
A189: Tuberculosis | B189: HSS - Health information systems and M&E | C189: Analysis, review and transparency | D189: HIV/AIDS; Tuberculosis; Malaria; Health Systems Strengthening; HIV/TB | E189: HSS - Health information systems and M&E - Analysis, review and transparency
A190: Tuberculosis | B190: HSS - Health information systems and M&E | C190: Surveys | D190: HIV/AIDS; Tuberculosis; Malaria; Health Systems Strengthening; HIV/TB | E190: HSS - Health information systems and M&E - Surveys
A191: Tuberculosis | B191: Program management | C191: Policy, planning, coordination and management | D191: HIV/AIDS; Tuberculosis; Malaria; Health Systems Strengthening; HIV/TB | E191: Program management - Policy, planning, coordination and management
A192: Tuberculosis | B192: Program management | C192: Grant management | D192: HIV/AIDS; Tuberculosis; Malaria; Health Systems Strengthening; HIV/TB | E192: Program management - Grant management
A193: Tuberculosis | B193: HSS - Health and community workforce | C193: Scaling up health and community workers | D193: HIV/AIDS; Tuberculosis; Malaria; Health Systems Strengthening; HIV/TB | E193: HSS - Health and community workforce - Scaling up health and community workers
A194: Tuberculosis | B194: HSS - Health and community workforce | C194: Retention and distribution of health and community workers | D194: HIV/AIDS; Tuberculosis; Malaria; Health Systems Strengthening; HIV/TB | E194: HSS - Health and community workforce - Retention and distribution of health and community workers
A195: Tuberculosis | B195: HSS - Procurement supply chain management (PSCM) | C195: Operationalization of procurement and supply chain management system | D195: HIV/AIDS; Tuberculosis; Malaria; Health Systems Strengthening; HIV/TB | E195: =CONCATENATE(B195," - ",C195) -> HSS - Procurement supply chain management (PSCM) - Operationalization of procurement and supply chain management system
A196: Tuberculosis | B196: HSS - Procurement supply chain management (PSCM) | C196: PSM infrastructure and development of tools | D196: HIV/AIDS; Tuberculosis; Malaria; Health Systems Strengthening; HIV/TB | E196: HSS - Procurement supply chain management (PSCM) - PSM infrastructure and development of tools
A197: Tuberculosis | B197: HSS - Policy and governance | C197: Development and implementation of health legislation, strategies and policies | D197: HIV/AIDS; Tuberculosis; Malaria; Health Systems Strengthening; HIV/TB | E197: HSS - Policy and governance - Development and implementation of health legislation, strategies and policies
A198: Tuberculosis | B198: Program management | C198: Supporting procurement and supply management | D198: HIV/AIDS; Tuberculosis; Malaria; Health Systems Strengthening; HIV/TB | E198: Program management - Supporting procurement and supply management
A199: Tuberculosis | B199: HSS - Policy and governance | C199: Monitoring and reporting implementation of laws and policies | D199: HIV/AIDS; Tuberculosis; Malaria; Health Systems Strengthening; HIV/TB | E199: HSS - Policy and governance - Monitoring and reporting implementation of laws and policies
A200: Tuberculosis | B200: HSS - Healthcare financing | C200: Financial sustainability | D200: HIV/AIDS; Tuberculosis; Malaria; Health Systems Strengthening; HIV/TB | E200: HSS - Healthcare financing - Financial sustainability
... 107 more rows

Sheet Impact Outcome Indicators_1A
A1: On-going Progress Update and Disbursement Request
Z2: AIS (AIDS Indicator Survey) | AF2: AIS (AIDS Indicator Survey)
Z3: BSS (Behavioral and Surveillance Survey) | AF3: BSS (Behavioral and Surveillance Survey)
A4: GENERAL GRANT INFORMATION | Z4: Census | AF4: Census
A5: Country: | Z5: Clinical cohort follow-up studies | AF5: Clinical cohort follow-up studies
A6: Disease: | C6: Select | Z6: DHS/DHS+ (Demographic and Health Survey) | AF6: DHS/DHS+ (Demographic and Health Survey)
A7: Grant Number: | Z7: MICS (Multiple Indicator Cluster Survey) | AF7: MICS (Multiple Indicator Cluster Survey)
A8: Principal Recipient: | Z8: MIS (Malaria Indicator Survey) | AF8: MIS (Malaria Indicator Survey)
A9: Program Start Date: | Z9: WHO Global report/estimates | AF9: WHO Global report/estimates
A10: Currency: | C10: Select | Z10: Other (type as appropriate) | AF10: Other (type as appropriate)
A11: PROGRESS UPDATE
A12: Progress Update - Reporting Period: | C12: Cycle: | D12: Select | E12: Number:
A13: Progress Update - Period Covered: | C13: Beginning Date: | E13: End Date:
A14: Progress Update - Number:
A15: DISBURSEMENT REQUEST
A16: Disbursement Request - Disbursement Period: | C16: Cycle: | D16: Select | E16: Number:
A17: Disbursement Request - Period Covered: | C17: Beginning Date: | E17: End Date:
A18: Disbursement Request - Number:
A22: Section 1: Programmatic Progress
A23: Note: The table below should contain those Impact/Outcome indicators that are (1) due for reporting during the current year of a grant and (2) those reporting on which is overdue from the previous periods.
A24: A. Impact / Outcome Indicators | Q24: For LFA Use Only | AC24: For the Global Fund Use Only
A25: Impact / Outcome | B25: Indicator Description | G25: Baseline (if applicable) | I25: Year of Target | J25: Intended Target | K25: Report Due Date | L25: Actual Result | M25: Data Source of Results | N25: Comments on results on Impact/Outcome indicators and data sources, and any other comments | Q25: Baseline (if applicable) | S25: Year of Target | T25: Intended Target | U25: Report Due Date | V25: Verification Method | W25: Verified Result | X25: LFA comments on (a) verified result, (b) source of information used by the PR to report results, including the status of completion of surveys and other methods to measure Impact/Outcome, as applicable, | AC25: Validated Result | AD25: Country Team comments on validated results
G26: Value | H26: Year | Q26: Value | R26: Year
A27: Impact | B27: TB mortality rate Number of deaths attributable to TB (all forms) registered in a specified period per 100,000 populations | G27: 7 | H27: 2014 | I27: 2015 | J27: 6.5 | K27: 2016-02-15 | L27: 6.6 | M27: WHO Global report/estimates | N27: The source of the baseline value is WHO Global TB Report | Q27: - | R27: - | S27: - | T27: - | U27: - | V27: Select | AC27: =W27 -> 0
A28: Outcome | B28: Case notification rate per 100,000 population- all forms of TB i.e. bacteriologically confirmed + clinically diagnosed* *Case notification rate indicators include new and relapse cases | G28: 88 | H28: 2012 | I28: 2015 | J28: 86 | K28: 2016-02-15 | L28: 84 | M28: Other (type as appropriate) | N28: Overall number of TB cases has a tendency to decrease. The latter was articulated in the new NSP post 2016 | Q28: - | R28: - | S28: - | T28: - | U28: - | V28: Select | AC28: =W28 -> 0
A29: Outcome | B29: Treatment success rate - bacteriologically confirmed: Percentage of bacteriologically cobfirmed TB cases successfully treated (cured plus treatment completed) | G29: 0.76 | H29: 2011 | I29: 2013 | J29: 0.85 | K29: 2016-02-15 | L29: 0.77 | M29: Other (type as appropriate) | N29: Overall treatment outcomes for regular TB patients remain sufficient | Q29: - | R29: - | S29: - | T29: - | U29: - | V29: Select | AC29: 0
A30: Outcome | B30: Treatment success rate- laboratory confirmed RR TB and/or MDR-TB: Percentage of bacteriologically-confirmed RR and/or MDR-TB cases successfully treated (cured plus completed treatment) among those enrolled on second-line anti-TB treatment during the year of assessment | G30: 0.52 | H30: 2010 | I30: 2012 | J30: 0.75 | K30: 2016-02-15 | L30: 0.46 | M30: Other (type as appropriate) | N30: High rates of lost to follow-up contributes to poor treatment outcomes | Q30: - | R30: - | S30: - | T30: - | U30: - | V30: Select | AC30: 0
A31: Outcome | B31: Case notification rate per 100,000 population- bacteriologically confirmed (new and relapse cases) | G31: 55 | H31: 2012 | I31: 2015 | J31: 53 | K31: 2016-02-15 | L31: 58 | M31: Other (type as appropriate) | N31: Overall number of TB cases has a tendency to decrease. The latter was articulated in the new NSP post 2016 | Q31: - | R31: - | S31: - | T31: - | U31: - | V31: Select | AC31: 0
A32: Select | G32: - | H32: - | I32: - | J32: - | K32: - | L32: - | M32: Select | Q32: - | R32: - | S32: - | T32: - | U32: - | V32: Select | AC32: 0
A33: Select | G33: - | H33: - | I33: - | J33: - | K33: - | L33: - | M33: Select | Q33: - | R33: - | S33: - | T33: - | U33: - | V33: Select | AC33: 0
A34: Select | G34: - | H34: - | I34: - | J34: - | K34: - | L34: - | M34: Select | Q34: - | R34: - | S34: - | T34: - | U34: - | V34: Select | AC34: 0
A35: Select | G35: - | H35: - | I35: - | J35: - | K35: - | L35: - | M35: Select | Q35: - | R35: - | S35: - | T35: - | U35: - | V35: Select | AC35: 0
A36: Select | G36: - | H36: - | I36: - | J36: - | K36: - | L36: - | M36: Select | Q36: - | R36: - | S36: - | T36: - | U36: - | V36: Select | AC36: 0
A37: Select | G37: - | H37: - | I37: - | J37: - | K37: - | L37: - | M37: Select | Q37: - | R37: - | S37: - | T37: - | U37: - | V37: Select | AC37: 0
A38: Select | G38: - | H38: - | I38: - | J38: - | K38: - | L38: - | M38: Select | Q38: - | R38: - | S38: - | T38: - | U38: - | V38: Select | AC38: 0
A39: Select | G39: - | H39: - | I39: - | J39: - | K39: - | L39: - | M39: Select | Q39: - | R39: - | S39: - | T39: - | U39: - | V39: Select | AC39: 0
A40: Select | G40: - | H40: - | I40: - | J40: - | K40: - | L40: - | M40: Select | Q40: - | R40: - | S40: - | T40: - | U40: - | V40: Select | AC40: 0
A41: Select | G41: - | H41: - | I41: - | J41: - | K41: - | L41: - | M41: Select | Q41: - | R41: - | S41: - | T41: - | U41: - | V41: Select | AC41: 0
A42: Select | G42: - | H42: - | I42: - | J42: - | K42: - | L42: - | M42: Select | Q42: - | R42: - | S42: - | T42: - | U42: - | V42: Select | AC42: 0
A43: Select | G43: - | H43: - | I43: - | J43: - | K43: - | L43: - | M43: Select | Q43: - | R43: - | S43: - | T43: - | U43: - | V43: Select | AC43: 0
A44: Select | G44: - | H44: - | I44: - | J44: - | K44: - | L44: - | M44: Select | Q44: - | R44: - | S44: - | T44: - | U44: - | V44: Select | AC44: 0
A45: Select | G45: - | H45: - | I45: - | J45: - | K45: - | L45: - | M45: Select | Q45: - | R45: - | S45: - | T45: - | U45: - | V45: Select | AC45: 0
A46: Select | G46: - | H46: - | I46: - | J46: - | K46: - | L46: - | M46: Select | Q46: - | R46: - | S46: - | T46: - | U46: - | V46: Select | AC46: 0
A47: Select | G47: - | H47: - | I47: - | J47: - | K47: - | L47: - | M47: Select | Q47: - | R47: - | S47: - | T47: - | U47: - | V47: Select | AC47: 0
A48: Select | G48: - | H48: - | I48: - | J48: - | K48: - | L48: - | M48: Select | Q48: - | R48: - | S48: - | T48: - | U48: - | V48: Select | AC48: 0
A49: Select | G49: - | H49: - | I49: - | J49: - | K49: - | L49: - | M49: Select | Q49: - | R49: - | S49: - | T49: - | U49: - | V49: Select | AC49: 0
A50: Select | G50: - | H50: - | I50: - | J50: - | K50: - | L50: - | M50: Select | Q50: - | R50: - | S50: - | T50: - | U50: - | V50: Select | AC50: 0
A51: Select | G51: - | H51: - | I51: - | J51: - | K51: - | L51: - | M51: Select | Q51: - | R51: - | S51: - | T51: - | U51: - | V51: Select | AC51: 0

Sheet Coverage Indicators_1B
A1: On-going Progress Update and Disbursement Request
A2: PROGRESS UPDATE PERIOD
A3: Grant number: | D3: =IF('[6]PR_Programmatic Progress_1A'!C7="","",'[6]PR_Programmatic Progress_1A'!C7) -> 
A4: Progress Update - Reporting Period: | D4: Cycle: | E4: =IF('[6]PR_Programmatic Progress_1A'!D12="Select","",'[6]PR_Programmatic Progress_1A'!D12) ->  | F4: Number: | G4: =IF('[6]PR_Programmatic Progress_1A'!F12="Select","",'[6]PR_Programmatic Progress_1A'!F12) -> 0
A5: Progress Update - Period Covered: | D5: Beginning Date: | E5: =IF('[6]PR_Programmatic Progress_1A'!D13="","",'[6]PR_Programmatic Progress_1A'!D13) ->  | F5: End Date: | G5: =IF('[6]PR_Programmatic Progress_1A'!F13="","",'[6]PR_Programmatic Progress_1A'!F13) -> 
A6: Progress Update - Number: | D6: =IF('[6]PR_Programmatic Progress_1A'!C14="Select","",'[6]PR_Programmatic Progress_1A'!C14) -> 0
A8: Section 1: Programmatic Progress
A9: Note: All programmatic indicators contained in the current Performance Framework should be listed, regardless of whether there are targets/results for the period covered by the Progress Update or whether the targets have been met in previous periods.
A10: B. Coverage Indicators | V10: For LFA Use Only | AM10: For the Global Fund Use Only
A11: Objective No. | B11: * Indicator No. | C11: Indicator Description | G11: Tied To | H11: Targets cumulative? | I11: Top 10 indicator? | J11: Baseline | N11: Target | Q11: Result | T11: Reasons for programmatic deviation from intended target and deviations from the related workplan activities | V11: Targets cumulative? | W11: Top 10 indicator? | X11: Baseline | AB11: Target | AE11: Verified Result | AH11: LFA analysis on progress to date and any variance between targets and results, and any other comments (this should not be a “Copy and Paste” of the reasons provided by the PR) | AM11: Validated Result | AP11: Country Team comments on validated results
J12: Year | K12: N# | L12: D# | M12: % | N12: N# | O12: D# | P12: % | Q12: N# | R12: D# | S12: % | X12: Year | Y12: N# | Z12: D# | AA12: % | AB12: N# | AC12: D# | AD12: % | AE12: N# | AF12: D# | AG12: % | AM12: N# | AN12: D# | AO12: %
A13: 2 | B13: 1 | C13: Percentage of TB patients who had an HIV test result recorded in the TB register | G13: Current grant | H13: N-not cumulative | I13: Yes - Top 10 | J13: 2013 | K13: 2535 | L13: 4184 | M13: =IFERROR(K13/L13,"") -> 0.6058795411 | N13: 1850 | O13: 2467 | P13: =IFERROR(N13/O13,"") -> 0.7498986623 | Q13: 1435 | R13: 1623 | S13: =IFERROR(Q13/R13,"") -> 0.8841651263 | T13: The indicator is overachieved. The numerator and denominator values are based on the TB Centre database for the said reporting period. The joint effort of PR/SR resulted in the substantial scale-up of HIV testing | V13: Select | W13: Select | AA13: =IFERROR(Y13/Z13,"") ->  | AD13: =IFERROR(AB13/AC13,"") ->  | AG13: =IFERROR(AE13/AF13,"") ->  | AM13: =AE13 -> 0 | AN13: =AF13 -> 0 | AO13: =IFERROR(AM13/AN13,"") -> 
A14: 2 | B14: 2 | C14: Number of notified cases of bacteriologically confirmed TB, (new and relapse) | G14: Current grant | H14: Y-cumulative annually | I14: Yes - Top 10 | J14: 2012 | K14: 2464 | M14: =IFERROR(K14/L14,"") ->  | N14: 2844 | O14: 2844 | P14: =IFERROR(N14/O14,"") -> 1 | Q14: 2168 | R14: 2844 | S14: =IFERROR(Q14/R14,"") -> 0.7623066104 | T14: The number comes from the TB Centre database for the said reporting period. Overall number of TB cases has a tendency to decrease. The latter was addressed in the new NSP post 2016. | V14: Select | W14: Select | AA14: =IFERROR(Y14/Z14,"") ->  | AD14: =IFERROR(AB14/AC14,"") ->  | AG14: =IFERROR(AE14/AF14,"") ->  | AM14: =AE14 -> 0 | AN14: =AF14 -> 0 | AO14: =IFERROR(AM14/AN14,"") -> 
A15: 2 | B15: 3 | C15: Percentage of laboratories showing adequate performance in external quality assurance for smear microscopy among the total number of laboratories that undertake smear microscopy during the reporting period | G15: Current grant | H15: N-not cumulative | I15: Yes - Top 10 | J15: 2013 | K15: 9 | L15: 11 | M15: =IFERROR(K15/L15,"") -> 0.8181818182 | N15: 11 | O15: 11 | P15: 1 | Q15: 9 | R15: 11 | S15: 0.8181818182 | T15: The result is based on the samples of slides collected randomly in April - March, 2015 (Q2) and checked for QA purposes in Q3. Smear testing is suspended in Gori (Shida Kartli) laboratory due to the absence of the lab-specialist. At the moment, the new technician is on board (starting January, 2016). | V15: Select | W15: Select | AM15: 0 | AN15: 0
A16: 3 | B16: 1 | C16: Number of notified cases of all forms of TB - (i.e. bacteriologically confirmed +clinically diagnosed) (new and relapse) | G16: National Program | H16: Y-cumulative annually | I16: Yes - Top 10 | J16: 2012 | K16: 3939 | M16: =IFERROR(K16/L16,"") ->  | N16: 4063 | O16: 4063 | P16: 1 | Q16: 3136 | R16: 4063 | S16: 0.7718434654 | T16: The number comes from the TB Centre database for the said reporting period. The value can slightly increase as culture results might be pending for the patients registered/tested in December, 2015. Overall number of TB cases has a tendency to decrease. | V16: Select | W16: Select | AM16: 0 | AN16: 0
A17: 3 | B17: 2 | C17: Number of bacteriologically confirmed TB cases in a specified period who subsequently were successfully treated (sum of WHO outcome categories "cured” plus "treatment completed”) | G17: National Program | H17: Y-cumulative annually | I17: Yes - Top 10 | J17: 2011 | K17: 1917 | N17: 2417 | O17: 2417 | P17: 1 | Q17: 1754 | R17: =N17 -> 2417 | S17: 0.7256930079 | T17: 1754 bacteriologically confirmed TB cases were successfully treated during January-December, 2013. 74 out of 102 of the reported cases relate to the penitentiary sector | V17: Select | W17: Select | AM17: 0 | AN17: 0
A18: 3 | B18: 3 | C18: Number of TB patients enrolled on standardized 1st line treatment in the specified calendar year | G18: National Program | H18: Y-cumulative annually | I18: Yes - Top 10 | J18: 2012 | K18: 4933 | N18: 4423 | O18: 4423 | P18: 1 | Q18: 3352 | R18: =N18 -> 4423 | S18: 0.7578566584 | T18: The number comes from the TB Centre database for the said reporting period. The relatively low indicator relates to the actual (decreased) number of TB patients in the country | V18: Select | W18: Select | AM18: 0 | AN18: 0
A19: 3 | B19: 4 | C19: Laboratory-confirmed X/MDR-TB patients enrolled on second line anti-TB treatment in the specified calendar year | G19: National Program | H19: Y-cumulative annually | I19: Yes - Top 10 | J19: 2013 | K19: 659 | N19: 519 | O19: 519 | P19: 1 | Q19: 457 | R19: =N19 -> 519 | S19: 0.880539499 | T19: 457 X/MDR-TB patients were enrolled on second line anti-TB treatment during 2015. The data is derived from the TB Centre Database | V19: Select | W19: Select | AM19: 0 | AN19: 0
A20: 3 | B20: 5 | C20: Percentage of previously treated TB patients receiving DST | G20: National Program | H20: Y-cumulative annually | I20: Yes - Top 10 | J20: 2012 | K20: 569 | L20: 632 | M20: 0.9003164557 | N20: 600 | O20: 630 | P20: 0.9523809524 | Q20: 494 | R20: 558 | S20: 0.8853046595 | T20: 494 previously treated TB patients received DST in July-December, 2014 and January - June, 2015 as the latest available DST results for culture positive patients are from the same period. | V20: Select | W20: Select | AM20: 0 | AN20: 0
A21: 3 | B21: 6 | C21: Percentage of cases with drug resistant TB (RR-TB and/or MDR-TB) started on treatment for MDR-TB who were lost to follow up during the first six months of treatment | G21: National Program | H21: N-not cumulative | I21: Yes - Top 10 | J21: 2013 | K21: 31 | L21: 253 | M21: 0.1225296443 | N21: 27 | O21: 260 | P21: 0.1038461538 | Q21: 26 | R21: 222 | S21: 0.1171171171 | T21: This is a reverse indicator. 12% of the cohort from January-June, 2015 were lost to follow-up during the first six months of treatment. The data is derived from the TB Centre Database. The cohort was evaluated by PR and issue brought to the CCM's attention. The recommendation is to follow-up the cohort. | V21: Select | W21: Select | AM21: 0 | AN21: 0
A22: 4 | B22: 1 | C22: Number of and percentage of TB patients on 1st line treatment receiving cash incentives for better adherence to treatment | G22: Current grant | H22: Y-cumulative annually | I22: Yes - Top 10 | J22: 2012 | K22: 3217 | L22: 4675 | M22: 0.6881283422 | N22: 3096 | O22: 4423 | P22: 0.6999773909 | Q22: 3113 | R22: 3924 | S22: 0.7933231397 | T22: The indicator is overachieved. Actual result reported (79% meaning that 3113 patients, out of 3924 received cash incentives for adequate compliance) includes transactions held in January-November 2015. As per December, 2015 compliance – incentives will be transferred in February 2016. | V22: Select | W22: Select | AM22: 0 | AN22: 0
A23: 4 | B23: 2 | C23: Number and percentage of M/XDR-TB patients on treatment receiving cash incentives for better adherence to treatment during out-patient phase | G23: Current grant | H23: Y-cumulative annually | I23: Yes - Top 10 | J23: 2012 | K23: 405 | L23: 548 | M23: 0.7390510949 | N23: 389 | O23: 519 | P23: 0.7495183044 | Q23: 702 | R23: 842 | S23: 0.8337292162 | T23: The indicator is overachieved. Actual result reported (83% meaning that 702 patients, out of 842 received cash incentives for adequate compliance) includes transactions held in January-November 2015. As per December, 2015 compliance – incentives were transferred on February, 2016 | V23: Select | W23: Select | AM23: 0 | AN23: 0
G24: Select | H24: Select | I24: Select | V24: Select | W24: Select | AM24: 0 | AN24: 0
G25: Select | H25: Select | I25: Select | V25: Select | W25: Select | AM25: 0 | AN25: 0
G26: Select | H26: Select | I26: Select | V26: Select | W26: Select | AM26: 0 | AN26: 0
G27: Select | H27: Select | I27: Select | V27: Select | W27: Select | AM27: 0 | AN27: 0
G28: Select | H28: Select | I28: Select | V28: Select | W28: Select | AM28: 0 | AN28: 0
G29: Select | H29: Select | I29: Select | V29: Select | W29: Select | AM29: 0 | AN29: 0
G30: Select | H30: Select | I30: Select | V30: Select | W30: Select | AM30: 0 | AN30: 0
G31: Select | H31: Select | I31: Select | V31: Select | W31: Select | AM31: 0 | AN31: 0
G32: Select | H32: Select | I32: Select | V32: Select | W32: Select | AM32: 0 | AN32: 0
G33: Select | H33: Select | I33: Select | V33: Select | W33: Select | AM33: 0 | AN33: 0
G34: Select | H34: Select | I34: Select | V34: Select | W34: Select | AM34: 0 | AN34: 0
G35: Select | H35: Select | I35: Select | V35: Select | W35: Select | AM35: 0 | AN35: 0
G36: Select | H36: Select | I36: Select | V36: Select | W36: Select | AM36: 0 | AN36: 0
G37: Select | H37: Select | I37: Select | V37: Select | W37: Select | AM37: 0 | AN37: 0
G38: Select | H38: Select | I38: Select | V38: Select | W38: Select | AM38: 0 | AN38: 0
G39: Select | H39: Select | I39: Select | V39: Select | W39: Select | AM39: 0 | AN39: 0
G40: Select | H40: Select | I40: Select | V40: Select | W40: Select | AM40: 0 | AN40: 0
G41: Select | H41: Select | I41: Select | K41: - | L41: - | N41: - | O41: - | V41: Select | W41: Select | Y41: - | Z41: - | AB41: - | AC41: - | AN41: 0
G42: Select | H42: Select | I42: Select | K42: - | L42: - | N42: - | O42: - | V42: Select | W42: Select | Y42: - | Z42: - | AB42: - | AC42: - | AN42: 0
G43: Select | H43: Select | I43: Select | K43: - | L43: - | N43: - | O43: - | V43: Select | W43: Select | Y43: - | Z43: - | AB43: - | AC43: - | AN43: 0
G44: Select | H44: Select | I44: Select | K44: - | L44: - | N44: - | O44: - | V44: Select | W44: Select | Y44: - | Z44: - | AB44: - | AC44: - | AN44: 0
G45: Select | H45: Select | I45: Select | K45: - | L45: - | N45: - | O45: - | V45: Select | W45: Select | Y45: - | Z45: - | AB45: - | AC45: - | AN45: 0
G47: Select | H47: Select | I47: Select | K47: - | L47: - | N47: - | O47: - | V47: Select | W47: Select | Y47: - | Z47: - | AB47: - | AC47: -
G48: Select | H48: Select | I48: Select | K48: - | L48: - | N48: - | O48: - | V48: Select | W48: Select | Y48: - | Z48: - | AB48: - | AC48: -
G49: Select | H49: Select | I49: Select | K49: - | L49: - | N49: - | O49: - | V49: Select | W49: Select | Y49: - | Z49: - | AB49: - | AC49: -
G50: Select | H50: Select | I50: Select | K50: - | L50: - | N50: - | O50: - | V50: Select | W50: Select | Y50: - | Z50: - | AB50: - | AC50: -
G51: Select | H51: Select | I51: Select | K51: - | L51: - | N51: - | O51: - | V51: Select | W51: Select | Y51: - | Z51: - | AB51: - | AC51: -

Sheet ImpactOutcomeDisaggData (hidden)
B1: Impact/outcome disaggregation Data
B3: HIV I-1: Percentage of young people aged 15–24 who are living with HIV | C3: HIVI1 | D3: Sex | E3: =CONCATENATE(C3,D3) -> HIVI1Sex | F3: Male | G3: Female | I3: Impact
B4: HIV I-2: HIV incidence among 15-49 age group | C4: HIVI2 | D4: Sex | E4: =CONCATENATE(C4,D4) -> HIVI2Sex | F4: Male | G4: Female | I4: Impact
B5: HIV I-2: HIV incidence among 15-49 age group | C5: HIVI2 | D5: Age | E5: =CONCATENATE(C5,D5) -> HIVI2Age | F5: 15-24
B6: HIV I-4: AIDS related mortality per 100,000 population | C6: HIVI4 | D6: Sex | E6: HIVI4Sex | F6: Male | G6: Female | I6: Impact
B7: HIV I-4: AIDS related mortality per 100,000 population | C7: HIVI4 | D7: Age | E7: HIVI4Age | F7: <15 | G7: 15+ | H7: 15-24 | I7: Impact
B8: HIV I-9a: Percentage of men who have sex with men who are living with HIV | C8: HIVI9a | D8: Age | E8: HIVI9aAge | F8: <25 | G8: 25+ | I8: Impact
B9: HIV I-9b: Percentage of transgender people who are living with HIV | C9: HIVI9b | D9: Age | E9: HIVI9bAge | F9: <25 | G9: 25+ | I9: Impact
B10: Malaria I-1: Reported malaria cases - presumed and confirmed | C10: MalariaI1 | D10: Sex | E10: MalariaI1Sex | F10: Male | G10: Female | I10: Impact
B11: Malaria I-1: Reported malaria cases - presumed and confirmed | C11: MalariaI1 | D11: Age | E11: MalariaI1Age | F11: <5 | G11: 5+ | I11: Impact
B12: Malaria I-2: Confirmed malaria cases (microscopy or RDT) per 1000 persons per year | C12: MalariaI2 | D12: Sex | E12: MalariaI2Sex | F12: Male | G12: Female | I12: Impact
B13: Malaria I-2: Confirmed malaria cases (microscopy or RDT) per 1000 persons per year | C13: MalariaI2 | D13: Age | E13: MalariaI2Age | F13: <5 | G13: 5+ | I13: Impact
B14: Malaria I-2: Confirmed malaria cases (microscopy or RDT) per 1000 persons per year | C14: MalariaI2 | D14: Species | E14: MalariaI2Species | F14: P. Vivax | G14: P. Falciparum | H14: Other - specify | I14: Impact
B15: Malaria I-3: Inpatient malaria deaths per 1000 persons per year | C15: MalariaI3 | D15: Sex | E15: MalariaI3Sex | F15: Male | G15: Female | I15: Impact
B16: Malaria I-3: Inpatient malaria deaths per 1000 persons per year | C16: MalariaI3 | D16: Age | E16: MalariaI3Age | F16: <5 | G16: 5+ | I16: Impact
B17: Malaria I-4: Malaria test positivity rate | C17: MalariaI4 | D17: Species | E17: MalariaI4Species | F17: P. Vivax | G17: P. Falciparum | H17: Other - specify | I17: Impact
B18: Malaria I-4: Malaria test positivity rate | C18: MalariaI4 | D18: Type of testing | E18: =SUBSTITUTE(CONCATENATE(C18,D18)," ","") -> MalariaI4Typeoftesting | F18: Microscopy | G18: RDT | I18: Impact
B19: Malaria I-5: Parasite prevalence: Proportion of children aged 6-59 months with malaria infection | C19: MalariaI5 | D19: Sex | E19: MalariaI5Sex | F19: Male | G19: Female | I19: Impact
B20: Malaria I-5: Parasite prevalence: Proportion of children aged 6-59 months with malaria infection | C20: MalariaI5 | D20: Species | E20: MalariaI5Species | F20: P. Vivax | G20: P. Falciparum | H20: Other - specify
B21: Malaria I-6: All-cause under-5 mortality rate per 1000 live births | C21: MalariaI6 | D21: Sex | E21: MalariaI6Sex | F21: Male | G21: Female | I21: Impact
B22: HIV O-1: Percentage of adults and children with HIV known to be on treatment 12 months after initiation of antiretroviral therapy | C22: HIVO1 | D22: Sex | E22: HIVO1Sex | F22: Male | G22: Female | I22: Outcome
B23: HIV O-1: Percentage of adults and children with HIV known to be on treatment 12 months after initiation of antiretroviral therapy | C23: HIVO1 | D23: Age | E23: HIVO1Age | F23: <15 | G23: 15+ | I23: Outcome
B24: HIV O-1: Percentage of adults and children with HIV known to be on treatment 12 months after initiation of antiretroviral therapy | C24: HIVO1 | D24: Duration of treatment | E24: =SUBSTITUTE(CONCATENATE(C24,D24)," ","") -> HIVO1Durationoftreatment | F24: 24 months | G24: 36 months | I24: Outcome
B25: HIV O-2: Percentage of women and men aged 15-49 who have had sexual intercourse with more than one partner in the past 12 months | C25: HIVO2 | D25: Sex | E25: HIVO2Sex | F25: Male | G25: Female | I25: Outcome
B26: HIV O-2: Percentage of women and men aged 15-49 who have had sexual intercourse with more than one partner in the past 12 months | C26: HIVO2 | D26: Age | E26: HIVO2Age | F26: 15-19 | G26: 20-24 | I26: Outcome
B27: HIV O-3: Percentage of women and men aged 15-49 who had more than one partner in the past 12 months who used a condom during their last sexual intercourse | C27: HIVO3 | D27: Sex | E27: HIVO3Sex | F27: Male | G27: Female | I27: Outcome
B28: HIV O-3: Percentage of women and men aged 15-49 who had more than one partner in the past 12 months who used a condom during their last sexual intercourse | C28: HIVO3 | D28: Age | E28: HIVO3Age | F28: 15-19 | G28: 20-24 | I28: Outcome
B29: HIV O-5: Percentage of sex workers reporting the use of a condom with their most recent client | C29: HIVO5 | D29: Sex | E29: HIVO5Sex | F29: Male | G29: Female | I29: Outcome
B30: HIV O-6: Percentage of people who inject drugs reporting the use of sterile injecting equipment the last time they injected | C30: HIVO6 | D30: Sex | E30: HIVO6Sex | F30: Male | G30: Female | I30: Outcome
B31: HIV O-8: Current school attendance rate among orphans compared to non-orphans | C31: HIVO8 | D31: Sex | E31: HIVO8Sex | F31: Male | G31: Female | I31: Outcome
B32: Malaria O-1a: Proportion of population that slept under an insecticide-treated net* the previous night | C32: MalariaO1a | D32: Sex | E32: MalariaO1aSex | F32: Male | G32: Female | I32: Outcome
B33: Malaria O-3: Proportion of population using an insecticide-treated net* among the population with access to an insecticide-treated net | C33: MalariaO3 | D33: Sex | E33: MalariaO3Sex | F33: Male | G33: Female | I33: Outcome

Sheet Impactoutcome (hidden)
B2: Type1 | C2: Type2 | D2: Type3 | E2: Type4 | F2: Type5 | G2: Type6 | H2: Type7 | I2: Type8 | J2: Type9 | K2: Type10
B3: Malaria I-1: Reported malaria cases - presumed and confirmed | C3: TB I-1: TB prevalence rate (per 100,000 population) | D3: HIV I-1: Percentage of young people aged 15–24 who are living with HIV | E3: HIV I-1: Percentage of young people aged 15–24 who are living with HIV | F3: HSS I-1: Under 5 mortality rate per 1000 live births | G3: Malaria O-1a: Proportion of population that slept under an insecticide-treated net* the previous night | H3: TB O-1a: Case notification rate of all forms of TB per 100,000 population - bacteriologically confirmed plus clinically diagnosed, new and relapse cases | I3: HIV O-1: Percentage of adults and children with HIV known to be on treatment 12 months after initiation of antiretroviral therapy | J3: HIV O-1: Percentage of adults and children with HIV known to be on treatment 12 months after initiation of antiretroviral therapy | K3: HSS O-1: Percentage of women attending antenatal care
B4: Malaria I-2: Confirmed malaria cases (microscopy or RDT) per 1000 persons per year | C4: TB I-2: TB incidence rate (per 100,000 population) | D4: HIV I-2: HIV incidence among 15-49 age group | E4: HIV I-2: HIV incidence among 15-49 age group | F4: HSS I-2: Neonatal mortality rate, per 100,000 population | G4: Malaria O-1b: Proportion of children under five years old who slept under an insecticide-treated net* the previous night | H4: TB O-1b: Case notification rate per 100,000 population- bacteriologically-confirmed TB, new and relapse | I4: HIV O-2: Percentage of women and men aged 15-49 who have had sexual intercourse with more than one partner in the past 12 months | J4: HIV O-2: Percentage of women and men aged 15-49 who have had sexual intercourse with more than one partner in the past 12 months | K4: HSS O-2: Percentage of births attended by skilled health professional
B5: Malaria I-3: Inpatient malaria deaths per 1000 persons per year | C5: TB I-3: TB mortality rate (per 100,000 population) | D5: HIV I-3a: Percentage of antenatal care attendees who were positive for syphilis | E5: HIV I-3a: Percentage of antenatal care attendees who were positive for syphilis | F5: HSS I-3: Maternal mortality ratio, per 100,000 population | G5: Malaria O-1c: Proportion of pregnant women who slept under an insecticide-treated net* the previous night | H5: TB O-2a: Treatment success rate - all forms of TB | I5: HIV O-3: Percentage of women and men aged 15-49 who had more than one partner in the past 12 months who used a condom during their last sexual intercourse | J5: HIV O-3: Percentage of women and men aged 15-49 who had more than one partner in the past 12 months who used a condom during their last sexual intercourse | K5: HSS O-3: Ratio of household out-of-pocket payments for health to total expenditure on health
B6: Malaria I-4: Malaria test positivity rate | C6: TB I-4: MDR-TB prevalence among new TB patients | D6: HIV I-3b: Percentage of men who have sex with men with active syphilis | E6: HIV I-3b: Percentage of men who have sex with men with active syphilis | F6: Custom | G6: Malaria O-2: Proportion of population with access to an ITN within their household | H6: TB O-2b: Treatment success rate - bacteriologically confirmed TB cases | I6: HIV O-4a: Percentage of men reporting the use of a condom the last time they had anal sex with a male partner | J6: HIV O-4a: Percentage of men reporting the use of a condom the last time they had anal sex with a male partner | K6: HSS O-4: General service readiness score for health facilities
B7: Malaria I-5: Parasite prevalence: Proportion of children aged 6-59 months with malaria infection | C7: TB I-5: Modelled lives saved based on latest epidemiological data | D7: HIV I-3c: Percentage of sex workers with active syphilis | E7: HIV I-3c: Percentage of sex workers with active syphilis | G7: Malaria O-3: Proportion of population using an insecticide-treated net* among the population with access to an insecticide-treated net | H7: TB O-3: Notification of RR-TB and/or MDR-TB cases - Percentage of notified cases of bacteriologically confirmed, drug resistant RR-TB and/or MDR-TB? as a proportion of the estimated number of RR-TB and/or MDR-TB cases among notified TB cases | I7: HIV O-4b: Percentage of transgender people who sell sex reporting the use of a condom with their most recent client | J7: HIV O-4b: Percentage of transgender people who sell sex reporting the use of a condom with their most recent client | K7: Custom
B8: Malaria I-6: All-cause under-5 mortality rate per 1000 live births | C8: TB I-6: Modelled infections averted based on latest epidemiological data | D8: HIV I-4: AIDS related mortality per 100,000 population | E8: HIV I-4: AIDS related mortality per 100,000 population | G8: Malaria O-4: Proportion of households with at least one insecticide-treated net for every two people and/or sprayed by IRS within the last 12 months | H8: TB O-4: Treatment success rate of MDR-TB: Percentage of bacteriologically confirmed drug resistant TB cases (RR-TB and/or MDR-TB) successfully treated | I8: HIV O-5: Percentage of sex workers reporting the use of a condom with their most recent client | J8: HIV O-5: Percentage of sex workers reporting the use of a condom with their most recent client
B9: Malaria I-7: Modelled lives saved (based on latest epidemiological data) | C9: TB/HIV I-1: TB/HIV mortality rate, per 100,000 population | D9: HIV I-5: New HIV infections among children | E9: HIV I-5: New HIV infections among children | G9: Malaria O-6: Proportion of households with at least one insecticide-treated net* for every two people | H9: HSS O-1: Percentage of women attending antenatal care | I9: HIV O-6: Percentage of people who inject drugs reporting the use of sterile injecting equipment the last time they injected | J9: HIV O-6: Percentage of people who inject drugs reporting the use of sterile injecting equipment the last time they injected
B10: Malaria I-8: Modelled infections averted (based on latest epidemiological data) | C10: HSS I-1: Under 5 mortality rate per 1000 live births | D10: HIV I-6: Estimated percentage of child HIV infections from HIV-positive women delivering in the past 12 months | E10: HIV I-6: Estimated percentage of child HIV infections from HIV-positive women delivering in the past 12 months | G10: HSS O-1: Percentage of women attending antenatal care | H10: HSS O-2: Percentage of births attended by skilled health professional | I10: HIV O-7: Percentage of other vulnerable populations who report the use of a condom at last sexual intercourse | J10: HIV O-7: Percentage of other vulnerable populations who report the use of a condom at last sexual intercourse
B11: HSS I-1: Under 5 mortality rate per 1000 live births | C11: HSS I-2: Neonatal mortality rate, per 100,000 population | D11: HIV I-7: Modelled lives saved based on latest epidemiological data | E11: HIV I-7: Modelled lives saved based on latest epidemiological data | G11: Malaria O-5: Proportion of households with at least one insecticide-treated net | H11: HSS O-3: Ratio of household out-of-pocket payments for health to total expenditure on health | I11: HIV O-8: Current school attendance rate among orphans compared to non-orphans | J11: HIV O-8: Current school attendance rate among orphans compared to non-orphans
B12: HSS I-2: Neonatal mortality rate, per 100,000 population | C12: HSS I-3: Maternal mortality ratio, per 100,000 population | D12: HIV I-8: Modelled infections averted based on latest epidemiological data | E12: HIV I-8: Modelled infections averted based on latest epidemiological data | G12: HSS O-2: Percentage of births attended by skilled health professional | H12: HSS O-5: Specific services readiness score for health facilities | I12: TB O-1a: Case notification rate of all forms of TB per 100,000 population - bacteriologically confirmed plus clinically diagnosed, new and relapse cases | J12: TB O-1a: Case notification rate of all forms of TB per 100,000 population - bacteriologically confirmed plus clinically diagnosed, new and relapse cases
B13: HSS I-3: Maternal mortality ratio, per 100,000 population | C13: Custom | D13: HIV I-9a: Percentage of men who have sex with men who are living with HIV | E13: HIV I-9a: Percentage of men who have sex with men who are living with HIV | G13: HSS O-3: Ratio of household out-of-pocket payments for health to total expenditure on health | H13: Custom | I13: TB O-1b: Case notification rate per 100,000 population- bacteriologically-confirmed TB, new and relapse | J13: TB O-1b: Case notification rate per 100,000 population- bacteriologically-confirmed TB, new and relapse
B14: Custom | D14: HIV I-9b: Percentage of transgender people who are living with HIV | E14: HIV I-9b: Percentage of transgender people who are living with HIV | G14: HSS O-5: Specific services readiness score for health facilities | I14: TB O-2a: Treatment success rate - all forms of TB | J14: TB O-2a: Treatment success rate - all forms of TB
D15: HIV I-10: Percentage of sex workers who are living with HIV | E15: HIV I-10: Percentage of sex workers who are living with HIV | G15: Custom | I15: TB O-2b: Treatment success rate - bacteriologically confirmed TB cases | J15: TB O-2b: Treatment success rate - bacteriologically confirmed TB cases
D16: HIV I-11: Percentage of people who inject drugs who are living with HIV | E16: HIV I-11: Percentage of people who inject drugs who are living with HIV | I16: TB O-3: Notification of RR-TB and/or MDR-TB cases - Percentage of notified cases of bacteriologically confirmed, drug resistant RR-TB and/or MDR-TB? as a proportion of the estimated number of RR-TB and/or MDR-TB cases among notified TB cases | J16: TB O-3: Notification of RR-TB and/or MDR-TB cases - Percentage of notified cases of bacteriologically confirmed, drug resistant RR-TB and/or MDR-TB? as a proportion of the estimated number of RR-TB and/or MDR-TB cases among notified TB cases
D17: HIV I-12: Percentage of other vulnerable populations (specify) who are living with HIV | E17: HIV I-12: Percentage of other vulnerable populations (specify) who are living with HIV | I17: TB O-4: Treatment success rate of MDR-TB: Percentage of bacteriologically confirmed drug resistant TB cases (RR-TB and/or MDR-TB) successfully treated | J17: TB O-4: Treatment success rate of MDR-TB: Percentage of bacteriologically confirmed drug resistant TB cases (RR-TB and/or MDR-TB) successfully treated
D18: TB I-1: TB prevalence rate (per 100,000 population) | E18: TB/HIV I-1: TB/HIV mortality rate, per 100,000 population | I18: HSS O-1: Percentage of women attending antenatal care | J18: HSS O-1: Percentage of women attending antenatal care
D19: TB I-2: TB incidence rate (per 100,000 population) | E19: HSS I-1: Under 5 mortality rate per 1000 live births | I19: HSS O-2: Percentage of births attended by skilled health professional | J19: HSS O-2: Percentage of births attended by skilled health professional
D20: TB I-3: TB mortality rate (per 100,000 population) | E20: HSS I-2: Neonatal mortality rate, per 100,000 population | I20: HSS O-3: Ratio of household out-of-pocket payments for health to total expenditure on health | J20: HSS O-3: Ratio of household out-of-pocket payments for health to total expenditure on health
D21: TB I-4: MDR-TB prevalence among new TB patients | E21: HSS I-3: Maternal mortality ratio, per 100,000 population | I21: HSS O-5: Specific services readiness score for health facilities | J21: HSS O-5: Specific services readiness score for health facilities
D22: TB I-5: Modelled lives saved based on latest epidemiological data | E22: Custom | I22: Custom | J22: Custom
D23: TB I-6: Modelled infections averted based on latest epidemiological data
D24: TB/HIV I-1: TB/HIV mortality rate, per 100,000 population
D25: HSS I-1: Under 5 mortality rate per 1000 live births
D26: HSS I-2: Neonatal mortality rate, per 100,000 population
D27: HSS I-3: Maternal mortality ratio, per 100,000 population
D28: Custom

Sheet Coverage Indicators (hidden)
P1: HIV/AIDS | Q1: HIV/AIDS | R1: HIV/AIDS | S1: HIV/AIDS | T1: HIV/AIDS | U1: HIV/AIDS | V1: HIV/AIDS | W1: HIV/AIDS
P2: Tuberculosis | Q2: Tuberculosis | R2: Tuberculosis | S2: Tuberculosis | T2: Tuberculosis | U2: Tuberculosis | V2: Tuberculosis | W2: Tuberculosis | X2: Tuberculosis | Y2: Tuberculosis | Z2: HIV/AIDS
O3: HIV/AIDS | P3: Malaria | Q3: Malaria | R3: Malaria | S3: Malaria | T3: Malaria | U3: Malaria | V3: Malaria | W3: Malaria | X3: Malaria | Y3: HIV/AIDS | Z3: Tuberculosis
F4: Tuberculosis | G4: HIV/TB | H4: HIV/TB | I4: HIV/TB | J4: HIV/TB | K4: HIV/TB | L4: HIV/TB | M4: HIV/TB | N4: HIV/TB | O4: Tuberculosis | P4: Health Systems Strengthening | Q4: Health Systems Strengthening | R4: Health Systems Strengthening | S4: Health Systems Strengthening | T4: Health Systems Strengthening | U4: Health Systems Strengthening | V4: Health Systems Strengthening | W4: Health Systems Strengthening | X4: Health Systems Strengthening | Y4: HIV/TB | Z4: Malaria
B5: Malaria | C5: Malaria | D5: Malaria | E5: Tuberculosis | F5: HIV/TB | G5: HIV/AIDS | H5: HIV/AIDS | I5: HIV/AIDS | J5: HIV/AIDS | K5: HIV/AIDS | L5: HIV/AIDS | M5: HIV/AIDS | N5: HIV/AIDS | O5: HIV/TB | P5: HIV/TB | Q5: HIV/TB | R5: HIV/TB | S5: HIV/TB | T5: HIV/TB | U5: HIV/TB | V5: HIV/TB | W5: HIV/TB | X5: HIV/TB | Y5: Malaria | Z5: HIV/TB
B6: Specific prevention interventions (SPI) | C6: Vector control | D6: Case management | E6: TB care and prevention | F6: MDR-TB | G6: Prevention programs for general population | H6: Prevention programs for MSM and TGs | I6: Prevention programs for people who inject drugs (PWID) and their partners | J6: Prevention programs for other vulnerable populations (please specify) | K6: Prevention programs for adolescents and youth, in and out of school | L6: Prevention programs for sex workers and their clients | M6: PMTCT | N6: HIV/AIDS | O6: TB/HIV | P6: Removing legal barriers to access | Q6: HSS - Service delivery | R6: HSS - Health and community workforce | S6: HSS - Health information systems and M&E | T6: Program management | U6: HSS - Procurement supply chain management (PSCM) | V6: HSS - Policy and governance | W6: HSS - Healthcare financing | X6: HSS - Financial management | Y6: Community systems strengthening | Z6: Results based Financing
B7: Module1 | C7: Module2 | D7: Module3 | E7: Module4 | F7: Module5 | G7: Module8 | H7: Module9 | I7: Module10 | J7: Module11 | K7: Module12 | L7: Module13 | M7: Module14 | N7: Module15 | O7: Module24 | P7: Module27 | Q7: Module28 | R7: Module29 | S7: Module30 | T7: Module31 | U7: Module32 | V7: Module33 | W7: Module34 | X7: Module35 | Y7: Module72 | Z7: Module73
B8: SPI-1: Proportion of pregnant women attending antenatal clinics who received three or more doses of intermittent preventive treatment (IPTp) for malaria | C8: VC-1: Number of long-lasting insecticidal nets distributed to at-risk populations through mass campaigns | D8: CM-1a: Proportion of suspected malaria cases that receive a parasitological test at public sector health facilities | E8: DOTS-1a: Number of notified cases of all forms of TB - bacteriologically confirmed plus clinically diagnosed, new and relapses | F8: MDR TB-1: Percentage of previously treated TB patients receiving DST (bacteriologically positive cases only) | G8: GP-1: Number of women and men aged 15+ who received an HIV test and know their results | H8: KP-1a: Percentage of MSM reached with HIV prevention programs - defined package of services | I8: KP-1d: Percentage of PWID reached with HIV prevention programs - defined package of services | J8: KP-1e: Percentage of other vulnerable populations reached with HIV prevention programs - defined package of services | K8: YP-1: Percentage of young people aged 10?24 years reached by life skills?based HIV education in schools | L8: KP-1c: Percentage of sex workers reached with HIV prevention programs - defined package of services | M8: PMTCT-1: Percentage of pregnant women who know their HIV status | N8: TCS-1: Percentage of adults and children currently receiving antiretroviral therapy among all adults and children living with HIV | O8: TB/HIV-1: Percentage of TB patients who had an HIV test result recorded in the TB register | P8: Custom | Q8: SD-1: Number of health facilities per 10,000 population | R8: HW-1: Number of health workers per 10,000 population (report on community health workers as applicable) | S8: M&E-1: Percentage of HMIS or other routine reporting units submitting timely reports according to national guidelines | T8: Custom | U8: PSM-1: Percentage of health facilities reporting no stock-outs of essential drugs | V8: Custom | W8: HF-1: Government expenditure on health as percentage of general government expenditure | X8: Custom | Y8: Custom | Z8: Custom
B9: Custom | C9: VC-2: Proportion of population at risk potentially covered by long lasting insecticidal nets distributed | D9: CM-1b: Proportion of suspected malaria cases that receive a parasitological test in the community | E9: DOTS-1b: Number of notified cases of bacteriologically confirmed TB, new and relapses | F9: MDR TB-2: Number of bacteriologically confirmed, drug resistant TB cases (RR-TB and/or MDR-TB) notified | G9: GP-2: Percentage of individuals from targeted population reached through community outreach with standardized HIV prevention interventions | H9: KP-1b: Percentage of TG reached with HIV prevention programs - defined package of services | I9: KP-2d: Percentage of PWID reached with HIV prevention programs - individual and/or smaller group level interventions | J9: KP-2e: Percentage of other vulnerable populations reached with HIV prevention programs - individual and/or smaller group level interventions | K9: Custom | L9: KP-2c: Percentage of sex workers reached with HIV prevention programs - individual and/or smaller group level interventions | M9: PMTCT-2: Percentage of HIV-positive pregnant women who received antiretrovirals to reduce the risk of mother-to-child transmission | N9: TCS-2: Percentage of people living with HIV that initiated ART with CD4 count of <200 cells/mm³ | O9: TB/HIV-4: Percentage of new HIV-positive patients starting IPT during the reporting period | Q9: SD-2: Number of outpatients visits per 10,000 population | R9: HW-2: Distribution of health workers | S9: M&E-2: Proportion of facility reports received over the reports expected during the reporting period | U9: Custom | W9: Custom
C10: VC-3: Number of long-lasting insecticidal nets distributed to targeted risk groups through continuous distribution | D10: CM-1c: Proportion of suspected malaria cases that receive a parasitological test at private sector sites | E10: DOTS-2a: Percentage of TB cases, all forms, bacteriologically confirmed plus clinically diagnosed, successfully treated (cured plus treatment completed) among all TB cases registered for treatment during a specified period | F10: MDR TB-3: Number of cases with drug resistant TB (RR-TB and/or MDR-TB) that began second-line treatment | G10: GP-3: Proportion of new individuals who test positive for HIV, enrolled in care (pre-ART or ART) services | H10: KP-2a: Percentage of MSM reached with HIV prevention programs - individual and/or smaller group level interventions | I10: KP-3d: Percentage of PWID that have received an HIV test during the reporting period and know their results | J10: KP-3e: Percentage of other vulnerable populations that have received an HIV test during the reporting period and know their results | L10: KP-3c: Percentage of sex workers that have received an HIV test during the reporting period and know their results | M10: PMTCT-3: Percentage of infants born to HIV-positive women receiving a virological test for HIV within 2 months of birth | N10: TCS-3: Percentage of adults and children that initiated ART, with an undetectable viral load at 12 months (<1000 copies/ml) | O10: TB/HIV-3: Percentage of HIV-positive patients who were screened for TB in HIV care or treatment settings | Q10: Custom | R10: HW-3: Number of health workers newly recruited at primary health care facilities in the past 12 months, expressed as a percentage of planned recruitment targets | S10: M&E-3: Percentage of deaths registered (as reported by civil or sample registration systems, hospitals, community-based reporting systems) among the total deaths for the same period and geographical region
C11: VC-4: Proportion of targeted risk groups receiving long-lasting insecticidal-nets | D11: CM-2a: Proportion of confirmed malaria cases that received first-line antimalarial treatment according to national policy at public sector health facilities | E11: DOTS-2b: Percentage of bacteriologically confirmed TB cases successfully treated (cured plus completed treatment) among the bacteriologically confirmed TB cases registered during a specified period | F11: MDR TB-4: Percentage of cases with drug resistant TB (RR-TB and/or MDR-TB) started on treatment for MDR-TB who were lost to follow up at six months | G11: GP-4: Percentage of antenatal care attendees tested for syphilis | H11: KP-2b: Percentage of TG reached with HIV prevention programs - individual and/or smaller group level interventions | I11: KP-4: Number of needles and syringes distributed per person who injects drugs per year by needle and syringe programs | J11: Custom | L11: Custom | M11: Custom | N11: TCS-4: Percentage of health facilities dispensing antiretroviral therapy that experienced a stock-out of at least one required antiretroviral drug in the last 12 month | O11: TB/HIV-2: Percentage of HIV-positive registered TB patients given anti-retroviral therapy during TB treatment | R11: HW-4: Annual rate of retention of service providers at primary health care facilities | S11: Custom
C12: VC-5: Proportion of households in targeted areas that received Indoor Residual Spraying during the reporting period | D12: CM-2b: Proportion of confirmed malaria cases that received first-line antimalarial treatment according to national policy in the community | E12: DOTS-3: Percentage of laboratories showing adequate performance in external quality assurance for smear microscopy among the total number of laboratories that undertake smear microscopy during the reporting period | F12: MDR TB-5: Percentage of DST laboratories showing adequate performance on External Quality Assurance | G12: GP-5: Number of male circumcisions performed according to national standards | H12: KP-3a: Percentage of MSM that have received an HIV test during the reporting period and know their results | I12: KP-5: Percentage of individuals receiving Opioid Substitution Therapy who received treatment for at least 6 months | N12: TCS-5: Proportion of undernourished PLHIV that received therapeutic or supplementary food at any point during the reporting period | O12: Custom | R12: Custom
C13: VC-6: Proportion of population protected by Indoor Residual Spraying within the last 12 months | D13: CM-2c: Proportion of confirmed malaria cases that received first-line antimalarial treatment according to national policy at private sector sites | E13: DOTS-4: Percentage of reporting units reporting no stock-out of first-line anti-TB drugs on the last day of the quarter | F13: Custom | G13: GP-6: Percentage of orphaned and vulnerable children aged 0?17 years whose households received free basic external support in caring for the child according to national guidelines | H13: KP-3b: Percentage of TG that have received an HIV test during the reporting period and know their results | I13: Custom | N13: Custom
C14: Custom | D14: CM-3a: Proportion of estimated malaria cases (presumed and confirmed) that received first line antimalarial treatment at public sector health facilities | E14: DOTS-5: Number of children <5 in contact with TB patients who began IPT | G14: Custom | H14: Custom
D15: CM-3b: Proportion of estimated malaria cases (presumed and confirmed) that received first line anti-malarial treatment in the community | E15: DOTS-6: Number of TB cases (all forms) notified among key affected populations/high risk groups
D16: CM-3c: Proportion of estimated malaria cases (presumed and confirmed) that received first line anti-malarial treatment at private sector sites | E16: DOTS-7a: Percentage of notified TB cases, all forms, contributed by non-NTP providers - private/non-governmental facilities
D17: CM-4: Proportion of health facilities without stock-outs of key commodities during the reporting period | E17: DOTS-7b: Percentage of notified TB cases, all forms, contributed by non-NTP providers - public sector
D18: CM-5: Percentage of confirmed cases fully investigated (malaria elimination phase) | E18: DOTS-7c: Percentage of notified TB cases, all forms, contributed by non-NTP providers - community referrals
D19: CM-6: Percentage of foci fully investigated (malaria elimination phase) | E19: Custom
D20: Custom

Sheet CoverageDisaggregationData (hidden)
B1: Coverage disaggregation Data
B2: Name of Indicator | C2: ShortName | D2: Disaggregation | E2: Concatenatedcode | F2: Module | G2: Categories
B3: GP-1: Number of women and men aged 15+ who received an HIV test and know their results | C3: GP1D | D3: Sex | E3: =SUBSTITUTE(SUBSTITUTE(SUBSTITUTE(CONCATENATE(C3,D3)," ",""),"/",""),"-","") -> GP1DSex | F3: Prevention programs for general population | G3: Male | H3: Female
B4: GP-1: Number of women and men aged 15+ who received an HIV test and know their results | C4: GP1D | D4: HIV status | E4: GP1DHIVstatus | F4: Prevention programs for general population | G4: Positive | H4: Negative
B5: GP-1: Number of women and men aged 15+ who received an HIV test and know their results | C5: GP1D | D5: Age | E5: =SUBSTITUTE(SUBSTITUTE(SUBSTITUTE(CONCATENATE(C5,D5)," ",""),"/",""),"-","") -> GP1DAge | F5: Prevention programs for general population | G5: 15-24
B6: PMTCT-1: Percentage of pregnant women who know their HIV status | C6: PMTCT1 | D6: HIV status-pregnant women | E6: PMTCT1HIVstatuspregnantwomen | F6: PMTCT | G6: Known positive HIV infection at ANC | H6: Newly identified as HIV positive | I6: Testing HIV negative
B7: TCS-1: Percentage of adults and children currently receiving antiretroviral therapy among all adults and children living with HIV | C7: TCS1a | D7: Sex | E7: TCS1aSex | F7: Treatment, care and support | G7: Male | H7: Female
B8: TCS-1: Percentage of adults and children currently receiving antiretroviral therapy among all adults and children living with HIV | C8: TCS1a | D8: Age | E8: TCS1aAge | F8: Treatment, care and support | G8: <15 | H8: 15+ | I8: 15-24
B9: TCS-2: Percentage of people living with HIV that initiated ART with CD4 count of <200 cells/mm³ | C9: TCS2a | D9: Sex | E9: TCS2aSex | F9: Treatment, care and support | G9: Male | H9: Female
B10: TCS-3: Percentage of adults and children that initiated ART, with an undetectable viral load at 12 months (<1000 copies/ml) | C10: TCS3a | D10: Sex | E10: TCS3aSex | F10: Treatment, care and support | G10: Male | H10: Female
B11: TCS-3: Percentage of adults and children that initiated ART, with an undetectable viral load at 12 months (<1000 copies/ml) | C11: TCS3a | D11: Age | E11: TCS3aAge | F11: Treatment, care and support | G11: 15-24
B12: DOTS-1a: Number of notified cases of all forms of TB - bacteriologically confirmed plus clinically diagnosed, new and relapses | C12: DOTS1a | D12: Sex | E12: DOTS1aSex | F12: TB care and prevention | G12: Male | H12: Female
B13: DOTS-1a: Number of notified cases of all forms of TB - bacteriologically confirmed plus clinically diagnosed, new and relapses | C13: DOTS1a | D13: HIV test result | E13: DOTS1aHIVtestresult | F13: TB care and prevention | G13: Positive | H13: Negative | I13: Not documented
B14: DOTS-1a: Number of notified cases of all forms of TB - bacteriologically confirmed plus clinically diagnosed, new and relapses | C14: DOTS1a | D14: Age | E14: DOTS1aAge | F14: TB care and prevention | G14: <15 | H14: 15+
B15: DOTS-2a: Percentage of TB cases, all forms, bacteriologically confirmed plus clinically diagnosed, successfully treated (cured plus treatment completed) among all TB cases registered for treatment during a specified period | C15: DOTS2a | D15: Sex | E15: DOTS2aSex | F15: TB care and prevention | G15: Male | H15: Female
B16: DOTS-2a: Percentage of TB cases, all forms, bacteriologically confirmed plus clinically diagnosed, successfully treated (cured plus treatment completed) among all TB cases registered for treatment during a specified period | C16: DOTS2a | D16: Age | E16: DOTS2aAge | F16: TB care and prevention | G16: <15 | H16: 15+
B17: DOTS-2a: Percentage of TB cases, all forms, bacteriologically confirmed plus clinically diagnosed, successfully treated (cured plus treatment completed) among all TB cases registered for treatment during a specified period | C17: DOTS2a | D17: HIV test result | E17: DOTS2aHIVtestresult | F17: TB care and prevention | G17: Positive | H17: Negative | I17: Not documented
B18: DOTS-6: Number of TB cases (all forms) notified among key affected populations/high risk groups | C18: DOTS6 | D18: KAPs/high risk groups | E18: DOTS6KAPshighriskgroups | F18: TB care and prevention | G18: Prisoners | H18: Migrants/ Refugees/ IDPs | I18: Others - specify
B19: MDR TB-2: Number of bacteriologically confirmed, drug resistant TB cases (RR-TB and/or MDR-TB) notified | C19: MDRTB2 | D19: Sex | E19: MDRTB2Sex | F19: MDR-TB | G19: Male | H19: Female
B20: MDR TB-2: Number of bacteriologically confirmed, drug resistant TB cases (RR-TB and/or MDR-TB) notified | C20: MDRTB2 | D20: Age | E20: MDRTB2Age | F20: MDR-TB | G20: <15 | H20: 15+
B21: MDR TB-3: Number of cases with drug resistant TB (RR-TB and/or MDR-TB) that began second-line treatment | C21: MDRTB3 | D21: Sex | E21: MDRTB3Sex | F21: MDR-TB | G21: Male | H21: Female
B22: MDR TB-3: Number of cases with drug resistant TB (RR-TB and/or MDR-TB) that began second-line treatment | C22: MDRTB3 | D22: Age | E22: MDRTB3Age | F22: MDR-TB | G22: <15 | H22: 15+
B23: VC-3: Number of long-lasting insecticidal nets distributed to targeted risk groups through continuous distribution | C23: VC3a | D23: Targeted risk group | E23: VC3aTargetedriskgroup | F23: Vector control | G23: Pregnant women | H23: Children <5 | I23: Migrant workers/ refugees/ IDPs | J23: Others - specify
B24: VC-4: Proportion of targeted risk groups receiving long-lasting insecticidal-nets | C24: VC4a | D24: Targeted risk group | E24: VC4aTargetedriskgroup | F24: Vector control | G24: Pregnant women | H24: Children <5 | I24: Migrant workers/ refugees/ IDPs | J24: Others - specify
B25: CM-1a: Proportion of suspected malaria cases that receive a parasitological test at public sector health facilities | C25: CM1a | D25: Age | E25: CM1aAge | F25: Case management | G25: <5 | H25: 5+
B26: CM-1a: Proportion of suspected malaria cases that receive a parasitological test at public sector health facilities | C26: CM1a | D26: Type of testing | E26: CM1aTypeoftesting | F26: Case management | G26: Microscopy | H26: RDTs
B27: CM-1b: Proportion of suspected malaria cases that receive a parasitological test in the community | C27: CM1b | D27: Age | E27: CM1bAge | F27: Case management | G27: <5 | H27: 5+
B28: CM-1b: Proportion of suspected malaria cases that receive a parasitological test in the community | C28: CM1b | D28: Type of testing | E28: CM1bTypeoftesting | F28: Case management | G28: Microscopy | H28: RDTs
B29: CM-1c: Proportion of suspected malaria cases that receive a parasitological test at private sector sites | C29: CM1c | D29: Age | E29: CM1cAge | F29: Case management | G29: <5 | H29: 5+
B30: CM-1c: Proportion of suspected malaria cases that receive a parasitological test at private sector sites | C30: CM1c | D30: Type of testing | E30: CM1cTypeoftesting | F30: Case management | G30: Microscopy | H30: RDTs
B31: CM-2a: Proportion of confirmed malaria cases that received first-line antimalarial treatment according to national policy at public sector health facilities | C31: CM2a | D31: Age | E31: CM2aAge | F31: Case management | G31: <5 | H31: 5+
B32: CM-2b: Proportion of confirmed malaria cases that received first-line antimalarial treatment according to national policy in the community | C32: CM2b | D32: Age | E32: CM2bAge | F32: Case management | G32: <5 | H32: 5+
B33: CM-2c: Proportion of confirmed malaria cases that received first-line antimalarial treatment according to national policy at private sector sites | C33: CM2c | D33: Age | E33: CM2cAge | F33: Case management | G33: <5 | H33: 5+
B34: CM-3a: Proportion of estimated malaria cases (presumed and confirmed) that received first line antimalarial treatment at public sector health facilities | C34: CM3a | D34: Age | E34: CM3aAge | F34: Case management | G34: <5 | H34: 5+
B35: CM-3b: Proportion of estimated malaria cases (presumed and confirmed) that received first line anti-malarial treatment in the community | C35: CM3b | D35: Age | E35: CM3bAge | F35: Case management | G35: <5 | H35: 5+
B36: CM-3c: Proportion of estimated malaria cases (presumed and confirmed) that received first line anti-malarial treatment at private sector sites | C36: CM3c | D36: Age | E36: CM3cAge | F36: Case management | G36: <5 | H36: 5+
B37: HW-1: Number of health workers per 10,000 population (report on community health workers as applicable) | C37: HW1a | D37: Specialization | E37: HW1aSpecialization | F37: HSS - Health and community workforce | G37: Doctors | H37: Nurses | I37: Lab technicians | J37: Other - specify

Sheet WPTM_1C
A1: Ongoing Progress Update and Disbursement Request
A2: Grant number: | C2: =IF(#REF!=""," ",#REF!) -> 
A3: Component | C3: =IF(#REF!=""," ",#REF!) -> 
A4: PROGRESS UPDATE
A5: Progress Update - Reporting Period: | C5: Cycle: | D5: =IF(#REF!=""," ",#REF!) ->  | E5: Number: | F5: =IF(#REF!=""," ",#REF!) ->  | M5: Number: | N5: =IF(#REF!=""," ",#REF!) -> 
A6: Progress Update - Period Covered: | C6: Beginning Date: | D6: =IF(#REF!=""," ",#REF!) ->  | E6: End Date: | F6: =IF(#REF!=""," ",#REF!) ->  | M6: End Date: | N6: =IF(#REF!=""," ",#REF!) -> 
A7: Progress Update - Number:
A8: DISBURSEMENT REQUEST
A9: Disbursement Request - Disbursement Period: | C9: Cycle: | D9: =IF(#REF!=""," ",#REF!) ->  | E9: Number: | F9: =IF(#REF!=""," ",#REF!) ->  | M9: Number: | N9: =IF(#REF!=""," ",#REF!) -> 
A10: Disbursement Request - Period Covered: | C10: Beginning Date: | D10: =IF(#REF!=""," ",#REF!) ->  | E10: End Date: | F10: =IF(#REF!=""," ",#REF!) ->  | M10: End Date: | N10: =IF(#REF!=""," ",#REF!) -> 
A11: Disbursement Request - Number:
A12: =#REF! -> 
D13: Section 1: Programmatic Progress
D14: Note: Enter only the Workplan Tracking Measures that are due for the reporting period
A15: C- Workplan Tracking Measures | M15: LFA Use Only | U15: For the Global Fund Use Only
A16: Module | C16: Intervention | D16: Activity | E16: Activity details- milestones/ targets | F16: Criterion for completion | G16: Milestones/Target for the Current Period | H16: Country (relevant for multi-country grants) | I16: Target | J16: Progress Status | K16: Score | L16: Reasons for deviation from workplan activities and milestones | M16: Activity details- milestones/ targets | N16: Criterion for completion | O16: Milestones/Target for the Current Period | P16: Country (relevant for multi-country grants) | Q16: Progress Status | R16: Verified Score | S16: LFA analysis of progress and any variance between targets and results, and any other comments (this should not be a “Copy and Paste” of the reasons provided by the PR) | T16: Progress Status | U16: Validated Score | V16: Country Team Comments on Validated Score
B17: =SUBSTITUTE(SUBSTITUTE(SUBSTITUTE(SUBSTITUTE(SUBSTITUTE(SUBSTITUTE(SUBSTITUTE(A17," ",""),"-",""),"&",""),",",""),"/",""),")",""),"(","") ->  | K17: =IFERROR(VLOOKUP(J17,$AA$19:$AB$22,2,FALSE),"") ->  | R17: =IFERROR(VLOOKUP(Q17,$AA$19:$AB$22,2,FALSE),"") ->  | U17: =IFERROR(VLOOKUP(T17,$AA$19:$AB$22,2,FALSE),"") -> 
B18: =SUBSTITUTE(SUBSTITUTE(SUBSTITUTE(SUBSTITUTE(SUBSTITUTE(SUBSTITUTE(SUBSTITUTE(A18," ",""),"-",""),"&",""),",",""),"/",""),")",""),"(","") ->  | I18: - | K18: =IFERROR(VLOOKUP(J18,$AA$19:$AB$22,2,FALSE),"") ->  | R18: =IFERROR(VLOOKUP(Q18,$AA$19:$AB$22,2,FALSE),"") ->  | U18: =IFERROR(VLOOKUP(T18,$AA$19:$AB$22,2,FALSE),"") -> 
I19: - | AA19: Not Started | AB19: 0
I20: - | AA20: Started | AB20: 1
I21: - | AA21: Advancing | AB21: 2
I22: - | AA22: Completed | AB22: 3
I23: -
I24: -
I25: -
I26: -
I27: -
I28: -
I29: -
I30: -
I31: -
I32: -
I33: -
I34: -
I35: -
I36: -
I37: -
I38: -
I39: -
I40: -
I41: -

Sheet Intervention By Modules old (hidden)
B6: Specific prevention interventions (SPI) | C6: Vector control | D6: Case management | E6: TBcareandprevention | F6: MDR-TB | G6: TB care and prevention | H6: MDR-TB | I6: Prevention programs for general population | J6: Prevention programs for MSM and TGs | K6: Prevention programs for people who inject drugs (PWID) and their partners | L6: Prevention programs for other vulnerable populations (please specify) | M6: Prevention programs for adolescents and youth, in and out of school | N6: Prevention programs for sex workers and their clients | O6: PMTCT | P6: Treatment, care and support | Q6: Prevention programs for general population | R6: Prevention programs for MSM and TGs | S6: Prevention programs for people who inject drugs (PWID) and their partners | T6: Prevention programs for other vulnerable populations (please specify) | U6: Prevention programs for adolescents and youth, in and out of school | V6: Prevention programs for sex workers and their clients | W6: PMTCT | X6: Treatment, care and support | Y6: TB/HIV | Z6: TB/HIV | AA6: TB/HIV | AB6: Removing legal barriers to access | AC6: HSS - Service delivery | AD6: HSS - Health and community workforce | AE6: HSS - Health information systems and M&E | AF6: Program management | AG6: HSS - Procurement supply chain management (PSCM) | AH6: HSS - Policy and governance | AI6: HSS - Healthcare financing | AJ6: HSS - Financial management | AK6: Removing legal barriers to access | AL6: HSS - Service delivery | AM6: HSS - Health and community workforce | AN6: HSS - Health information systems and M&E | AO6: Program management | AP6: HSS - Procurement supply chain management (PSCM) | AQ6: HSS - Policy and governance | AR6: HSS - Healthcare financing | AS6: HSS - Financial management | AT6: Removing legal barriers to access | AU6: HSS - Service delivery | AV6: HSS - Health and community workforce | AW6: HSS - Health information systems and M&E | AX6: Program management | AY6: HSS - Procurement supply chain management (PSCM) | AZ6: HSS - Policy and governance | BA6: HSS - Healthcare financing | BB6: HSS - Financial management | BC6: Removing legal barriers to access | BD6: HSS - Service delivery | BE6: HSS - Health and community workforce | BF6: HSS - Health information systems and M&E | BG6: Program management | BH6: HSS - Procurement supply chain management (PSCM) | BI6: HSS - Policy and governance | BJ6: HSS - Healthcare financing | BK6: HSS - Financial management | BL6: Removing legal barriers to access | BM6: HSS - Service delivery | BN6: HSS - Health and community workforce | BO6: HSS - Health information systems and M&E | BP6: Program management | BQ6: HSS - Procurement supply chain management (PSCM) | BR6: HSS - Policy and governance | BS6: HSS - Healthcare financing | BT6: HSS - Financial management | BU6: Community systems strengthening | BV6: Results-based Financing | BW6: Community systems strengthening | BX6: Results-based Financing | BY6: Community systems strengthening | BZ6: Results-based Financing | CA6: Community systems strengthening | CB6: Results-based Financing
B7: MalariaModule1 | C7: MalariaModule2 | D7: MalariaModule3 | E7: TuberculosisModule4 | F7: TuberculosisModule5 | G7: HIV/TBModule6 | H7: HIV/TBModule7 | I7: HIV/TBModule8 | J7: HIV/TBModule9 | K7: HIV/TBModule10 | L7: HIV/TBModule11 | M7: HIV/TBModule12 | N7: HIV/TBModule13 | O7: HIV/TBModule14 | P7: HIV/TBModule15 | Q7: HIV/AIDSModule16 | R7: HIV/AIDSModule17 | S7: HIV/AIDSModule18 | T7: HIV/AIDSModule19 | U7: HIV/AIDSModule20 | V7: HIV/AIDSModule21 | W7: HIV/AIDSModule22 | X7: HIV/AIDSModule23 | Y7: HIV/AIDSModule24 | Z7: TuberculosisModule25 | AA7: HIV/TBModule26 | AB7: HIV/AIDSModule27 | AC7: HIV/AIDSModule28 | AD7: HIV/AIDSModule29 | AE7: HIV/AIDSModule30 | AF7: HIV/AIDSModule31 | AG7: HIV/AIDSModule32 | AH7: HIV/AIDSModule33 | AI7: HIV/AIDSModule34 | AJ7: HIV/AIDSModule35 | AK7: TuberculosisModule36 | AL7: TuberculosisModule37 | AM7: TuberculosisModule38 | AN7: TuberculosisModule39 | AO7: TuberculosisModule40 | AP7: TuberculosisModule41 | AQ7: TuberculosisModule42 | AR7: TuberculosisModule43 | AS7: TuberculosisModule44 | AT7: Module45 | AU7: MalariaModule46 | AV7: MalariaModule47 | AW7: MalariaModule48 | AX7: MalariaModule49 | AY7: MalariaModule50 | AZ7: MalariaModule51 | BA7: MalariaModule52 | BB7: MalariaModule53 | BC7: Health Systems StrengtheningModule54 | BD7: Health Systems StrengtheningModule55 | BE7: Health Systems StrengtheningModule56 | BF7: Health Systems StrengtheningModule57 | BG7: Health Systems StrengtheningModule58 | BH7: Health Systems StrengtheningModule59 | BI7: Health Systems StrengtheningModule60 | BJ7: Health Systems StrengtheningModule61 | BK7: Health Systems StrengtheningModule62 | BL7: HIV/TBModule63 | BM7: HIV/TBModule64 | BN7: HIV/TBModule65 | BO7: HIV/TBModule66 | BP7: HIV/TBModule67 | BQ7: HIV/TBModule68 | BR7: HIV/TBModule69 | BS7: HIV/TBModule70 | BT7: HIV/TBModule71 | BU7: HIV/AIDSModule72 | BV7: HIV/AIDSModule73 | BW7: TuberculosisModule74 | BX7: TuberculosisModule75 | BY7: MalariaModule76 | BZ7: MalariaModule77 | CA7: HIV/TBModule78 | CB7: HIV/TBModule79
B8: Intermittent preventive treatment (IPT) - In pregnancy | C8: Long-lasting insecticidal nets (LLIN) - Mass campaign | D8: Facility-based treatment | E8: Case detection and diagnosis | F8: Case detection and diagnosis: MDR-TB | G8: Case detection and diagnosis | H8: Case detection and diagnosis: MDR-TB | I8: RMNCH linkages and gender-based violence (GBV) | J8: Behavioral change as part of programs for MSM and TGs | K8: Needle and Syringe programs as part of programs for PWID and their partners | L8: Condoms as part of programs for other vulnerable populations | M8: Behavioral change as part of programs for adolescent and youth | N8: Behavioral change as part of programs for sex workers and their clients | O8: Prong 1: Primary prevention of HIV infection among women of childbearing age | P8: Pre-ART care | Q8: RMNCH linkages and gender-based violence (GBV) | R8: Behavioral change as part of programs for MSM and TGs | S8: Needle and Syringe programs as part of programs for PWID and their partners | T8: Condoms as part of programs for other vulnerable populations | U8: Behavioral change as part of programs for adolescent and youth | V8: Behavioral change as part of programs for sex workers and their clients | W8: Prong 1: Primary prevention of HIV infection among women of childbearing age | X8: Pre-ART care | Y8: TB/HIV collaborative interventions | Z8: TB/HIV collaborative interventions | AA8: TB/HIV collaborative interventions | AB8: Legal and policy environment assessment and law reform | AC8: Service organization and facility management | AD8: Health and community workers capacity building | AE8: Administrative and finance data sources | AF8: Policy, planning, coordination and management | AG8: Operationalization of procurement and supply chain management system | AH8: Development and implementation of health legislation, strategies and policies | AI8: Financial sustainability | AJ8: Performance,transparency&accountability of financial management system in health | AK8: Legal and policy environment assessment and law reform | AL8: Service organization and facility management | AM8: Health and community workers capacity building | AN8: Administrative and finance data sources | AO8: Policy, planning, coordination and management | AP8: Operationalization of procurement and supply chain management system | AQ8: Development and implementation of health legislation, strategies and policies | AR8: Financial sustainability | AS8: Performance,transparency&accountability of financial management system in health | AT8: Legal and policy environment assessment and law reform | AU8: Service organization and facility management | AV8: Health and community workers capacity building | AW8: Administrative and finance data sources | AX8: Policy, planning, coordination and management | AY8: Operationalization of procurement and supply chain management system | AZ8: Development and implementation of health legislation, strategies and policies | BA8: Financial sustainability | BB8: Performance,transparency&accountability of financial management system in health | BC8: Legal and policy environment assessment and law reform | BD8: Service organization and facility management | BE8: Health and community workers capacity building | BF8: Administrative and finance data sources | BG8: Policy, planning, coordination and management | BH8: Operationalization of procurement and supply chain management system | BI8: Development and implementation of health legislation, strategies and policies | BJ8: Financial sustainability | BK8: Performance,transparency&accountability of financial management system in health | BL8: Legal and policy environment assessment and law reform | BM8: Service organization and facility management | BN8: Health and community workers capacity building | BO8: Administrative and finance data sources | BP8: Policy, planning, coordination and management | BQ8: Operationalization of procurement and supply chain management system | BR8: Development and implementation of health legislation, strategies and policies | BS8: Financial sustainability | BT8: Performance,transparency&accountability of financial management system in health | BU8: Community-based monitoring for accountability | BV8: Results-based financing | BW8: Community-based monitoring for accountability | BX8: Results-based financing | BY8: Community-based monitoring for accountability | BZ8: Results-based financing | CA8: Community-based monitoring for accountability | CB8: Results-based financing
B9: Intermittent preventive treatment (IPT) - In infancy | C9: Long-lasting insecticidal nets (LLIN) - Continuous distribution | D9: Epidemic preparedness and response | E9: Treatment | F9: Treatment: MDR-TB | G9: Treatment | H9: Treatment: MDR-TB | I9: Other interventions for general population - Please specify | J9: Condoms as part of programs for MSM and TGs | K9: OST and other drug dependence treatment (PWIDs and their partners) | L9: Behavioral change as part of programs for other vulnerable populations | M9: Condoms part of programs for adolescent and youth | N9: Condoms as part of programs for sex workers and their clients | O9: Prong 2: Preventing unintended pregnancies among women living with HIV | P9: Antiretroviral Therapy (ART) | Q9: Other interventions for general population - Please specify | R9: Condoms as part of programs for MSM and TGs | S9: OST and other drug dependence treatment (PWIDs and their partners) | T9: Behavioral change as part of programs for other vulnerable populations | U9: Condoms part of programs for adolescent and youth | V9: Condoms as part of programs for sex workers and their clients | W9: Prong 2: Preventing unintended pregnancies among women living with HIV | X9: Antiretroviral Therapy (ART) | Y9: Engaging all care providers | Z9: Engaging all care providers | AA9: Engaging all care providers | AB9: Legal aid services and legal literacy | AC9: Improving laboratory systems | AD9: Scaling up health and community workers | AE9: Vital registration system | AF9: Grant management | AG9: PSM infrastructure and development of tools | AH9: Monitoring and reporting implementation of laws and policies | AI9: Equity of healthcare financing | AK9: Legal aid services and legal literacy | AL9: Improving laboratory systems | AM9: Scaling up health and community workers | AN9: Vital registration system | AO9: Grant management | AP9: PSM infrastructure and development of tools | AQ9: Monitoring and reporting implementation of laws and policies | AR9: Equity of healthcare financing | AT9: Legal aid services and legal literacy | AU9: Improving laboratory systems | AV9: Scaling up health and community workers | AW9: Vital registration system | AX9: Grant management | AY9: PSM infrastructure and development of tools | AZ9: Monitoring and reporting implementation of laws and policies | BA9: Equity of healthcare financing | BC9: Legal aid services and legal literacy | BD9: Improving laboratory systems | BE9: Scaling up health and community workers | BF9: Vital registration system | BG9: Grant management | BH9: PSM infrastructure and development of tools | BI9: Monitoring and reporting implementation of laws and policies | BJ9: Equity of healthcare financing | BL9: Legal aid services and legal literacy | BM9: Improving laboratory systems | BN9: Scaling up health and community workers | BO9: Vital registration system | BP9: Grant management | BQ9: PSM infrastructure and development of tools | BR9: Monitoring and reporting implementation of laws and policies | BS9: Equity of healthcare financing | BU9: Advocacy for social accountability | BW9: Advocacy for social accountability | BY9: Advocacy for social accountability | CA9: Advocacy for social accountability
B10: Seasonal malaria chemoprevention | C10: Indoor residual spraying (IRS) | D10: Integrated community case management (ICCM) | E10: Prevention | F10: Prevention for MDR-TB | G10: Prevention | H10: Prevention for MDR-TB | I10: Behavioral change as part of programs for general population | J10: HIV testing and counseling as part of programs for MSM and TGs | K10: Diagnosis and treatment of viral hepatitis (PWIDs and their partners) | L10: Diagnosis and treatment of STIs (other vulnerable populations) | M10: HIV testing and counseling as part of programs for adolescent and youth | N10: HIV testing and counseling as part of programs for sex workers and their clients | O10: Prong 3: Preventing vertical HIV transmission | P10: Treatment monitoring | Q10: Behavioral change as part of programs for general population | R10: HIV testing and counseling as part of programs for MSM and TGs | S10: Diagnosis and treatment of viral hepatitis (PWIDs and their partners) | T10: Diagnosis and treatment of STIs (other vulnerable populations) | U10: HIV testing and counseling as part of programs for adolescent and youth | V10: HIV testing and counseling as part of programs for sex workers and their clients | W10: Prong 3: Preventing vertical HIV transmission | X10: Treatment monitoring | Y10: Community TB care delivery | Z10: Community TB care delivery | AA10: Community TB care delivery | AB10: Community-based monitoring of legal rights | AC10: Improving service delivery infrastructure | AD10: Retention and distribution of health and community workers | AE10: Routine reporting | AF10: Supporting procurement and supply management | AK10: Community-based monitoring of legal rights | AL10: Improving service delivery infrastructure | AM10: Retention and distribution of health and community workers | AN10: Routine reporting | AO10: Supporting procurement and supply management | AT10: Community-based monitoring of legal rights | AU10: Improving service delivery infrastructure | AV10: Retention and distribution of health and community workers | AW10: Routine reporting | AX10: Supporting procurement and supply management | BC10: Community-based monitoring of legal rights | BD10: Improving service delivery infrastructure | BE10: Retention and distribution of health and community workers | BF10: Routine reporting | BG10: Supporting procurement and supply management | BL10: Community-based monitoring of legal rights | BM10: Improving service delivery infrastructure | BN10: Retention and distribution of health and community workers | BO10: Routine reporting | BP10: Supporting procurement and supply management | BU10: Social mobilization, building community linkages, collaboration and coordination | BW10: Social mobilization, building community linkages, collaboration and coordination | BY10: Social mobilization, building community linkages, collaboration and coordination | CA10: Social mobilization, building community linkages, collaboration and coordination
B11: IEC/BCC | C11: Other vector control measures | D11: Active case detection and investigation (elimination phase) | E11: Other | F11: Other | G11: Other | H11: Other | I11: Condoms as part of programs for general population | J11: Diagnosis and treatment of STIs as part of programs for MSM and TGs | K11: Other interventions for IDUs and their partners - Please specify | L11: Other interventions for other vulnerable populations - Please specify | M11: RMNCH linkages and GBV as part of programs for adolescent youth | N11: Diagnosis and treatment of STIs (sex workers and their clients) | O11: Prong 4: Treatment, care & support to mothers living with HIV, their children & | P11: Treatment adherence | Q11: Condoms as part of programs for general population | R11: Diagnosis and treatment of STIs as part of programs for MSM and TGs | S11: Other interventions for IDUs and their partners - Please specify | T11: Other interventions for other vulnerable populations - Please specify | U11: RMNCH linkages and GBV as part of programs for adolescent youth | V11: Diagnosis and treatment of STIs (sex workers and their clients) | W11: Prong 4: Treatment, care & support to mothers living with HIV, their children & | X11: Treatment adherence | Y11: Key Affected Populations | Z11: Key Affected Populations | AA11: Key Affected Populations | AB11: Policy advocacy on legal rights | AC11: Other | AE11: Analysis, review and transparency | AK11: Policy advocacy on legal rights | AL11: Other | AN11: Analysis, review and transparency | AT11: Policy advocacy on legal rights | AU11: Other | AW11: Analysis, review and transparency | BC11: Policy advocacy on legal rights | BD11: Other | BF11: Analysis, review and transparency | BL11: Policy advocacy on legal rights | BM11: Other | BO11: Analysis, review and transparency | BU11: Institutional capacity building, planning and leadership development | BW11: Institutional capacity building, planning and leadership development | BY11: Institutional capacity building, planning and leadership development | CA11: Institutional capacity building, planning and leadership development
B12: Other | C12: Entomological monitoring | D12: Therapeutic efficacy surveillance | I12: Male circumcision | J12: Diagnosis and treatment of viral hepatitis as part of programs for MSM and TGs | K12: Behavioural change as part of programs for PWID and their partners | L12: HIV testing and counseling as part of programs for other vulnerable populations | M12: Young Key Population interventions as part of programs for adolescent and youth | N12: Harm reduction as part of programs for sex workers and their clients | O12: Other interventions for PMTCT- Please specify | P12: Prevention, diagnosis and treatment of opportunistic infections | Q12: Male circumcision | R12: Diagnosis and treatment of viral hepatitis as part of programs for MSM and TGs | S12: Behavioural change as part of programs for PWID and their partners | T12: HIV testing and counseling as part of programs for other vulnerable populations | U12: Young Key Population interventions as part of programs for adolescent and youth | V12: Harm reduction as part of programs for sex workers and their clients | W12: Other interventions for PMTCT- Please specify | X12: Prevention, diagnosis and treatment of opportunistic infections | Y12: Collaborative activities with other programs and sectors | Z12: Collaborative activities with other programs and sectors | AA12: Collaborative activities with other programs and sectors | AB12: Training on rights for officials, health workers and police | AE12: Surveys | AK12: Training on rights for officials, health workers and police | AN12: Surveys | AT12: Training on rights for officials, health workers and police | AW12: Surveys | BC12: Training on rights for officials, health workers and police | BF12: Surveys | BL12: Training on rights for officials, health workers and police | BO12: Surveys
C13: Other | D13: Severe malaria | I13: HIV testing and counseling as part of programs for general population | J13: Other interventions for MSM and TGs - Please specify | K13: Condoms as part of programs for PWID and their partners | L13: Condoms as part of programs for other vulnerable populations | M13: Other interventions for adolescent and youth | N13: Other interventions for sex workers and their clients - Please specify | P13: Counseling and psycho-social support | Q13: HIV testing and counseling as part of programs for general population | R13: Other interventions for MSM and TGs - Please specify | S13: Condoms as part of programs for PWID and their partners | T13: Condoms as part of programs for other vulnerable populations | U13: Other interventions for adolescent and youth | V13: Other interventions for sex workers and their clients - Please specify | X13: Counseling and psycho-social support
D14: Private sector co-payment mechanism | I14: Diagnosis and treatment of STIs as part of programs for general population | K14: Diagnosis and treatment of STIs as part of programs for PWID and their partners | L14: Behavioral change as part of programs for other vulnerable populations | P14: Out-patient care | Q14: Diagnosis and treatment of STIs as part of programs for general population | S14: Diagnosis and treatment of STIs as part of programs for PWID and their partners | T14: Behavioral change as part of programs for other vulnerable populations | X14: Out-patient care
D15: Private sector case management (other) | I15: Blood safety | K15: Needle and Syringe programs as part of programs for PWID and their partners | L15: Diagnosis and treatment of STIs (other vulnerable populations) | P15: In-patient care | Q15: Blood safety | S15: Needle and Syringe programs as part of programs for PWID and their partners | T15: Diagnosis and treatment of STIs (other vulnerable populations) | X15: In-patient care
K16: OST and other drug dependence treatment (PWIDs and their partners) | L16: Other interventions for other vulnerable populations - Please specify | P16: Other interventions for treatment - Please specify | S16: OST and other drug dependence treatment (PWIDs and their partners) | T16: Other interventions for other vulnerable populations - Please specify | X16: Other interventions for treatment - Please specify
K17: Diagnosis and treatment of viral hepatitis (PWIDs and their partners) | L17: HIV testing and counseling as part of programs for other vulnerable populations | S17: Diagnosis and treatment of viral hepatitis (PWIDs and their partners) | T17: HIV testing and counseling as part of programs for other vulnerable populations
K18: Behavioural change as part of programs for PWID and their partners | S18: Behavioural change as part of programs for PWID and their partners
K19: Condoms as part of programs for PWID and their partners | S19: Condoms as part of programs for PWID and their partners
K20: Diagnosis and treatment of STIs as part of programs for PWID and their partners | S20: Diagnosis and treatment of STIs as part of programs for PWID and their partners

Sheet Intervention By Modules (hidden)
B3: SpecificpreventioninterventionsSPI | C3: Vectorcontrol | D3: Casemanagement | E3: TBcareandprevention | F3: MDR-TB | G3: Preventionprogramsforgeneralpopulation | H3: PreventionprogramsforMSMandTGs | I3: PreventionprogramsforpeoplewhoinjectdrugsPWIDandtheirpartners | J3: Preventionprogramsforothervulnerablepopulationspleasespecify | K3: Preventionprogramsforadolescentsandyouthinandoutofschool | L3: Preventionprogramsforsexworkersandtheirclients | M3: PMTCT | N3: Treatmentcareandsupport | O3: TBHIV | P3: Removinglegalbarrierstoaccess | Q3: HSSServicedelivery | R3: HSSHealthandcommunityworkforce | S3: HSSHealthinformationsystemsandME | T3: Programmanagement | U3: HSSProcurementsupplychainmanagementPSCM | V3: HSSPolicyandgovernance | W3: HSS-Healthcarefinancing | X3: HSSFinancialmanagement | Y3: Communitysystemsstrengthening | Z3: Results basedFinancing
B4: Intermittent preventive treatment (IPT) - In pregnancy | C4: Long-lasting insecticidal nets (LLIN) - Mass campaign | D4: Facility-based treatment | E4: Case detection and diagnosis | F4: Case detection and diagnosis: MDR-TB | G4: RMNCH linkages and gender-based violence (GBV) | H4: Behavioral change as part of programs for MSM and TGs | I4: Needle and Syringe programs as part of programs for PWID and their partners | J4: Condoms as part of programs for other vulnerable populations | K4: Behavioral change as part of programs for adolescent and youth | L4: Behavioral change as part of programs for sex workers and their clients | M4: Prong 1: Primary prevention of HIV infection among women of childbearing age | N4: Pre-ART care | O4: TB/HIV collaborative interventions | P4: Legal and policy environment assessment and law reform | Q4: Service organization and facility management | R4: Health and community workers capacity building | S4: Administrative and finance data sources | T4: Policy, planning, coordination and management | U4: Operationalization of procurement and supply chain management system | V4: Development and implementation of health legislation, strategies and policies | W4: Financial sustainability | X4: Performance,transparency&accountability of financial management system in health | Y4: Community-based monitoring for accountability | Z4: Results-based financing
B5: Intermittent preventive treatment (IPT) - In infancy | C5: Long-lasting insecticidal nets (LLIN) - Continuous distribution | D5: Epidemic preparedness and response | E5: Treatment | F5: Treatment: MDR-TB | G5: Other interventions for general population - Please specify | H5: Condoms as part of programs for MSM and TGs | I5: OST and other drug dependence treatment (PWIDs and their partners) | J5: Behavioral change as part of programs for other vulnerable populations | K5: Condoms part of programs for adolescent and youth | L5: Condoms as part of programs for sex workers and their clients | M5: Prong 2: Preventing unintended pregnancies among women living with HIV | N5: Antiretroviral Therapy (ART) | O5: Engaging all care providers | P5: Legal aid services and legal literacy | Q5: Improving laboratory systems | R5: Scaling up health and community workers | S5: Vital registration system | T5: Grant management | U5: PSM infrastructure and development of tools | V5: Monitoring and reporting implementation of laws and policies | W5: Equity of healthcare financing | Y5: Advocacy for social accountability
B6: Seasonal malaria chemoprevention | C6: Indoor residual spraying (IRS) | D6: Integrated community case management (ICCM) | E6: Prevention | F6: Prevention for MDR-TB | G6: Behavioral change as part of programs for general population | H6: HIV testing and counseling as part of programs for MSM and TGs | I6: Diagnosis and treatment of viral hepatitis (PWIDs and their partners) | J6: Diagnosis and treatment of STIs (other vulnerable populations) | K6: HIV testing and counseling as part of programs for adolescent and youth | L6: HIV testing and counseling as part of programs for sex workers and their clients | M6: Prong 3: Preventing vertical HIV transmission | N6: Treatment monitoring | O6: Community TB care delivery | P6: Community-based monitoring of legal rights | Q6: Improving service delivery infrastructure | R6: Retention and distribution of health and community workers | S6: Routine reporting | T6: Supporting procurement and supply management | Y6: Social mobilization, building community linkages, collaboration and coordination
B7: IEC/BCC | C7: Other vector control measures | D7: Active case detection and investigation (elimination phase) | E7: Other | F7: Other | G7: Condoms as part of programs for general population | H7: Diagnosis and treatment of STIs as part of programs for MSM and TGs | I7: Other interventions for IDUs and their partners - Please specify | J7: Other interventions for other vulnerable populations - Please specify | K7: RMNCH linkages and GBV as part of programs for adolescent youth | L7: Diagnosis and treatment of STIs (sex workers and their clients) | M7: Prong 4: Treatment, care & support to mothers living with HIV, their children & | N7: Treatment adherence | O7: Key Affected Populations | P7: Policy advocacy on legal rights | Q7: Other | S7: Analysis, review and transparency | Y7: Institutional capacity building, planning and leadership development
B8: Other | C8: Entomological monitoring | D8: Therapeutic efficacy surveillance | G8: Male circumcision | H8: Diagnosis and treatment of viral hepatitis as part of programs for MSM and TGs | I8: Behavioural change as part of programs for PWID and their partners | J8: HIV testing and counseling as part of programs for other vulnerable populations | K8: Young Key Population interventions as part of programs for adolescent and youth | L8: Harm reduction as part of programs for sex workers and their clients | M8: Other interventions for PMTCT- Please specify | N8: Prevention, diagnosis and treatment of opportunistic infections | O8: Collaborative activities with other programs and sectors | P8: Training on rights for officials, health workers and police | S8: Surveys
C9: Other | D9: Severe malaria | G9: HIV testing and counseling as part of programs for general population | H9: Other interventions for MSM and TGs - Please specify | I9: Condoms as part of programs for PWID and their partners | J9: Condoms as part of programs for other vulnerable populations | K9: Other interventions for adolescent and youth | L9: Other interventions for sex workers and their clients - Please specify | N9: Counseling and psycho-social support
D10: Private sector co-payment mechanism | G10: Diagnosis and treatment of STIs as part of programs for general population | I10: Diagnosis and treatment of STIs as part of programs for PWID and their partners | J10: Behavioral change as part of programs for other vulnerable populations | N10: Out-patient care
D11: Private sector case management (other) | G11: Blood safety | I11: Needle and Syringe programs as part of programs for PWID and their partners | J11: Diagnosis and treatment of STIs (other vulnerable populations) | N11: In-patient care
I12: OST and other drug dependence treatment (PWIDs and their partners) | J12: Other interventions for other vulnerable populations - Please specify | N12: Other interventions for treatment - Please specify
I13: Diagnosis and treatment of viral hepatitis (PWIDs and their partners) | J13: HIV testing and counseling as part of programs for other vulnerable populations
I14: Other interventions for IDUs and their partners - Please specify
I15: Behavioural change as part of programs for PWID and their partners
I16: Condoms as part of programs for PWID and their partners
I17: Diagnosis and treatment of STIs as part of programs for PWID and their partners

Sheet PR Cash Reconciliation_2A,B,C
A4: Ongoing Progress Update and Disbursement Request
B6: Grant Name: | C6: =+#REF! -> 
B7: (Disease) Component | C7: =+#REF! -> 
B8: GA Number | C8: =#REF! -> 
B10: PROGRESS UPDATE
B11: Progress Update - Reporting Period: | G11: Cycle: | H11: =+#REF! ->  | I11: Number: | J11: =+#REF! -> 
B12: Progress Update - Period Covered: | G12: Beginning Date: | H12: =+#REF! ->  | I12: End Date: | J12: =+#REF! -> 
B13: Progress Update - Number:
B15: DISBURSEMENT REQUEST
B16: Disbursement Request - Disbursement Period: | G16: Cycle: | H16: =+#REF! ->  | I16: Number: | J16: =+#REF! -> 
B17: Disbursement Request - Period Covered: | G17: Beginning Date: | H17: =+#REF! ->  | I17: End Date: | J17: =+#REF! -> 
B18: Disbursement Request - Number:
A20: Section 2: Financial Information
B25: A. Principal Recipient Cash Reconciliation Statement in Grant Currency
C26: Principal Recipient | F26: For LFA Use Only | J26: For the Global Fund Use Only
A27: Item No. | B27: Description | C27: Cumulative for Previous Periods | D27: Current Period | E27: Comments | F27: Cumulative for Previous Periods as validated by Global Fund | G27: LFA Adjustments on current Period | H27: As verified by LFA | I27: Comments | J27: CT Adjustments (incl. External Audit adjustments) | K27: The Global Fund Validated Figures | L27: Comments
A28: 1.1 | B28: Cash Balance: Beginning of the Period | C28: 0 | D28: 40921.76659 | G28: 0 | H28: =D28+G28 -> 40921.76659 | K28: =H28+J28 -> 40921.76659
B29: 2. Grant Income
B30: Add:
A31: 2.1 | B31: Disbursement made to the Principal Recipient | C31: =691821+664842 -> 1356663 | D31: 1319553.6 | F31: 0 | G31: 0 | H31: =D31+G31 -> 1319553.6 | J31: 0 | K31: =H31+J31 -> 1319553.6
A32: 2.2 | B32: Disbursement to third parties by the Global Fund on behalf of the Principal Recipient | C32: =36528.5+2391463.03+43994.7 -> 2471986.23 | D32: 49343.84 | F32: 0 | G32: 0 | H32: =D32+G32 -> 49343.84 | J32: 0 | K32: =H32+J32 -> 49343.84
A33: 2.3 | B33: Interest received on bank accounts | C33: 0 | D33: 0 | F33: 0 | G33: 0 | H33: =D33+G33 -> 0 | J33: 0 | K33: 0
A34: 2.4 | B34: Revenue from income-generating activities (if applicable) | C34: 0 | D34: 0 | F34: 0 | G34: 0 | H34: =D34+G34 -> 0 | J34: 0 | K34: 0
A35: 2.5 | B35: Other income, if applicable (e.g. VAT/Other Tax returns, income from disposal of assets etc.) | C35: 0 | D35: =17678.86+52847/2.6872 -> 37345.0553 | E35: VAT refund | F35: 0 | G35: 0 | H35: =D35+G35 -> 37345.0553 | J35: 0 | K35: 37345.0553
A36: 2.6 | B36: Total Grant Income | C36: =SUM(C31:C35) -> 3828649.23 | D36: =SUM(D31:D35) -> 1406242.495 | F36: =SUM(F31:F35) -> 0 | G36: =SUM(G31:G35) -> 0 | H36: =SUM(H31:H35) -> 1406242.495 | J36: =SUM(J31:J35) -> 0 | K36: =SUM(K31:K35) -> 1406242.495
B37: 3. Grant Cash Outflows
B38: Less:
A39: 3.1 | B39: Principal Recipient Expenditure (including payments and other advance payments) | C39: 889926.6708 | D39: 756345.1168 | F39: =F32 -> 0 | G39: 0 | H39: =D39+G39 -> 756345.1168 | J39: =J32 -> 0 | K39: =H39+J39 -> 756345.1168
A40: 3.2 | B40: Disbursement to third parties by the Global Fund on behalf of the Principal Recipient | C40: =C32 -> 2471986.23 | D40: =D32 -> 49343.84 | F40: 0 | G40: 0 | H40: =D40+G40 -> 49343.84 | J40: 0 | K40: =H40+J40 -> 49343.84
A41: 3.3 | B41: Principal Recipient disbursement to sub-recipients | C41: =231696.54+180732.8 -> 412429.34 | D41: 164245.3873 | F41: 0 | G41: 0 | H41: =D41+G41 -> 164245.3873 | J41: 0 | K41: =H41+J41 -> 164245.3873
A42: 3.4 | B42: Bank charges on disbursements and payments | C42: 200 | D42: 0 | F42: 0 | G42: 0 | H42: =D42+G42 -> 0 | J42: 0 | K42: 0
A43: 3.5 | B43: Total Grant Cash Outflows | C43: =SUM(C39:C42) -> 3774542.241 | D43: =SUM(D39:D42) -> 969934.3441 | F43: =SUM(F39:F42) -> 0 | G43: =SUM(G39:G42) -> 0 | H43: =SUM(H39:H42) -> 969934.3441 | J43: =SUM(J39:J42) -> 0 | K43: =SUM(K39:K42) -> 969934.3441
B44: 4. Reconciling Adjustments
A45: 4.1 | B45: Other reconciliation adjustments (including for prior periods) | C45: 0 | D45: 0 | F45: 0 | G45: 0 | H45: =D45+G45 -> 0 | J45: 0 | K45: =H45+J45 -> 0
A46: 4.2 | B46: Net exchange gains/losses on translation of balances | C46: =-34128.06+50604.48 -> 16476.42 | D46: -20048.61 | F46: 0 | G46: 0 | H46: =D46+G46 -> -20048.61 | J46: 0 | K46: =H46+J46 -> -20048.61
A47: 4.3 | B47: Ineligible transactions from previous periods for which justification was approved by the Global Fund | C47: 0 | D47: 0 | F47: 0 | G47: 0 | H47: =D47+G47 -> 0 | J47: 0 | K47: 0
A48: 4.4 | B48: Reimbursement of ineligible transaction from previous periods | C48: 0 | D48: 0 | F48: 0 | G48: 0 | H48: =D48+G48 -> 0 | J48: 0 | K48: 0
B49: 5. Total Cash Balances: End of the reporting period
A50: 5.1 | B50: Principal Recipient Cash Balance | C50: 0 | D50: =(D28+D36-D43)+D45+D46+D48 -> 457181.3077 | G50: =(G36-G43)+G46+G48+G45 -> 0 | H50: =(H28+H36-H43)+H45+H46-H47 -> 457181.3077 | J50: =J28+J36-J43+J46+J45 -> 0 | K50: =K28+K36-K43+K46+K45-K47 -> 457181.3077
A51: 5.2 | B51: Sub-Recipient Cash Balance | C51: 0 | D51: ='SR_Cash Reconciliation_2D'!H54 -> 27185.97858 | G51: ='SR_Cash Reconciliation_2D'!K54 -> 0 | H51: ='SR_Cash Reconciliation_2D'!L54 -> 27185.97858 | J51: 0 | K51: =+H51+J51 -> 27185.97858
A52: 5.3 | B52: Total Cash Balance | C52: =C50+C51 -> 0 | D52: =D50+D51 -> 484367.2863 | F52: =F50+F51 -> 0 | G52: =G50+G51 -> 0 | H52: =H50+H51 -> 484367.2863 | J52: =J50+J51 -> 0 | K52: =K50+K51 -> 484367.2863
B53: 6. Commitments & Other Obligations
A54: 6.1 | B54: Unpaid invoices, accrued expenditure for severance pay, leave and other liabilities | C54: 0 | D54: =(7218+73621.83)/2.6169 -> 30891.4479 | F54: 0 | G54: 0 | H54: =D54+G54 -> 30891.4479 | J54: 0 | K54: =H54+J54 -> 30891.4479
A55: 6.2 | B55: Open legal obligations (including signed contracts not yet invoiced) | C55: 0 | D55: =(23980/2+300+248430/3+24554/2)/2.6169 -> 41032.13726 | F55: 0 | G55: 0 | H55: =D55+G55 -> 41032.13726 | J55: 0 | K55: =H55+J55 -> 41032.13726
A56: 6.3 | B56: Tenders and/or procurement contracts initiated but not yet signed as contracts | C56: 0 | D56: 0 | F56: 0 | G56: 0 | H56: =D56+G56 -> 0 | J56: 0 | K56: =H56+J56 -> 0
A57: 6.4 | B57: Total Commitments & Other Obligations | C57: =SUM(C54:C56) -> 0 | D57: =SUM(D54:D56) -> 71923.58516 | F57: =SUM(F54:F56) -> 0 | G57: =SUM(G54:G56) -> 0 | H57: =SUM(H54:H56) -> 71923.58516 | J57: =SUM(J54:J56) -> 0 | K57: =SUM(K54:K56) -> 71923.58516
B59: B. Principal Recipient Bank Statement Balance & Cash In Transit in Grant Currency
C60: Principal Recipient | F60: For LFA Use Only | J60: For the Global Fund Use Only
D61: End of Period | E61: Comments | G61: LFA Adjustments on current Period | H61: As verified by LFA | I61: Comments | J61: CT Adjustments | K61: The Global Fund Validated Figures | L61: Comments
A62: 7.1 | B62: Principal Recipient Cash Balance as per bank statements (For Information Only): | D62: 457181.3061 | E62: EUR (The amount consists of GEL 1,196,397.76) | G62: 0 | H62: =D62+G62 -> 457181.3061 | J62: 0 | K62: =H62+J62 -> 457181.3061
A63: 7.2 | B63: Cash in Transit for the reporting period | D63: 0 | G63: 0 | H63: =D63+G63 -> 0 | J63: 0 | K63: =H63+J63 -> 0
A64: 7.3 | B64: Cash in Transit after the current reporting period | D64: =1831327.48+45685+140600.42 -> 2017612.9 | E64: notifications received on 14/03/2016 | G64: 0 | H64: =D64+G64 -> 2017612.9 | J64: 0 | K64: 2017612.9
B66: C. Principal Recipient Ineligible Transactions in Grant Currency
C67: Principal Recipient | F67: For LFA Use Only | J67: For the Global Fund Use Only
C68: Cumulative for Previous Periods | D68: End of Period | E68: Comments | F68: Cumulative for Previous Periods as validated by Global Fund | G68: LFA Adjustments on current Period | H68: As verified by LFA | I68: Comments | J68: CT Adjustments | K68: The Global Fund Validated Figures | L68: Comments
A69: 8.1 | B69: Ineligible transactions validated for the reporting period | C69: 0 | D69: 0 | F69: 0 | G69: =G52 -> 0 | H69: =D69+G69 -> 0 | J69: =J41 -> 0 | K69: =H69+J69 -> 0
A70: 8.2 | B70: Ineligible transactions from previous periods for which justification was approved by the Global Fund | C70: =C47 -> 0 | D70: =D47 -> 0 | F70: =F47 -> 0 | G70: =G47 -> 0 | H70: =D70+G70 -> 0 | J70: 0 | K70: =H70+J70 -> 0
A71: 8.3 | B71: Reimbursement of ineligible transactions from previous periods | C71: =C48 -> 0 | D71: =D48 -> 0 | F71: =F48 -> 0 | G71: =G48 -> 0 | H71: =D71+G71 -> 0 | J71: =J48 -> 0 | K71: 0
A72: 8.4 | B72: Cumulative ineligible transactions for the implementation period | C72: 0 | D72: =D69+C72 -> 0 | F72: 0 | G72: 0 | H72: =D72+G72 -> 0 | J72: 0 | K72: =K69+C72 -> 0
A73: 8.5 | B73: Open ineligible transactions to be justified and/or reimbursed | C73: =C69-C70-C71 -> 0 | D73: =C73+D69-D70-D71 -> 0 | F73: 0 | G73: 0 | H73: =D73+H69-H70-H71 -> 0 | J73: 0 | K73: =H73+J69-J70-J71 -> 0

Sheet SR_Cash Reconciliation_2D
A1: Ongoing Progress Update and Disbursement Request
A3: Grant Name: | B3: =+#REF! -> 
A4: (Disease) Component | B4: =#REF! -> 
A6: PROGRESS UPDATE
A7: Progress Update - Reporting Period: | D7: Cycle: | E7: =+#REF! ->  | F7: Number: | G7: =+#REF! -> 
A8: Progress Update - Period Covered: | D8: Beginning Date: | E8: =+#REF! ->  | F8: End Date: | G8: =+#REF! -> 
A9: Progress Update - Number:
A11: DISBURSEMENT REQUEST
A12: Disbursement Request - Disbursement Period: | D12: Cycle: | E12: =+#REF! ->  | F12: Number: | G12: =+#REF! -> 
A13: Disbursement Request - Period Covered: | D13: Beginning Date: | E13: =+#REF! ->  | F13: End Date: | G13: =+#REF! -> 
A14: Disbursement Request - Number:
A17: Section 2: Financial Information
A20: D. Principal Recipient Reconciliation of funds provided to Sub-Recipients for the Current Implementation Period
A22: Principal Recipient | K22: For Local Fund Agent Use Only | N22: For the Global Fund Use Only
A23: (1) Sub-Recipient Name | B23: (2) Cumulative Sub-Recipient expenses for prior periods at Principal Recipient level | C23: (3) Sub-Recipient Open Advances at Principal Recipient Level | D23: (4) Disbursements made by Principal Recipient during the Reporting Period | E23: (5) Other Income* during the Reporting Period | F23: (6) Expenditure validated by Principal Recipient during the Reporting Period | G23: (7) Sub-Recipient Closing Balance at Principal Recipient Level | H23: (8) Actual Sub-Recipient Cash Balance (if applicable) | I23: (9) Variances on Sub-Recipient Balances | J23: Comments | K23: LFA Adjustments | L23: As verified by LFA | M23: Comments | N23: Country Team Adjustments (incl. External Audit adjustments) | O23: The Global Fund Validated Figures | P23: Comments
A24: TB Center | B24: 0 | C24: 0 | D24: 0 | E24: 0 | F24: 0 | G24: =+C24+D24+E24-F24 -> 0 | H24: 27185.97858 | I24: =+H24-G24 -> 27185.97858 | J24: Advance payment to TB Center | L24: =H24+K24 -> 27185.97858 | O24: =L24+N24 -> 27185.97858
B25: 0 | C25: 0 | D25: 0 | E25: 0 | F25: 0 | G25: =+C25+D25+E25-F25 -> 0 | H25: 0 | I25: 0 | L25: =H25+K25 -> 0 | O25: 0
B26: 0 | C26: 0 | D26: 0 | E26: 0 | F26: 0 | G26: 0 | H26: 0 | I26: 0 | L26: 0 | O26: 0
B27: 0 | C27: 0 | D27: 0 | E27: 0 | F27: 0 | G27: 0 | H27: 0 | I27: 0 | L27: 0 | O27: 0
B28: 0 | C28: 0 | D28: 0 | E28: 0 | F28: 0 | G28: 0 | H28: 0 | I28: 0 | L28: 0 | O28: 0
B29: 0 | C29: 0 | D29: 0 | E29: 0 | F29: 0 | G29: 0 | H29: 0 | I29: 0 | L29: 0 | O29: 0
B30: 0 | C30: 0 | D30: 0 | E30: 0 | F30: 0 | G30: 0 | H30: 0 | I30: 0 | L30: 0 | O30: 0
B31: 0 | C31: 0 | D31: 0 | E31: 0 | F31: 0 | G31: 0 | H31: 0 | I31: 0 | L31: 0 | O31: 0
B32: 0 | C32: 0 | D32: 0 | E32: 0 | F32: 0 | G32: 0 | H32: 0 | I32: 0 | L32: 0 | O32: 0
B33: 0 | C33: 0 | D33: 0 | E33: 0 | F33: 0 | G33: 0 | H33: 0 | I33: 0 | L33: 0 | O33: 0
B34: 0 | C34: 0 | D34: 0 | E34: 0 | F34: 0 | G34: 0 | H34: 0 | I34: 0 | L34: 0 | O34: 0
B35: 0 | C35: 0 | D35: 0 | E35: 0 | F35: 0 | G35: 0 | H35: 0 | I35: 0 | L35: 0 | O35: 0
B36: 0 | C36: 0 | D36: 0 | E36: 0 | F36: 0 | G36: 0 | H36: 0 | I36: 0 | L36: 0 | O36: 0
B37: 0 | C37: 0 | D37: 0 | E37: 0 | F37: 0 | G37: 0 | H37: 0 | I37: 0 | L37: 0 | O37: 0
B38: 0 | C38: 0 | D38: 0 | E38: 0 | F38: 0 | G38: 0 | H38: 0 | I38: =+H38-G38 -> 0 | L38: =H38+K38 -> 0 | O38: =L38+N38 -> 0
B39: 0 | C39: 0 | D39: 0 | E39: 0 | F39: 0 | G39: 0 | H39: 0 | I39: 0 | L39: 0 | O39: 0
B40: 0 | C40: 0 | D40: 0 | E40: 0 | F40: 0 | G40: 0 | H40: 0 | I40: 0 | L40: 0 | O40: 0
B41: 0 | C41: 0 | D41: 0 | E41: 0 | F41: 0 | G41: 0 | H41: 0 | I41: 0 | L41: 0 | O41: 0
B42: 0 | C42: 0 | D42: 0 | E42: 0 | F42: 0 | G42: 0 | H42: 0 | I42: 0 | L42: 0 | O42: 0
B43: 0 | C43: 0 | D43: 0 | E43: 0 | F43: 0 | G43: 0 | H43: 0 | I43: 0 | L43: 0 | O43: 0
B44: 0 | C44: 0 | D44: 0 | E44: 0 | F44: 0 | G44: 0 | H44: 0 | I44: 0 | L44: 0 | O44: 0
B45: 0 | C45: 0 | D45: 0 | E45: 0 | F45: 0 | G45: 0 | H45: 0 | I45: 0 | L45: 0 | O45: 0
B46: 0 | C46: 0 | D46: 0 | E46: 0 | F46: 0 | G46: 0 | H46: 0 | I46: 0 | L46: 0 | O46: 0
B47: 0 | C47: 0 | D47: 0 | E47: 0 | F47: 0 | G47: 0 | H47: 0 | I47: 0 | L47: 0 | O47: 0
B48: 0 | C48: 0 | D48: 0 | E48: 0 | F48: 0 | G48: 0 | H48: 0 | I48: 0 | L48: 0 | O48: 0
B49: 0 | C49: 0 | D49: 0 | E49: 0 | F49: 0 | G49: 0 | H49: 0 | I49: 0 | L49: 0 | O49: 0
B50: 0 | C50: 0 | D50: 0 | E50: 0 | F50: 0 | G50: 0 | H50: 0 | I50: 0 | L50: 0 | O50: 0
B51: 0 | C51: 0 | D51: 0 | E51: 0 | F51: 0 | G51: 0 | H51: 0 | I51: =+H51-G51 -> 0 | L51: =H51+K51 -> 0 | O51: =L51+N51 -> 0
B52: 0 | C52: 0 | D52: 0 | E52: 0 | F52: 0 | G52: 0 | H52: 0 | I52: 0 | L52: 0 | O52: 0
B53: 0 | C53: 0 | D53: 0 | E53: 0 | F53: 0 | G53: 0 | H53: 0 | I53: 0 | L53: 0 | O53: 0
A54: Total for the Reporting Period | B54: =SUM(B24:B53) -> 0 | C54: 0 | D54: 0 | E54: 0 | F54: 0 | G54: 0 | H54: 27185.97858 | I54: 27185.97858 | L54: 27185.97858 | O54: 27185.97858
A56: * Includes interest income, income generating activites etc.

Sheet Budget Variance_2E
A1: Ongoing Progress Update and Disbursement Request
B3: Grant Name: | C3: =+#REF! -> 
B4: (Disease) Component | C4: =#REF! -> 
B6: PROGRESS UPDATE
B7: Progress Update - Reporting Period: | F7: Cycle: | G7: =+#REF! ->  | H7: Number: | I7: =+#REF! -> 
B8: Progress Update - Period Covered: | F8: Beginning Date: | G8: =+#REF! ->  | H8: End Date: | I8: =+#REF! -> 
B9: Progress Update - Number:
B11: DISBURSEMENT REQUEST
B12: Disbursement Request - Disbursement Period: | F12: Cycle: | G12: =+#REF! ->  | H12: Number: | I12: =+#REF! -> 
B13: Disbursement Request - Period Covered: | F13: Beginning Date: | G13: =+#REF! ->  | H13: End Date: | I13: =+#REF! -> 
A15: Section 2: Financial Information
A17: E. Total Principal Recipient Budget Variance and Funding Absorption Analysis
D19: Principal Recipient
D20: Budget for Reporting Period | E20: Actual Grant Cash Out-Flow - Cash Basis for Reporting Period | F20: Budget Vs Actual Variances | G20: Absorption Capacity | H20: Reasons for Variance | J20: Cumulative Budget through period of Progress Update | K20: Cumulative Actual Grant Cash-Outflow - Cash Basis through period of Progress Update | L20: Cumulative Budget Vs Actuals Variances | M20: Absorption Capacity | N20: Reasons for Variance
B21: 1. Total Principal Recipient cash outflow vs. budget | D21: =SUM(D22:D23) -> 584565.0682 | E21: =SUM(E22:E23) -> 969934.3441 | F21: =IF(D21="",IF(E21="","",D21-E21),D21-E21) -> -385369.276 | G21: =E21/D21 -> 1.659241027 | J21: =SUM(J22:J23) -> 8858606.882 | K21: =SUM(K22:K23) -> 4744476.585 | L21: =IF(J21="",IF(K21="","",J21-K21),J21-K21) -> 4114130.297 | M21: =K21/J21 -> 0.5355781838
B22: 1a. Principal Recipient's total expenditures (including any direct-disbursements to third-parties) | D22: 362123.7905 | E22: ='PR Cash Reconciliation_2A,B,C'!D39+'PR Cash Reconciliation_2A,B,C'!D40+'PR Cash Reconciliation_2A,B,C'!D42 -> 805688.9568 | F22: =IF(D22="",IF(E22="",0,D22-E22),D22-E22) -> -443565.1663 | G22: =E22/D22 -> 2.224899269 | H22: The net variance of EUR (443,565) consists of positive (EUR 166,312) and negative variances (EUR 609,877) Positive variance EUR 166,312 - derived from the activities that were budgeted for the current reporting period and represents either saving, commitment or postponed activity Saving -Total EUR 142,943 includes: EUR 9,626 - Actual unit price of fuel turned to be less than projected/budgeted. From the programmatic point of view, activities were performed as planned, though required quantity of fuel was less. EUR 10,451 – GenXpert actual calibration cost (part of the contract/invoice) was less than budgeted EUR 83,705- Actual cost for Cash Incentives (Sensitive & MDR) was less than budgeted due to actual number of patients (slightly less than projected). Most importantly, budget was made assuming max (100%) compliance to treatment. Reimbursed period covers June 2015- November 2015 EUR 39,161 - Project management actual costs, such as HR costs, fuel, tender announcement fee, TA were found to be less than budgeted and FX rate change effect. Postponed activities and commitments - Total EUR 23,369 includes: EUR 2,377 – SRs fuel costs for December, payment transferred to next reporting period. EUR 20,635 – Committed payment for Cash Incentives (Sensitive & MDR) for December 2015 (Q4); EUR 357 – Project Management costs delayed to next reporting period, including fuel, postal cost, mobile service. Negative Variance EUR 609,877 – derived from activities that were budgeted in the previous reporting period and postponed to Q3Q4 period: EUR 250,186 – Procurement of Lab supplies and equipment carried to the current reporting period. EUR 301,195 – Procurement of GeneXpert cartridges for 2016-2017 period, part of the amount was budgeted in the previous reporting period and the other part in the year 2016. EUR 2,898 – Procurement of drugs for side effects carried out in current reporting period and budgeted in the previous period. EUR 55,598 – Procurement of SLD and local PSM costs for pharmaceuticals procured in previous year. These activities were budgeted in the previous reporting periods. | J22: 8042499.323 | K22: ='PR Cash Reconciliation_2A,B,C'!D39+'PR Cash Reconciliation_2A,B,C'!D40+'PR Cash Reconciliation_2A,B,C'!D42+'PR Cash Reconciliation_2A,B,C'!C39+'PR Cash Reconciliation_2A,B,C'!C40+'PR Cash Reconciliation_2A,B,C'!C42 -> 4167801.858 | L22: =IF(J22="",IF(K22="",0,J22-K22),J22-K22) -> 3874697.466 | M22: =K22/J22 -> 0.5182222205 | N22: The net variance of EUR 3,874,698 consists of the positive (EUR 4,030,130) and negative variances (EUR 155,432) Positive Variance EUR 4,030,130 – derived from the savings, commitments or postponed activities. Saving – Total EUR 3,866,846 includes: EUR 52,542 - Actual unit price of fuel turned to be less than projected/budgeted. From the programmatic point of view, activities were performed as planned, though required quantity of fuel was less; Fuel cost budgeted under line 4.7 (b) was cancelled due to the following factor: the adherence data is collected and monitored on a regular basis by regional coordinators with further submission to the TB Centre. Activity related to the monitoring of the cash incentive scheme was abolished, considering that it is being performed under the current set-up of the scheme EUR 721,034 - Procurement of lab supplies, including PSM costs and respirators caused saving, due to the following factors: 1. Local procurement with competitive bidding with preceding market assessment derived significantly cheaper unit costs compared to the budgeted amounts; 2. Available stock; 3. Re-calculation of average consumption rates; EUR 700,681 - Actual cost of Cash incentives (Sensitive & MDR) covered period June 2014 – November 2015 and was less than budgeted. The following are the reasons for saving: Sensitive - budgeted amount was calculated for 1 year period covering 70% of all sensitive patients with100% adherence (both installments). Actually patients enrolled in January - May, 2014 did not fit for being beneficiary of the scheme as approved scheme was enrolling patients starting June 1. MDR - budgeted amount was calculated for the entire treatment course (15 months) covering 75% of MDR patients from the 2012, 2013, 2014 cohorts, with100% adherence (all weeks on outpatient treatment). Actually, 5 months were covered, payments started in August, there was no 100% compliance in many cases and number of patients was less than projected/budgeted. EUR 4,276 – Payments to the staff were initiated only after scheme operationalization, though were budgeted to start earlier. Exchange rate impact also caused additional savings EUR 2,132,924 – Net saving in procurement of SLD include several reasons: recalculation of needs; tendency of decreasing prevalence of TB; BDQ Donation program provided the medicine free-of-charge; General tendency of decreasing cost of TB medicines through GDF; some savings from the SLD line were reallocated to activities as equipment by TB center. These reallocation requests were approved by the GF in January-February 2016, as well as in 2015. EUR 1,230 – Lines 3.10/3.11 were cancelled (ref. PR letter to GF19/11/2014), as the pharmaceutical was included in the GDF Order (Act. 3.1.a) EUR 2997 –The activity was canceled. Procurement (water for injectable) was carried out by TB Centre. EUR 55,908 – Cost of Procurement side effects drugs was less than budgeted due to the decreasing number of patients and low prices derived through the local procurement (tender). EUR 1,151 – Saving in printing of statistical forms due to lower unit price derived through tender; EUR 194,103 – Saving in Project Management costs such as TA, Audit cost, Fuel, HR due to vacant position, less unit costs than budgeted, FX rate Change, As for the TA saving – amount was spent to cover WHO Review mission that was performed last year, though the costs related to the exercise was less than budgeted. Postponed activities and commitments - Total EUR 163,284 includes: EUR 139,915 – Payment for Procurement of SLDs and local PSM costs postponed to the next reporting period EUR 2,377 – SRs fuel costs for December, payment transferred to next reporting period. EUR 20,635 – Committed payment for Cash Incentives (Sensitive & MDR) for December 2015 (Q4); EUR 357 – Project Management costs delayed to next reporting period, including fuel, postal cost, mobile service. Negative Variance EUR 155,432 – derived from the activities not budgeted in the cumulative period and actual costs that were greater than budgeted: EUR 40,649 - FX rate change for FLDs and GLC Mission payment. EUR 67,030 - Procurement of GeneXpert cartridges to meet the need for 2016-2017 years, part of the amount was budgeted in the previous reporting period and the other part in the year 2016. EUR 47,753 – Actual cost and quantity for lab supplies budgeted under the line 2.7 (a) was greater than projected; also Procurement of GeneXperts resulted in negative variance due to FX rate change
B23: 1b. Disbursements to sub-recipients | D23: 222441.2776 | E23: ='PR Cash Reconciliation_2A,B,C'!D41 -> 164245.3873 | F23: =IF(D23="",IF(E23="",0,D23-E23),D23-E23) -> 58195.89034 | G23: 0.7383763888 | H23: The reporting period relates to the activities performed by the TB center for July 2015-December 2015, but according to the contract, SR received reimbursement for June 2015-November 2015 services (EUR 164,245). Positive variance - EUR 58,196 includes: Saving EUR 37,658 - mainly unspent HR costs; less transportation incentives for patients; Commitments EUR 28,133 - December service cost reimbursed in January 2016. Negative Variance EUR 7,595 – The actual Training, vehicle maintenance and monitoring/supervision costs were greater in the current reporting period, due to postponed activities from the previous period. | J23: 816107.5589 | K23: ='PR Cash Reconciliation_2A,B,C'!D41+'PR Cash Reconciliation_2A,B,C'!C41 -> 576674.7273 | L23: =IF(J23="",IF(K23="",0,J23-K23),J23-K23) -> 239432.8316 | M23: 0.7066160839 | N23: The Budget relates to the activities performed by the TB Center in April 2014-December 2015. During the cumulative period SR received payment for April 2014-Novemebr 2015 services in the amount of EUR 549,489 and advance payment with remaining balance of EUR 27,186, available till the end of the contract 30/06/2016. The net variance in the amount of EUR 239,433 related to TB Center performance includes: Saving of EUR 238,486 (mainly unspent HR costs; less transportation incentives to patients; cheaper operational research rather than budgeted; unspent TA amount during the year 2014-2015, as all the needs were met through PR financing, including GLC/GDF missions, WHO Programme Review, etc.) Commitment for December service - EUR 28,133. Advance Payment reduces the positive variance by EUR 27,186.
B25: Procurement data for analytical purposes | D25: Budget for Reporting Period | E25: Actual Grant Cash Out-Flow - Cash Basis for Reporting Period | F25: Budget Vs Actual Variances | G25: Absorption Capacity | H25: Reasons for Variance | J25: Cumulative Budget through period of Progress Update | K25: Cumulative Actual Grant Cash-Outflow - Cash Basis through period of Progress Update | L25: Cumulative Budget Vs Actuals Variances | M25: Absorption Capacity | N25: Reasons for Variance
B26: 2. Total pharmaceutical & non-pharmaceutical incl. equipment expenditures vs. budget | D26: =D27+D28 -> 11700 | E26: =E27+E28 -> 593754.7141 | F26: =IF(D26="",IF(E26="","",D26-E26),D26-E26) -> -582054.7141 | G26: =E26/D26 -> 50.74826616 | J26: =J27+J28 -> 5738450.617 | K26: =K27+K28 -> 3057751.365 | L26: =IF(J26="",IF(K26="","",J26-K26),J26-K26) -> 2680699.252 | M26: =K26/J26 -> 0.5328531286
B27: 2a. Health Products- Pharmaceutical Products | D27: 0 | E27: 52241.72408 | F27: =IF(D27="",IF(E27="",0,D27-E27),D27-E27) -> -52241.72408 | G27: =E27/D27 ->  | H27: The budget relates to pharmaceuticals procured locally as well as through the GDF. The Negative variance EUR 52,242 is due to activities that were budgeted in the previous reporting period and postponed to Q3Q4 period: EUR 2,898 – Procurement of drugs for side effects carried out in current reporting period and budgeted in the previous period. EUR 49,344 – Payment for SLD order placed in December 2015, but budgeted in the previous reporting period. | J27: 4358024.97 | K27: 2258875.443 | L27: =IF(J27="",IF(K27="",0,J27-K27),J27-K27) -> 2099149.527 | M27: =K27/J27 -> 0.5183254935 | N27: The budget relates to pharmaceuticals procured locally as well as through the GDF. The variance is due to several reasons: Saving – Total EUR 1,988,277 includes: EUR 1,928,303 – Net saving in procurement of SLD include several reasons: recalculation of needs; tendency of decreasing prevalence of TB; BDQ Donation program provided the medicine free-of-charge; General tendency of decreasing cost of TB medicines through GDF; EUR 1,069 – Lines3.10 was cancelled (ref. PR letter to GF19/11/2014) as the pharmaceutical was included in the GDF Order (Act. 3.1.a) EUR 2997 –The activity was canceled. Procurement (water for injectibles) was carried out by TB Centre. EUR 55,908 – Cost of Procurement side effects drugs was less than budgeted due to the decreasing number of patients and low prices derived through the local procurement (tender). Commitment EUR 139,891 for SLD order placed in December 2015 Overspending: EUR 29,019 - FX rate change FLD order placed in 2014.
B28: 2b. Health Products - Non-Pharmaceuticals & Equipment | D28: 11700 | E28: 541512.99 | F28: =IF(D28="",IF(E28="",0,D28-E28),D28-E28) -> -529812.99 | G28: 46.28316154 | H28: The budget relates to internationally and locally procured lab supplies, consumables and equipment. Reasons for variance are following: Saving EUR 10,451 - GeneXpert actual calibration cost (part of the contract/invoice) was less than budgeted Negative Variance EUR 540,264 includes: EUR 249,878 – Procurement of Lab supplies and equipment carried to the current reporting period. EUR 290,386 – Procurement of GeneXpert cartridges to meet need for 2016-2017 years, part of the amount was budgeted in the previous reporting period and the other part in the year 2016. | J28: 1380425.647 | K28: 798875.9212 | L28: =IF(J28="",IF(K28="",0,J28-K28),J28-K28) -> 581549.7255 | M28: 0.5787170958 | N28: The budget relates to internationally and locally procured lab supplies, consumables and equipment. Reasons for variance are following: Saving EUR 696,333 is derived from procurement of lab supplies and respirators 1. Local procurement with competitive bidding with preceding market assessment derived significantly cheaper unit costs compared to the budgeted amounts; 2. Available stocks; 3. Re-calculation of average consumption rates; Overspending EUR 114,783 includes: EUR 67,030 - Procurement of GeneXpert cartridges to meet need for 2016-2017 years, part of the amount was budgeted in the previous reporting period and the other part in the year 2016. EUR 47,753 – Actual cost and quantity for lab supplies budgeted under the line 2.7 (a) was greater than projected; also Procurement of GeneXperts resulted in negative variance due to FX rate change
A31: For LFA Use Only
A32: E. Total Principal Recipient Budget Variance and Absorption Analysis
D34: Local Fund Agent (LFA)
D35: Budget for Reporting Period | E35: Actual Grant Expenditure - Cash Basis for Reporting Period | F35: Budget Vs Actual Variances | G35: Absorption Capacity | H35: LFA comments on thePrincipal Recipient's explanation of variances | J35: Cumulative Budget through period of Progress Update | K35: Cumulative Actual Grant Expenditure - Cash Basis through period of Progress Update | L35: Cumulative Budget Vs Actuals Variances | M35: Absorption Capacity | N35: LFA comments on the Principal Recipient's explanation of variances
B36: 1. Total Principal Recipient cash outflow vs. budget | D36: =SUM(D37:D38) -> 0 | E36: =SUM(E37:E38) -> 969934.3441 | F36: =IF(D36="",IF(E36="","",D36-E36),D36-E36) -> -969934.3441 | G36: =E36/D36 ->  | J36: =SUM(J37:J38) -> 0 | K36: 969934.3441 | L36: =IF(J36="",IF(K36="","",J36-K36),J36-K36) -> -969934.3441 | M36: =K36/J36 -> 
B37: 1a. Principal Recipient's total expenditures (including any direct-disbursements to third-parties) | D37: 0 | E37: ='PR Cash Reconciliation_2A,B,C'!H39+'PR Cash Reconciliation_2A,B,C'!H41+'PR Cash Reconciliation_2A,B,C'!H42 -> 920590.5041 | F37: =IF(D37="",IF(E37="",0,D37-E37),D37-E37) -> -920590.5041 | J37: 0 | K37: ='PR Cash Reconciliation_2A,B,C'!F39+'PR Cash Reconciliation_2A,B,C'!F41+'PR Cash Reconciliation_2A,B,C'!F42+E37 -> 920590.5041 | L37: =IF(J37="",IF(K37="",0,J37-K37),J37-K37) -> -920590.5041 | M37: =K37/J37 -> 
B38: 1b. Disbursements to sub-recipients | D38: 0 | E38: ='PR Cash Reconciliation_2A,B,C'!H40 -> 49343.84 | F38: =IF(D38="",IF(E38="",0,D38-E38),D38-E38) -> -49343.84 | J38: 0 | K38: ='PR Cash Reconciliation_2A,B,C'!F40+E38 -> 49343.84 | L38: =IF(J38="",IF(K38="",0,J38-K38),J38-K38) -> -49343.84
B40: Procurement data for analytical purposes | D40: Budget for Reporting Period | E40: Actual Grant Expenditure - Cash Basis for Reporting Period | F40: Budget Vs Actual Variances | G40: Absorption Capacity | H40: LFA comments on the Principal Recipient's explanation of variances | J40: Cumulative Budget through period of Progress Update | K40: Cumulative Actual Grant Expenditure - Cash Basis through period of Progress Update | L40: Cumulative Budget Vs Actuals Variances | M40: Absorption Capacity | N40: LFA comments on the Principal Recipient's explanation of variances
B41: 2. Total pharmaceutical & non-pharmaceutical incl. equipment expenditures vs. budget | D41: =D42+D43 -> 0 | E41: =E42+E43 -> 0 | F41: =IF(D41="",IF(E41="","",D41-E41),D41-E41) -> 0 | G41: =E41/D41 ->  | J41: =J42+J43 -> 0 | K41: =K42+K43 -> 0 | L41: =IF(J41="",IF(K41="","",J41-K41),J41-K41) -> 0 | M41: =K41/J41 -> 
B42: 2a. Health Products- Pharmaceutical Products | D42: 0 | E42: 0 | F42: =IF(D42="",IF(E42="",0,D42-E42),D42-E42) -> 0 | J42: 0 | K42: 0 | L42: =IF(J42="",IF(K42="",0,J42-K42),J42-K42) -> 0 | M42: =K42/J42 -> 
B43: 2b. Health Products - Non-Pharmaceuticals & Equipment | D43: 0 | E43: 0 | F43: =IF(D43="",IF(E43="",0,D43-E43),D43-E43) -> 0 | J43: 0 | K43: 0 | L43: =IF(J43="",IF(K43="",0,J43-K43),J43-K43) -> 0

Sheet Procurement_3
M1: Ongoing Progress Review and Disbursement Request
M2: PROGRESS UPDATE PERIOD
M3: Grant Name: | O3: =IF(#REF!="","",#REF!) -> 
M4: Progress Update - Reporting Period: | O4: Cycle: | P4: =+#REF! ->  | R4: Number: | U4: =+#REF! -> 
M5: Progress Update - Period Covered: | O5: Beginning Date: | P5: =+#REF! ->  | R5: End Date: | U5: =IF(#REF!="","",#REF!) -> 
M6: Progress Update - Number:
M9: Section 3A: PR - Procurement and Supply Management
S12: Comments
M13: 1. Have you updated the Price Quality Reporting (PQR) with the required information on the pharmaceuticals and health products received during the period covered by this PU/DR’ (if applicable)? If health products procurement information has not been entered into the PQR, please explain why. ! For further guidance on PQR data entry, please refer to the guidelines. | R13: Select | S13: All the info on applicable health products procurement within this reporting period was entered into the PQR. Following items procurement was processed and submitted accordingly: Second line anti -Tb drugs procured through GDF/IDA: 1. Moxifloxacin -PO# GF-T/SSP/G-56; inv no GEO/DP/14/4364-GS14440 2. Bedaquiline- PO#GF-T/SSP/G-56, inv no GEO/DP/14/4376-GS14441; 3. Prothionamide 250mg tab ,Clarithromycin 500mg tab, Amoxicillin+Clavulanate - FDC 500mg/125mg tab, Capreomycin 1g powder for inj, PAS Sodium 5.52g (equiv 4g PAS) powder for oral sol/susp Sachet - 25 X 4g, Cycloserine 250mg Caps, Imipenem+Cilastatin inj. 1g (500mg+500mg) powder for inj., Bedaquiline 100mg tab, Linezolide 600mg tab, Clofazimine 100mg - PO # GF-T/SSP/G-56, INV GEO/DP/14/4364-GS14440 4. TB testing consumables/test kits BACTEC MGIT 960 Supplement Kit 100s [245124] BD Biosciences TB testing consumables/test kits BACTEC MGIT 960 SIRE Kit 40s [245123] BACTEC MGIT 960 PZA Drug Kit 50s [245128] BD Biosciences TB testing consumables/test kits BBL MGIT 7 ml Tube (100 tests) [245122] BD Biosciences TB testing consumables/test kits BACTEC MGIT 960 PZA Medium 25s [245115]- PO#GF- T/ET/G-158/1;INV #ელ-0195724088; 5.TB molecular diagnostics -Hain Lifescience GmbH - GenoTypeMTBDR plus tests 12s, 96s [304A, 30496A], - GenoType MTBDRsl 12s, 96s [317, 31796] ; 6. TB testing consumables/test kits -SD BIOLINE TB Ag MPT64 Rapid [08FK50]
M15: 2. Based on the most up-to-date stock situation, are there any risks of stock-outs or expiries for the key pharmaceuticals & health products, listed below, at the central level in the next period of implementation? If yes, please comment.
M16: Key Pharmaceuticals & Health Products | O16: Risk of Stock-Out | P16: Risk of Expiry | Q16: Comment (if yes, please provide information on the specific items that are at risk of stock-out or expiry)
M17: 1. Anti-malaria medicines | O17: N/A | P17: N/A
M18: 2. Bed nets | O18: N/A | P18: N/A
M19: 3. In-Vitro Diagnostic Products | O19: No | P19: No
M20: 4. Condoms | O20: N/A | P20: N/A
M21: 5. Anti-retrovirals | O21: N/A | P21: N/A
M22: 6. Anti-TB medicines | O22: Yes | P22: Yes | Q22: About 23,000 vials of Kanamycin will expire in coming 6 months.
M23: 7. Lab supplies (e.g. CD4, Viral Load, Cartridges…) | O23: No | P23: No
M24: 8. Other (Please specify in the "Comment" column) | O24: No | P24: No
M26: 3. Comment on additional issues related to the procurement and supply management of pharmaceuticals and health products.
M27: "Global test" was contracted for quality check of 5 Anti - TB drugs using the competitive selection (e-tender). Sampling was made in Tbilisi , Batumi and Zugdidi TB facilities. Following products were tested: 1. Capreomycin for Injection . Pwder, 1g , Vianex S.A. Greec 4 0NA 2 0 2. PAS , 5.52 g , Olainfarm, Latvia 15 0 NA 2 0 3. Levofloxacin tabs, 250 mg , Micro Labs Hosur, india 1 0 NA 1 0 4. Sinerdol ( Rifampicin) caps, "Antibiotice S.A. Romania 1 0 NA 1 0 5. Rifampicin 150mg/ Isoniazid 75 mg/ Pirazinamid 400 mg/ Ethambutol Hidrochlorid 275 mg, 24/28 2 0NA 2 0 No batches with out-of -specification results observed. Period of reporting: 1 Sept 2014 - 1 November 2015
M29: For LFA Use Only
M32: Section 3B: LFA-Verified Procurement and Supply Management Information
O35: PR's response | P35: LFA's response | Q35: LFA Comments/Analysis
M36: 1a. Has the PR updated the Price Quality Reporting (PQR) with the required information on the pharmaceuticals and health products received during the period covered by this PU/DR’ (if applicable)? (If health products procurement information has not been entered into the PQR, please explain why in comments box) | O36: =R13 -> Select | P36: Select
M38: 1b. Value of Pharmaceuticals and Health Products in the PQR (6 categories only)
M39: (!) This table is included in the PU/DR form with the aim to improve completeness of information in the PQR system and not for comparing PQR amounts vis-à-vis expenditure per se. NB: PQR and expenditure amounts on health products may not be equal due to a timelag between payments and delivery of pharmaceuticals/health products. (!) For further guidance on PQR data entry, please refer to the guidelines.
M40: Reporting Currency
M41: PQR Product Categories | O41: Value of products received during reporting period | P41: Value of products entered by the PR and verified as correct by the LFA in the PQR during reporting period | Q41: Variance | R41: Reason for Variance | T41: Cumulative value of products received since the start of the grant | U41: Cumulative value of products verified as correct by the LFA in the PQR since the start of the grant | V41: Variance | W41: Reason for Variance
M42: 1. Anti-malaria medicines | Q42: =IF(O42="",IF(P42="","",O42-P42),O42-P42) ->  | V42: =IF(T42="",IF(U42="","",T42-U42),T42-U42) -> 
M43: 2. Bed nets
M44: 3. In-Vitro Diagnostic Products
M45: 4. Condoms
M46: 5. Anti-retrovirals
M47: 6. Anti-TB medicines
M48: 7. Indoor Residual Spraying (IRS)
M49: Total | O49: =SUM(O42:O48) -> 0 | P49: =SUM(P42:P48) -> 0 | Q49: =SUM(Q42:Q48) -> 0 | T49: =SUM(T42:T48) -> 0 | U49: =SUM(U42:U48) -> 0 | V49: =SUM(V42:V48) -> 0
M51: 2. Based on best information available to the LFA, are there any risks of drug stock-out or expiries at the central level in the next period of implementation? (If yes, please explain in comments box) ! This section should be completed by the LFA based on best information on stock at the central level available to the LFA and should not require dedicated visits for on-site checks of stocks.
M52: Key Pharmaceuticals & Health Products | O52: Risk of Stock-Out | P52: Risk of Expiry | Q52: Comment (if yes, please provide information on the specific items that are at risk of stock-out or expiry)
M53: 1. Anti-malaria medicines | O53: Select | P53: Select
M54: 2. Bed nets | O54: Select | P54: Select
M55: 3. In-Vitro Diagnostic Products | O55: Select | P55: Select
M56: 4. Condoms | O56: Select | P56: Select
M57: 5. Anti-retrovirals | O57: Select | P57: Select
M58: 6. Anti-TB medicines | O58: Select | P58: Select
M59: 7. Lab supplies (e.g. CD4, Viral Load, Cartridges…) | O59: Select | P59: Select
M60: 8. Other (Please specify in the "Comment" column) | O60: Select | P60: Select
M63: 3. LFA analysis of issues related to the procurement and supply management of pharmaceuticals and health products

Sheet Grant Management_4
B1: On-going Progress Update and Disbursement Request
B2: PROGRESS UPDATE PERIOD
B3: Grant Name: | E3: =IF(#REF!="","",#REF!) -> 
B4: Progress Update - Reporting Period: | E4: Cycle: | F4: =+#REF! ->  | G4: Number: | H4: =+#REF! -> 
B5: Progress Update - Period Covered: | E5: Beginning Date: | F5: =IF(#REF!="","",#REF!) ->  | G5: End Date: | H5: =IF(#REF!="","",#REF!) -> 
B6: Progress Update - Number:
B8: Section 4: Grant Management
B10: A. PR and LFA Comments on the Fulfilment of Conditions Precedent and/or Special Conditions Under the Grant Agreement
B12: ! Please include in this table the Condition Precedent number as per Grant Agreement and full text of Conditions Precedent and/or other special conditions due for fulfilment during this period or outstanding from previous periods. ! Some Special Conditions may apply to more than one period of grant implementation. Their fulfilment during one period does not automatically imply fulfilment in subsequent periods. The LFA should verify that the status of such conditions is reported by the PR during each period concerned. | N12: For LFA Use Only | X12: For the Global Fund Use Only
B13: Conditions Precedent and/or other special conditions | G13: Status | H13: PR Comments on Progress of Implementation | N13: Status | O13: LFA Analysis (this should not be a "Copy and Paste" of the comments provided by the PR) | X13: Validate Status | Y13: Country Team Comments
B14: CP3. Condition Precedent to Use of Funds for procurement of Second-Line Anti-Tuberculosis Drugs Prior to the use of Grant funds by the Principal Recipient to finance the procurement of second-line anti-tuberculosis drugs, the Principal Recipient shall deliver to the Global Fund the following items, each in form and substance satisfactory to the Global Fund: a. A current detailed MDR-TB expansion plan (including the number of MDR-TB patients to be treated and the list and quantifications of the medicines to be procured for the MDR-TB program reflecting the Principal Recipient's finalized forecast for the Grant implementation period covered by this Agreement); and b. The national guidelines for programmatic management of MDR-TB, both of which have been developed in collaboration with a technical partner acceptable to the Global Fund. | G14: Met | H14: This condition is ongoing. The condition was met for procurement of the SLDs for the year of 2015 (Orders to GDF as per approved quantifications by TGF, no. SLD GEO/DP/14/ 4356, GEOjDP/14/4364, GEO/DP/14/4376) And the new SLD Order (bi-laterally signed invoices #15000836SQ, and 15000837SQ were submitted to GDF on December 14, 2015). The Order reflects forecast for the years of 2016 -2017 with quantifications approved by TGF and WHO Euro. The next Order is scheduled to take place in March (BDQ) and June, 2016 Bedaquiline Implementation Plan was developed and approved by the Global Fund on 2 April 2015. The updated National Guideline for Programmatic Management of MDR-TB was approved on 6 August, 2015 by the MoLHSA Guideline Board. | N14: Select | X14: =N14 -> Select
B15: SC1. No later than 30 June 2016, the CCM shall, or the Principal Recipient shall cause the CCM to, submit a Budgeted Sustainability Plan for governmental take-over of financing for the first line TB medicines during the second year of the implementation, and gradual take-over of financing for the NTP by the end of the second implementation period, which at a minimum shall include the financing of second-line anti- tuberculosis medicines and patient support. | G15: Met | H15: The calculations implying gradual handover of the financial responsibilities to the government in 2016-2019 were drafted and integrated in the respective MTEF, as well as are stipulated under the National TB Strategy/Action Plan 2016-2020; The state budget law, 2016 integrates additional governmental commitments at 996,000GEL. The amount covers funding for cash incentives for 225 beneficiaries (including the income tax), procurement of SLDs (fully) and co-funding of laboratory tests (bacterioscopy and solid media investigations) and supplies (masks/respirators). Procurement of FLDs was carried out in November, 2015 using the GDF mechanism and fully financed via the state budget with the total value of 153,880.38 USD. | N15: Select | X15: =N15 -> Select
B16: SC2. No later than 30 days prior to a scheduled cash transfer that includes funds for the procurement of MDR-TB medicines, the Principal Recipient shall deliver to the Global Fund a pro forma invoice issued by the designated Procurement Agent of the Global Drug Facility, as delegated by the Green Light Committee Initiative. | G16: Met | H16: The condition was met for procurement of the medicines for the MDR-TB treatment for year 2015 (orders to GDF as per approved quantifications by the Global Fund, SLD GEO/ DP/14/ 4356, GEO/DP/14/4364, GEO/DP/14/4376). Bi-laterally signed invoices #15000836SQ, and 15000837SQ related to the SLD procurement were submitted to GDF on December 14, 2015 | N16: Select | X16: Select
B17: SC3 The Principal Recipient shall cooperate with the Green Light Committee (the "GLC") in GLC's efforts to provide technical support and assistance to the Principal Recipient with respect to monitoring and the scaling-up of MDR-TB-related services provided in Georgia. Accordingly, the Principal Recipient shall budget and authorize the Global Fund to disburse up to a maximum of US$ 5o,ooo, or such lower amount as may be agreed between the GLC and the Global Fund, each year to pay for the GLC services. | G17: Met | H17: The GLC fees are reflected in the GEO-T-NCDC Budget. GLC mission to Georgia took place on October 26-31, 2015 (rGLC EUROPE/Europe consultant Dr. Manfred Danilovits) | N17: Select | X17: Select
B18: SC4 No later than 31 December, 2015, the Government of Georgia shall, or the Principal Recipient shall cause the Government of Georgia to, prepare and provide a formal document describing the tuberculosis program coordination mechanisms, with clear segregation of the roles and responsibilities among the implementing entities in Georgia. | E18: Select | G18: Met | H18: The National TB Strategy/Action Plan Post-2016 integrates proposed model of TB governance with costed operational strategies implying all necessary components of TB service delivery, including coordination mechanisms, with clear segregation of the roles and responsibilities among the implementing entities in Georgia, etc. The document represents an integral part of the NFM application package and was approved by CCM. before its submission to the TGF on July, 2015. At the moment the TB NSP is undergoing formal procedures required for approval by the Cabinet of Ministers, similarly to the HIV Strategy (the state chancellery requested to put the document in the specific format for further processing). The National TB Council held three meetings in 2015. The latest meeting on July 15, 2015 was devoted to discussion on the final draft TB Law. | N18: Select | X18: Select
B19: SC5 No later than 31 July 2015, the CCM shall, or the Principal Recipient shall cause the CCM to, deliver the National Tuberculosis Strategy, approved by the relevant government bodies, which shall clearly specify and describe the full organizational structure, including a central body responsible for TB services in Georgia. | G19: Met | H19: The National TB Strategy/Action Plan Post 2016 was developed and reviewed by WHO Euro. The positive feedback was obtained. The document was approved by CCM. The NSP reflects and clearly describes the full organizational structure for TB service delivery in Georgia, including a central coordination and governing body (National TB Council). At the moment the TB NSP is undergoing formal procedures required for approval by the Cabinet of Ministers, similarly to the HIV Strategy (the state chancellery requested to put the document in the specific format for further processing). | N19: Select | X19: Select
E20: Select | G20: Select | N20: Select | X20: Select
E21: Select | G21: Select | N21: Select | X21: Select
G22: Select | N22: Select | X22: Select
E23: Select | G23: Select | N23: Select | X23: Select
G24: Select | N24: Select | X24: Select
G25: Select | N25: Select | X25: Select
E26: Select | G26: Select | N26: Select | X26: Select
E27: Select | G27: Select | N27: Select | X27: Select
E28: Select | G28: Select | N28: Select | X28: =N28 -> Select
E29: Select | G29: Select | N29: Select | X29: Select
E30: Select | G30: Select | N30: Select | X30: Select
E31: Select | G31: Select | N31: Select | X31: Select
E32: Select | G32: Select | N32: Select | X32: Select
E33: Select | G33: Select | N33: Select | X33: Select
E34: Select | G34: Select | N34: Select | X34: Select
E35: Select | G35: Select | N35: Select | X35: Select
E36: Select | G36: Select | N36: Select | X36: Select
E37: Select | G37: Select | N37: Select | X37: Select
E38: Select | G38: Select | N38: Select | X38: Select
E39: Select | G39: Select | N39: Select | X39: Select
E40: Select | G40: Select | N40: Select | X40: Select
E41: Select | G41: Select | N41: Select | X41: Select
E42: Select | G42: Select | N42: Select | X42: Select
E43: Select | G43: Select | N43: Select | X43: Select
G44: Select | N44: Select | X44: Select
G45: Select
G46: Select
G47: Select
G48: Select
G49: Select
G51: Select
G52: Select
G53: Select
B55: B. PR & LFA Review of Progress on Implementation of Outstanding Management Actions from Previous Disbursements
B56: ! Please list all issues raised in the last Performance Letter from the Global Fund or outstanding from previous Performance Letters, and comment on the progress. Please include the date of the Performance Letter and the item number.
N57: For LFA Use Only | X57: For the Global Fund Use Only
B58: Global Fund Management Actions | G58: Status | H58: PR Comments on Progress of Implementation | N58: Status | O58: LFA Review of PR Progress on Global Fund Management Actions | X58: Validate Status | Y58: Country Team Comments of PR Progress on Global Fund Management Actions
B59: M&E Issue 1: Reporting results for the indicator 3•4 "Laboratory-confirmed X/MDR-TB patients enrolled on second line anti-TB treatment in the specified calendar year" Required action: The PR is requested to ensure that the reporting for the indicator 3-4 is based on the actual number of the XDR/MDR-TB patients' as registered in the admissions forms and these results are included in the next progress updates. Timeline: ongoing | G59: Met | H59: PR worked with SR to ensure that the reporting on the said indicators is based on the actual number of the XDR/MDR-TB patients' as registered in the admissions forms. These results are included in the present progress update. | N59: Select | X59: =N59 -> Select
B60: M&E Issue 2: Management of the patients' registry in the Health Management System Required action: The Global Fund notes with concern this data quality issue and requests the PR to follow up with the SR to ensure that the patients' registry is completed and all required information is entered into the system. Timeline: ongoing.The PR is requested to update on the implementation of this management action with the next progress update by no later than 14 August 2015. | G60: Met | H60: PR is working with SR to support improving data-entry processes, including communicating the issue with management, articulating the issue at the meetings with SR staff, as well as by using official correspondence. As a part of his weekly routine M&E officer checks the progress on data entry. It should be emphasized that the process had significantly been improved since initiation of the current grant, though the compliance will further improved as the TB module is fully operationalized. | N60: Select | X60: =N60 -> Select
B61: M&E Issue 3: Reporting on the Impact and Outcome Indicators; Revision of Performance Framework Required action: a) The PR is requested to submit revised Performance Framework for the approval of the Global Fund which includes the targets set according to the latest methodology developed by the WHO. b) The PR is requested to submit revised Performance Framework to update the definitions of the reporting for cohorts according to the WH0 guidelines. c) The PR is requested to submit revised Performance Framework and exclude the line (3) "other retreatment cases" from the comments section of the indicator 3.1. Timeline: 15July 2015 | G61: Met | H61: All required changes were reflected in the PF and submitted to the TGF for approval on July 15. The approval was obtained with the Implementation Letter 2 on August 12. | N61: Select | X61: Select
B62: FM&S Issue 1: Recommendations to be addressed from the Audit of fiscal year 2014 Required Action: During the preparation for the Audit review of the financial statements for fiscal year 2015 we recommend the PR: a) To bring to the Secretariat's attention any specific regulations applied to the PR reporting and preparation of the financial statements, well in advance. The PR is requested to disclose these requirements already at the stage of review and approval of the TORs for the Audit of Financial Statements for fiscal year 2015. b) To further develop and refine the process of preparing the financial statements. c) To ensure that the procedures and related deadlines for all staff involved in preparation of the financial statements are developed in advance and formally documented. Timeline: The PR should submit to the Secretariat the TORs for the Audit review of the financial statements for fiscal year 2015 addressing the actions outlined by no later than 31July 2015. | G62: Met | H62: The required actions were taken/recommendations are considered and followed precisely. ToR was submitted to the TGF for review per indicated deadline. The actual service is procured and the Audit process is underway by BDO. | N62: Select | X62: Select
B63: FM&S Issue 2: Recording the expenditures in existing bookkeeping system Required Action: a) The PR is expected to follow up on the integration of the new financial software in existing accounting systems. While this activity should have been implemented during the last reporting period and was postponed, the PR is requested to ensure that the transition is completed before the end of fiscal year 2015. Additionally, the Secretariat recommends the PR and SRs to produce semi-annual and monthly reports while reconciling between the financial reports and other accounting data, using MS Excel. b) The PR is requested to ensure that further automation process is taking place, to better facilitate the process of gathering information for the preparation of the grant program financial statements. Additionally, the PR should explore options to incorporate the accounting of PP and HPHE in the new financial software during its integration with the existing accounting systems by the end of fiscal year 2015. Timeline: The PR is requested to report on the progress made concerning the management actions outlined above with the submission of the next progress update by no later than 14 August 2015. | G63: Unmet - In Progress | H63: PR and SR’s have integrated budget categories and lines in their existing accounting software and reports are reconciled with the accounting data on regular basis. Series of meetings were conducted with almost all representatives of the ERP market in Georgia, particularly Exact Georgia, Microsoft Georgia, UGT, Direct Solutions, Railway IT and IBS. Development of ERP has already been initiated. From October, 2015 for the phase 1 of ERP development the local consultant was hired to develop a detailed system requirements. The tender documents will be finalized and announcement will be made during the Q1 of 2016 within the GEO-T-NCDC grant. Meanwhile, the ToR was placed at the state procurement website for the purpose of market assessment. Two companies espressed its interest to participate in the forthcoming tender. It is anticipated that the ERP development process will be completed and the system will be piloted at the end of 2016. The necessary adjustments will be made during the first semester of 2017. NCDC started using of the Software for logistic PP and HPHE from 2015. Information regarding GF PIU assets was provided to the LIMS software managers two times during the last year - as of January 1st positions and of Jane 1st positions. However, during the roll out period some technical issues raised by NCDC logistic staff regarding the system, which is now under review (DITRA GH2 project in collaboration with USAD HSSP proved support to NCDC). PR made a decision to develop independent system from NCDC LIMS as a part of the ERP which will be piloted by the end of 2016. Meantime the excel based system is implied. | N63: Select | X63: Select
B64: HIMS Issue 3: Health Management System Module and reporting on cash incentive scheme Action required: The PR is invited to explore the options which will allow to enhance the HMIS module and the data recording mechanism currently being used, in order to facilitate the reporting on the indicators and to be able to generate the updates on the implementation of the cash incentive scheme. The PR is requested to report on the available options and on possible solutions which could enhance the module. Timeline: with submission of the next progress update by no later than 14 August 2015. | G64: Met | H64: The required action was taken: issue was communicated with USAID/HSSP and the respective changes were made to the software, enabling it to generate the reports on the number of patients who had received cash incentives at given period of time | N64: Select | X64: Select
B65: OSDV 2015 Issue 1 (moderate) The contracts of most of TB treatment units being under management of private entities will expire next year and those private health institutions will not be obliged anymore to provide TB treatment services. As a result there is a risk that in 2016 the mentioned health institutions can change their profile and stop providing TB treatment services to their patients. Timeline: end of 2015 Recommendation: PR should investigate this issue with the Ministry of Health and try to find a sustainable solution. | G65: Met | H65: The issue goes far beyond the control of PIU. The rights of the private entities are regulated through the respective legislation. The MoLHSA is well aware with the topic and closely following processes using available legal mechanisms to address the issue. Though we found minor inconsistency – as the agreements with private providers were signed back in 2011-2012 (double-checked). The providers committed to keep TB service points for the coming 7 years, i.e. minimum 2018. Though it was non-standard case of one TB service delivery point in Tbilisi located at the private institution. The management of the facility requested the TB point to move. The MoLHSA reacted immediately and the alternative venue (state-owned) for the TB service point was provided. In-line with the NSP post-2016 over the next program period, a number of measures are planned under the NFM to facilitate the provision of TB services by private providers. To uphold universal access to essential TB care in all areas of the country, the tasks and responsibilities of private providers will be formalized in annual service contracts with MoLHSA / SSA. These agreements will stipulate in detail the scope and volume of services to be provided. The payment conditions will be clearly articulated in the contracts, according to the payments methods (see above under financing and allocation). Additionally, the modes of cooperation, related to referrals and other processes, between private medical centers and public institutions (NCDCPH territorial units and laboratories, public hospitals) will be elaborated. | N65: Select | X65: Select
B66: OSDV 2015 Issue 2 (minor) In the drug inventory documents checked, the batch numbers and expiry dates for TB drugs were not specified (for both FLDs and SLDs). Furthermore, the pharmacy of NCTBLD doesn't indicate the batch numbers and corresponding expiry dates in "handling over documents/acts" that accompany drugs when they are supplied to the regional facilities and SDPs. Timeline: 31 December, 2015 Recommendation: All inventory documents should consistently carry the batch numbers and corresponding expiry dates for all TB drugs (both FLDs and SLDs) all along the distribution chain at all levels. | G66: Met | H66: PR worked closely with SR to follow with the issue on the batch numbers. For all medicines procured through the GEO-T-NCDC – numbers were incorporated within the warehouse el. registry (starting date January 2015). So, the NCTBLD pharmacy indicates/marks the batch numbers and corresponding drug expiry dates in the handover documents/acts accompanying drugs. As for the drugs delivered before the launch of the current Grant, SR is not able to incorporate it into the registry due to technical issues –the system does not allow entering data retrospectively. It was agreed with SR that the batch numbers will be entered manually into the handover documents/acts accompanying drugs at all levels - from central to regional and from regional to district/village level. | N66: Select | X66: Select
B67: OSDV 2015 Issue 3 (minor) There is no mechanism to allow for the redistribution of short-dated medicines. This results in a wastage of significant amount of drugs. Timeline: 31 December, 2015 Recommendation: 1. The PR should ensure that they routinely receive information on the shelf-life and stock-levels of TB medicines. 2. The PR should work with relevant stakeholders to develop a mechanism that enables either more frequent distribution with less stock-holding at SDPs or the redistribution of short-dated medicines in an effort to decrease wastage. | G67: Met | H67: PR has worked to identify the best mechanism to address this problem, such as short shelf-life drugs are ordered for shorter periods with zero buffer stock and with several shipments; monthly reports on stock at hand are obtained from SR including the information on expiration date; drugs are distributed on monthly basis, compared to the previously adopted quarterly based distribution. | N67: Select | X67: Select
G68: Select | N68: Select | X68: Select
G69: Select | N69: Select | X69: Select
G70: Select | N70: Select | X70: Select
G71: Select | N71: Select | X71: Select
G72: Select | N72: Select | X72: Select
G73: Select | N73: Select | X73: =N73 -> Select
G74: Select | N74: Select | X74: Select
G75: Select | N75: Select | X75: Select
G76: Select | N76: Select | X76: Select
G77: Select | N77: Select | X77: Select
G78: Select | N78: Select | X78: Select
G79: Select | N79: Select | X79: Select
G80: Select | N80: Select | X80: Select
G81: Select | N81: Select | X81: Select
G82: Select | N82: Select | X82: Select
G83: Select | N83: Select | X83: Select
G84: Select | N84: Select | X84: Select
G85: Select | N85: Select | X85: Select
G86: Select | N86: Select | X86: Select
G87: Select | N87: Select | X87: Select
G88: Select | N88: Select | X88: Select
G89: Select | N89: Select | X89: Select
B99: C. Comments on Annual Grant Reporting Requirements
B101: ! Please indicate a date for the report due for submission. If a report is overdue, indicate the original due date and explain the reason for delay. | N101: For LFA Use Only | X101: For the Global Fund Use Only
B102: Required Documentation | F102: Due date (dd-mmm-yy) | G102: Status | H102: Comments | N102: Due date (dd-mmm-yy) | P102: Status | T102: Comments | X102: Due date (dd-mmm-yy) | Y102: Validate Status | AC102: Country Team Comments
B103: PR Audit Report | F103: 2016-03-30 | G103: Preparation on track
B104: Annual Financial Report (AFR) / Enhanced Financial Report (EFR) | F104: 2016-03-15 | G104: Submitted to GF | H104: Part of the current submission

Sheet PR-LFA Evaluation_5
A1: Ongoing Progress Update and Disbursement Request
A2: PROGRESS UPDATE PERIOD
A3: Grant Name: | C3: =#REF! -> 
A4: Progress Update - Reporting Period: | C4: Cycle: | D4: =IF(#REF!="Select","",#REF!) ->  | E4: Number: | F4: =IF(#REF!="Select","",#REF!) -> 
A5: Progress Update - Period Covered: | C5: Beginning Date: | D5: =IF(#REF!="","",#REF!) ->  | E5: End Date: | F5: =IF(#REF!="","",#REF!) -> 
A6: Progress Update - Number: | C6: =IF(#REF!="Select","",#REF!) -> 
A8: Section 5: PR and LFA Evaluation of Overall Performance
A10: A. PR's Overall Self-Evaluation of Grant Performance (including a summary of how financial performance is linked to programmatic achievements)
A11: ! The self-evaluation should be undertaken by taking into account programmatic achievements, financial performance and program issues in various functional areas (M&E, Finance, Procurement, and Program Management, including management of Sub-Recipients). See Guidelines for more detailed guidance.
A12: The year of 2015 was groundbreaking for the National TB Program of Georgia in many ways, i.e.: under the auspices of the CCM the National Strategy for TB control 2016-2020 was developed with following submission of TB Proposal for the New Funding Model (NFM) and Its approval by the Technical Review Committee (TRP). The Government of Georgia carried out procurement of the 1st line anti-TB medicines (total budget 153,880.38 USD) through the State budget. Meanwhile calculations implying gradual handover of the financial responsibilities to the Government of Georgia in 2016-2019 were drafted to be further integrated in the respective MTEF. The state budget law, 2016 comprising additional governmental commitments at 996,000 GEL was approved in December, 2015. The amount covers funding for cash incentive for 225 beneficiaries (including the income tax), procurement of FLDs (fully) and co-funding of laboratory tests (bacterioscopy and solid media investigations) and supplies (masks/respirators). Furthermore, the new law on the TB, integrating the concept of social support mechanisms for TB patients, using cash incentives was passed by the Parliament of Georgia on December 11, 2015. The deadline for development and mainstreaming of entire legislative acts under the law is stipulated as January 1, 2017. The Decree of the Minister of Labour, Health and Social Affairs requesting the TB service-providers country-wide to initiate data recording and reporting using the TB module starting 1 May, 2015 was issued. For the purpose of making the process of module mainstreaming smooth, individual work with TB providers throughout the country is underway (supported through the USAID/URC/TPP). The tool was handed-over to the MoLHSA and, at the moment, over 80% TB service delivery points country-wide are using the TB module. The MoLHSA is strongly committed to mainstream the effective PV approaches within the system in-line with the Bedaquiline Development Plan. The PV working group was established at the NTBLD and together with Drug Regulation Agency, MSF and USAID DIAPS technical support, the country made decision on required PV type and elaborated respective forms. At the moment these documents are submitted to the MoLHSA and awaiting for being integrated into the Order by the Minister of Health #167ნ as of August 7, 2013 on ‘The Procedure of Information Channeling on the Drug Side Effects’. For the purpose of strengthening capacity, the respective staff of the Drug Regulation Agency participated in the 17th international pharmacovigilance training course by UPSALA. The National TB Program provided access to the new drugs in-line with the updated disease management guidelines per WHO recommendations in 2015. Through the support of the USAID Donation Program, country received BDQ for the complete treatment course of 132 patients (at the moment we are awaiting for 34 patient treatment courses remaining under 2015 order). In order to ensure effective implementation of the new treatment regimens, the Mobile Consillium practice was introduced, thus enabling enrolment of Multidrug resistant (MDR) TB patients at the regional level. Furthermore, the National TB Program mainstreamed the monitoring scheme for patients under the new treatment regimens to improve management of treatment side effects. To ensure smooth operationalization of the monitoring scheme, TGF TB Program procured required equipment (ECGs, defibrillators, audiometers). Georgia has mainstreamed the nowel diagnostic methods recognized by the WHO: in 2015, nine GeneXpert machines were procured and operationalized at the penitentiary system and NCDC LSSs country-wide. It is worth emphasizing that during the initial three quarters out of 626 cases diagnosed at NCDC regional labs (LSS/ZDL) 49% (308 cases) were reviled via GeneXpert technology. Microscopic examinations were not able to detect mycobacteria in these samples (smear negative cases). As mentioned earlier, procurement of the FLDs was fully covered via state budget law. As for the SLDs, procurement was carried out on December 14, 2015 with overall value at: 387,151.41USD. The said procurement was carried out through the GDF mechanism ensuing cost-effectiveness and compliance to the quality standards. The Program provides cash incentives to patients that manifest full adherence to treatment, using funding from TGF and State Budget Law. The preliminary assessment of the Cash Incentive Scheme for MDR TB patients shown 42% decrease in lost to follow-up rate (35% for 2013 cohort, 20% for 2014 cohort). The last years’ trends for downsizing in appearance of new TB cases was maintained in 2015. In other words, implementation of the GEO-T-NCDC as an integral part of the National TB Program goes in-line with planned objectives, activities and time-lines. Uninterrupted supply of treatment and diagnostic services to TB patients is well-facilitated, as well as supervision and monitoring processes. The latter is reflected in the overall grant performance-the top 10 indicators. Furthermore, all management actions raised within the MA EECA/TS/218-01/07/2015 were taken into account as articulated in the respective section of the PU/DR (PR Grant Management 2). Financial management: the two critical components of this work are a) external to Georgia - communication with the donor (GFATM), and b) internal to Georgia – communication and reporting with the Ministries of Health and Finance, with NCDC, state statistics department, tax authorities, state revenue service, suppliers, service providers, etc. The former is smooth and efficient, which helps the stable and robust operations. In 2015 year PR has timely completed the submission of the regular PU reporting. Also, met all of the donor’s additional ad-hoc requests on the provision of financial and/or operational data. This includes PR/SR end-of month balances/receivables/payables, grant fund receipts and payments to third parties, etc. The PR has successfully procured audit service for the year 2015 through tender and contract is signed with BDO. The Audit of Consolidated financial statements is ongoing and audit report will be submitted timely by the end of March. PR received Eur 1,319K worth of one transfer from GFATM during the current reporting period. In addition, one direct payment to vendors, with total worth of Eur 49,3K was completed. PR paid total of Eur 920K to the vendors/providers/patients during the current reporting period. PR manages VAT smoothly. The first refund, followed by several refunds was completed in the second half of year 2015. The total refunded amount comprise EUR 37,345. The surplus of refundable VAT on the State Revenue Service system amounts EUR 2,740 as of 31/12/2015 and additional EUR 6000 is submitted as surplus in the year 2016. PR effectively manages TB Cash Incentive Scheme. Total cash incentives paid in the current reporting period is EUR 130 K (in addition EUR 65K was financed by the state budget- income tax and monthly 150 MDR patients) and covered period through May, 2015-November, 2015 for both MDR and sensitive TB patients.
A18: B. Planned Changes in the Program, if any
A25: C. External factors beyond the control of the Principal Recipient that have impacted or may impact the Program
A26: NCDC initiated discussion with GDF/IDA in April, 2015 to make necessary amendments to the SLD Orders made back in 2014 (GEO/DP/14/4364, GEO/DP/14/4376). It was decided to reschedule delivery of some items (Linezolid, PAS, Cycloserine, Prothio, Amoxiclave and Clofazimine) and abolish Clarithromycin order as per the most recent WHO recommendation. The process was preceded with multiple consultations and situation analysis carried out together with NCTBLD and USAID TA and in coordination with TGF and GDF. The country was very careful in terms of receiving the full order as the preparation for introduction of the new MDR treatment regimens was underway. The roll-out of the new regimens was supposed to start by BDQ and Linezolid arrival in Georgia. So, the actual data/evidence on the consumption rates of drugs including both new and previously used, in the context of the new treatment regimens, was not available and at least 3 month evidence was needed to be precise in terms of projections. In other words, the context was unique compared to the previous period, as Georgia was initiating completely different approach to MDR management in Georgia. In other words, the orders were re-scheduled and lessons learned and experience gained through this exercise was worthy while making the recent SLD order in 2015.
A32: For LFA Use Only
A34: A. LFA Overall Evaluation and Rating of Grant Performance (including a summary of how financial performance is linked to programmatic achievements)
A35: ! The evaluation should be undertaken by taking into account programmatic achievements, financial performance and program issues in various functional areas (M&E, Finance, Procurement, and Program Management, including management of sub-recipients). See Guidelines for more detailed guidance on the completion of this section.
A37: Indicator rating | B37: Select | D37: Any major management issues resulting in downgrade? | E37: Select | G37: Overall Grant Rating | H37: Select
A46: B. LFA comments on PR planned changes in the program, if any
A55: C. LFA Comments on External Factors Beyond Control of the Principal Recipients that have impacted or may impact program

Sheet LFA_Findings&Recommendations_6
A1: Ongoing Progress Review and Disbursement Request
A2: DISBURSEMENT REQUEST
A3: Grant Name: | C3: =IF(#REF!="","",#REF!) -> 
A4: Progress Update - Reporting Period: | C4: Cycle: | D4: =IF(#REF!="Select","",#REF!) ->  | E4: Number: | F4: =IF(#REF!="Select","",#REF!) -> 
A5: Progress Update - Period Covered: | C5: Beginning Date: | D5: =IF(#REF!="","",#REF!) ->  | E5: End Date: | F5: =IF(#REF!="","",#REF!) -> 
A6: Progress Update - Number: | C6: =IF(#REF!="Select","",#REF!) -> 
A8: For LFA Use Only
A9: Section 6: LFA Findings & Recommendations
A11: ! Based on the information provided in the previous sections and your understanding of the grant, please summarise any important management issues, proposing a recommendation for each. NB: an issue is considered as 'important' if it impacts or is likely to impact program implementation and results. ! Instead of repeating detailed descriptions of issues covered in other sections, it is acceptable to state the issue and reference the section containing the details.
A13: Functional Areas | C13: Description of Identified Issues (in order of importance) | F13: LFA Recommendations (in order of importance) | J13: Country Team Comments
A14: Select
A15: Select
A16: Select
A17: Select
A18: Select
A19: Select
A20: Select
A21: Select
A22: Select
A23: Select
A24: Select
A25: Select
A26: Select
A27: Select
A30: Select
A31: Yes
A32: No
A34: Select
A35: Program management (including SR management)
A36: Financial management and systems
A37: Monitoring and evaluation
A38: Pharmaceutical & health product management
A39: Other management issues, including: PR capacity to develop quality programmatic and financial reports

Sheet PR EFR_7A
A1: Ongoing Progress Update and Disbursement Request
A2: Section 7A: PR - Enhanced Financial Reporting
A4: Country | C4: =CoverSheet!D5 -> Georgia | F4: PLEASE REFER TO THE "GUIDANCE FOR COMPLETION OF THE ENHANCED FINANCIAL REPORTING TEMPLATE" DOCUMENT TO ASSIST YOU IN COMPLETING THE TEMPLATE
A5: Grant No. | C5: =CoverSheet!D7 -> GEO-T-NCDC
A6: PR | C6: =CoverSheet!D8 -> NCDC | F6: TO BE COMPLETED ONLY ONCE A YEAR EXCEPT AT MONTH 18 FOR PURPOSES OF PHASE 2 REVIEW
A7: Currency | C7: =CoverSheet!D11 -> EUR
A8: Disease(Component) | C8: =CoverSheet!D6 -> Tuberculosis | G8: dd-mm-yyyy | K8: dd-mm-yyyy
E9: Current Reporting Period | F9: Start Date: | G9: 2015-01-01 | I9: Cumulative Reporting Period | J9: Start Date: | K9: 2014-04-01
F10: End Date: | G10: 2015-12-31 | J10: End Date: | K10: 2015-12-31
H11: The end date for the current reporting period and cumulative reporting period must be the same
C12: =CONCATENATE("EFR",SUBSTITUTE(SUBSTITUTE(C8,"/","")," ","")) -> EFRTuberculosis
C13: =CONCATENATE("SDA",SUBSTITUTE(SUBSTITUTE(C8,"/","")," ","")) -> SDATuberculosis | E13: The "TOTAL" rows in Table A, B and C will have a RED background if the amounts in each table do not agree. If the Totals for each Table agrees, these rows will have a YELLOW background.
A16: A- BREAKDOWN* BY EXPENDITURE CATEGORY | E16: Current Reporting Period | I16: Cumulative Reporting Period
A17: # | B17: Category | E17: Budget | F17: Expenditures | G17: Variance | H17: Reason for Variance | I17: Cumulative Budget | J17: Cumulative Expenditure | K17: Variance | L17: Reason for Variance
A18: 1 | B18: Human Resources | E18: 276458.2801 | F18: 222965.8982 | G18: =E18-F18 -> 53492.38196 | H18: PR level: (total saving: EUR 18,017) one vacant position and FX rate change cumulated the saving. SR level: (total saving: EUR 24,578) there was no need for recruiting additional staff (nurses at penitentiaries) also FX rates changes Commitment: EUR 10,897- payment for the Month of December took place in January. | I18: 509565.6981 | J18: 422992.7282 | K18: =I18-J18 -> 86572.96989 | L18: PR level: (total saving: EUR 29,570 euro) one vacant position and FX rate change cumulated the saving, Programme Department staff started receiving payroll payments only after operationalization of the Cash Insentive Scheme. SR level: (total saving: 46,106 Euro;) several staff recruired later (Finance Manager, Driver), or there was no need for recruiting additional staff (nurses at penitentiaries); Commitment: EUR 10,897 - payment for the Month of December took place in January.
A19: 2 | B19: Technical Assistance | E19: 21340 | F19: 11438.79797 | G19: =E19-F19 -> 9901.202033 | H19: PR level: 0 SR level: Saving EUR 8,980 - needs were met through PR financing, e.g. GDF/GLC Missions, WHO Review; there was no need for recruiting additional (4th) person for database monitoring; Commitment: EUR 921 - TA for database monitoring in December, paid in January | I19: 173648 | J19: 69429.32797 | K19: =I19-J19 -> 104218.672 | L19: PR level: saving – EUR 75,572 WHO review actual costs were less than budgeted. SR level: Saving EUR 27,726 - needs were met through PR financing, e.g. GDF/GLC missions, WHO Review; there was no need for recruiting additional (4th) person for database monitoring; Commitment: EUR 921 - TA for database monitoring in December, paid in January
A20: 3 | B20: Training | E20: 13000 | F20: 21107.65288 | G20: -8107.652875 | H20: PR: Overspending EUR 8,660 – training cost budgeted in 2014 was postponed to current reporting period. SR: Saving EUR 514 – all actual training costs for the year 2015 were paid by TB Center and the latter is saving. EUR 38 remaining December service to be reimbursed by TB Center in January 2016 | I20: 57800 | J20: 46906.74288 | K20: 10893.25712 | L20: PR: saving EUR 9,298 - Actual costs occured less than budgeted SR: Saving EUR 1,557 - Actual costs occured less than budgeted Commitment – EUR 38 remaining December service to be reimbursed by TB Center in January 2016
A21: 4 | B21: Health Products and Health Equipment | E21: 833371.992 | F21: 577220.8212 | G21: 256151.1708 | H21: PR: total saving EUR 416,041 - due to the following factors: 1. Local procurement of lab supplies derived cheaper unit costs; 2. Available stocks (incl. Genexpert cartriges); 3. Re-calcualtion of average consumption rates; Overspending EUR 159,890 – is mainly derived from Procurement of GeneXpert cartridges to meet need for 2016-2017 years, part of the amount was budgeted in the previous reporting period and the other part in the year 2016 | I21: 1380425.647 | J21: 798875.9212 | K21: 581549.7255 | L21: PR: Saving EUR 696,333 is derived from procurement of lab supplies and respirators 1. Local procurement with competitive bidding with preceding market assessment derived significantly cheaper unit costs compared to the budgeted amounts; 2. Available stocks; 3. Re-calculation of average consumption rates; Overspending EUR 114,783 includes: EUR 67,030 - Procurement of GeneXpert cartridges to meet need for 2016-2017 years, part of the amount was budgeted in the previous reporting period and the other part in the year 2016. EUR 47,753 – Actual cost and quantity for lab supplies budgeted under the line 2.7 (a) was greater than projected; also Procurement of GeneXperts resulted in negative variance due to FX rate change
A22: 5 | B22: Medicines and Pharmaceutical Products | E22: 2313316.774 | F22: 68678.98339 | G22: 2244637.79 | H22: PR: Saving EUR 2,104,747 - Net saving in procurement of SLD include several reasons: recalculation of needs; tendency of decreasing prevalence of TB; BDQ Donation program provided the medicine free-of-charge; General tendency of decreasing cost of TB medicines through GDF; some savings from the SLD line were reallocated to activities as equipment by TB center. These reallocation requests were approved by the GF in January-February 2016, as well as in 2015 Commitment: EUR 139,891- payment for SLD order placed in December 2015 | I22: 4358024.97 | J22: 2258875.443 | K22: 2099149.527 | L22: PR: Saving – Total EUR 1,988,277 includes: EUR 1,928,303 – Net saving in procurement of SLD include several reasons: recalculation of needs; tendency of decreasing prevalence of TB; BDQ Donation Program provided the medicine free-of-charge; General tendency of decreasing cost of TB medicines through GDF; EUR 1,069 – Lines3.10 was cancelled (ref. PR letter to GF19/11/2014) as the pharmaceutical was included in the GDF Order (Act. 3.1.a) EUR 2997 –The activity was canceled. Procurement (water for injectibles) was carried out by TB Centre. EUR 55,908 – Cost of Procurement side effects drugs was less than budgeted due to the decreasing number of patients and low prices derived through the local procurement (tender). Commitment - EUR 139,891 for SLD order placed in December 2015 Overspending: EUR 29,019 - FX rate change FLD order placed in 2014.
A23: 6 | B23: Procurement and Supply Management Costs | E23: 247863.9914 | F23: 19530.20579 | G23: 228333.7856 | H23: PR: Saving EUR 230,120 – due to savings in SLD order placed in 2015 Overspending – EUR 1,786 – FLD local PSM costs occurred in 2015 per deliveries, budgeted in 2014 | I23: 480438.7794 | J23: 254725.1158 | K23: 225713.6636 | L23: PR: Saving EUR 229,221 – due to savings in SLD order placed in 2014-2015 years; Overspending – EUR 3,507 – PSM cost for FLD order placed in 2014 was greater than budgeted due to FX rate Change
A24: 7 | B24: Infrastructure and Other Equipment | E24: 15519.86709 | F24: 14098.81944 | G24: 1421.04765 | H24: PR: Saving EUR 1,963: The actual costs for the several activities such as vehicle maintenance, office furniture, vehicle insurance; Commitment -EUR 10: Domain fee for December paid in January Overspending EUR 2,734: IT equipment for TB Center was postponed from the year 2014 and procured in 2015 ; SR level: Saving EUR 1,545 - actual insurance and vehicle meintenance costs were less than budgeted; Commitment - EUR 637 – December service to be reimbursed by TB Center in January 2016 | I24: 80128.90254 | J24: 41103.55944 | K24: 39025.3431 | L24: PR: Savings- EUR 33,355: The actual costs for the several activities such as office rehabilitation, computers were less than budgeted, also there was no need for procureing office furniture as it was handed-over from the previous PR. Commitment -EUR 10: Domain fee for December paid in January SR level: 5,023 EUR saving - actual insurance and vehicle meintenance costs were less than budgeted; Commitment - EUR 637 – December service to be reimbursed by TB Center in January 2016
A25: 8 | B25: Communication Materials | E25: 0 | F25: 0 | G25: 0 | H25: - | I25: 0 | J25: 0 | K25: 0 | L25: -
A26: 9 | B26: Monitoring & Evaluation | E26: 103117.1863 | F26: 64190.57609 | G26: 38926.61026 | H26: PR: Saving EUR 15,217- Activities performed in accordance with the workplan, but actual costs were less than budgeted Committment: EUR 423 - fuel cost for December provided to TB Center SR: Saving EUR 18,894- was due to the actual costs being less than projected, though Planned activities took place in-line with approved implementation plan Committment: EUR 4,393 - December service reimbursed in January 2016 | I26: 184789.5168 | J26: 114327.2461 | K26: 70462.27076 | L26: PR: Saving EUR 26,835 -Activities performed in accordance with the workplan but actual costs were less than budgeted. Commitment : EUR 423 - fuel cost for December provided to TB Center. SR: Saving EUR 38,811 - was due to the actual costs being less than projected, though Planned activities took place in-line with approved implementation plan Committment: EUR 4,393 - December service reimbursed in January 2016
A27: 10 | B27: Living Support to Clients/Target Populations | E27: 680581.845 | F27: 412396.9691 | G27: 268184.8759 | H27: PR: Saving EUR 180,604 - Sensitive patients: Saving (EUR 28,025): (a) budgeted amount was calculated for 1 year period covering 70% of all sensitive patients with 100% adherence (both installments), but actual adherence was less. MDR patients: (EUR 138,699): (a) budgeted amount was calculated for the entire treatment course (15 months) covering 75% of MDR patients, with 100% adherence (all weeks on outpatient treatment). Actually there was no 100% compliance and number of patients was less than projected/budgeted. The remaining amount is fuel cost 13,880 due to less than budgeted unit cost. Commitment: EUR 20,635 – December 2015 cash incentives for MDR and Sensitive patients (due to scheme set-up payment takes 1-2 months, including: data gathering, entry, treatment, cross-checking); EUR 1,954 - December fuel cost provided to TB Center paid in January SR level: Saving EUR 62,945 - less patients required transportation allowence, less DOT nurses were recruited; Commitment EUR 2,047 - payment for DOT nurses and transportation costs for December, paid in January 2016; | I27: 1493843.22 | J27: 615608.6191 | K27: 878234.6009 | L27: PR: Saving EUR 735,899 - Sensitive patients: Saving (185,986): (a) budgeted amount was calculated for 1 year period covering 70% of all sensitive patients with100% adherence (both installments). Actually patients enrolled in January - May, 2014 did not fit for being beneficiary of the scheme as approved scheme was enrolling patients starting June 1. MDR patients: Saving (EUR 514,695 ): (a) budgeted amount was calculated for the entire treatment course (15 months) covering 75% of MDR patients from the 2012, 2013, 2014 cohors, with100% adherence (all weeks on outpatient treatment). Actually, 18 months were covered, payments started in August, there was no 100% compliance and number of patients was less than projected/budgeted. The remaining amount is fuel cost EUR 35,217 due to less than budgeted unit cost and available stock at SR level. Commitment: EUR 20,635 – December 2015 cash incentives for MDR and Sensitive patients (due to scheme set-up payment takes 1-2 months, including: data gathering, entry, treatment, cross-checking); EUR 1,954 - December fuel cost provided to TB Center paid in January SR level: Saving EUR 117,700 - less patients required transportation allowence, less DOT nurses were recruited; Commitment EUR 2,047 - payment for DOT nurses and transportation costs for December, paid in January 2016;
A28: 11 | B28: Planning and Administration | E28: 75540.37473 | F28: 59190.40564 | G28: 16349.96909 | H28: PR level: PR level: Saving EUR 27,394 – project management actual costs were less than budgeted. Commitment : EUR 40 – postal costs for December paid in January 2016. Overspending – EUR 12,644- printing TB forms were budgeted in 2014 and payments postponed to 2015, also project management actual costs were less than budgeted, GLC payment/exchange rate impact. SR level: Saving EUR 1,560 – budgeted amount was not used by TB center. | I28: 124951.36 | J28: 98316.22564 | K28: 26635.13435 | L28: PR level: Saving EUR 33,159 – actual Printing costs for TB forms were less than budgeted, also project management actual costs were less than budgeted. Commitment : EUR 40 – postal costs for December paid in January 2016. Overspending – EUR 8,123 - GLC payment/exchange rate impact. SR level: Saving EUR 1,560 – budgeted amount was not used by TB center.
A29: 12 | B29: Overheads | E29: 8451.382905 | F29: 3238.37186 | G29: 5213.011044 | H29: PR level: Saving EUR 4,906 - Fuel and Mobile Operator costs were less than budgeted; Committment - EUR 307 - PR fuel and mobile service cost for December, paid in January. | I29: 14990.78835 | J29: 5331.23186 | K29: 9659.556489 | L29: PR level: Saving EUR 9,353 - Fuel and Mobile Operator costs were less than budgeted; Committment - EUR 307 - PR fuel and mobile service cost for December, paid in January.
A30: 13 | B30: Other | E30: 0 | F30: 0.003101107058 | G30: -0.003101107058 | H30: - | I30: 0 | J30: 0.003101107058 | K30: -0.003101107058 | L30: -
D31: TOTAL | E31: =E18+E19+E20+E21+E22+E23+E24+E25+E27+E26+E28+E29+E30 -> 4588561.693 | F31: =F18+F19+F21+F20+F22+F23+F24+F25+F26+F27+F28+F29+F30 -> 1474057.505 | G31: =SUM(G18:G30) -> 3114504.189 | I31: =SUM(I18:I30) -> 8858606.882 | J31: =SUM(J18:J30) -> 4726492.165 | K31: =SUM(K18:K30) -> 4132114.717
A34: B- BREAKDOWN* BY PROGRAM ACTIVITY | E34: Current Reporting Period | I34: Cumulative Reporting Period
A35: # | B35: Macro-category | C35: Objectives | D35: Service Delivery Area | E35: Budget | F35: Expenditures | G35: Variance | H35: Reason for Variance | I35: Cumulative Budget | J35: Cumulative Expenditure | K35: Variance | L35: Reason for Variance
A36: 1 | B36: Supportive Environment | C36: To strengthen the National TB Control Program management, coordination, monitoring and evaluation | D36: Program Management, M&E, Capacity Building | E36: 233521.7776 | F36: 193430.436 | G36: =E36-F36 -> 40091.34156 | H36: Activities performed in-line with approved work plan. Unspent funds are as follows: Saving- EUR 30,761 (less actual costs, availability of stocks, SR TA cancelled) Commitment: EUR 14,179 (PR and SR December costs paid in January); Overspending: EUR 4,849 (printing of TB forms budgeted in 2014 and carried in 2015 | I36: 424324.8979 | J36: 328436.636 | K36: =I36-J36 -> 95888.26189 | L36: Activities performed in-line with approved work plan. Unspent funds are as follows: Saving- EUR 81,709(less actual costs, availability of stocks, SR TA cancelled) Commitment: EUR 14,179 (PR and SR December costs paid in January);
A37: 2 | B37: TB Detection | C37: To improve diagnosis of TB including M/XDR-TB | D37: Improving diagnosis | E37: 762957.1919 | F37: 554269.8169 | G37: =E37-F37 -> 208687.375 | H37: All activities were performed as planned. Savings occurred due to smaller actual costs of procurement; available stocks and average consumption rates at SR level, FX rate change Saving: EUR 369,141 Commitment: EUR 2,263 December SR service cost paid in January Overspending: EUR 162,717 (exchange rate impact for GeneXpert procurement; Procurement of GeneXpert cartridges for 2016-2017 period, part of the amount was budgeted in the previous reporting period and the other part in the year 2016, procurement of IT equipment budgeted in 2014 carried forward to 2015) | I37: 1242279.06 | J37: 771316.7669 | K37: =I37-J37 -> 470962.2934 | L37: All activities were performed as planned. Savings and delays occurred due to smaller actual costs of procurement; available stocks and average consumption rates at SR level, as well as cheaper actual cost for operational research (SR). Saving: EUR 583,482; Commitment: EUR 2,263 December SR service cost paid in January Overspending: EUR 114,783 (exchange rate impact for GeneXpert procurement; Procurement of GeneXpert cartridges for 2016-2017 period, part of the amount was budgeted in the previous reporting period and the other part in the year 2016)
A38: 3 | B38: TB Treatment | C38: To ensure quality treatment of all forms of TB | D38: Quality Treatment of all forms of TB, including M/XDR-TB | E38: 2703951.543 | F38: 175964.7149 | G38: =E38-F38 -> 2527986.828 | H38: All activities were performed. Savings occurred due to actual costs of procurement; available stocks and average consumption rates at SR level. Saving: EUR 2,397,560 (SLD drugs and lab supplies) Commitment: EUR 139,915 (SLD order placed in December 2015) Overspending: EUR 9,488 (exchange rate impact for GDF/GLC procurement; FLD local PSM costs occurred in 2015 per deliveries, budgeted in 2014) | I38: 5123348.786 | J38: 2660920.925 | K38: =I38-J38 -> 2462427.861 | L38: All activities were performed. Savings and delays occurred due to actual costs of procurement; available stocks and average consumption rates at SR level, Saving: EUR 2,363,162 (SLD drugs, side effect drugs and lab supplies) Commitment: EUR 139,915 (SLD order placed in December 2015) Overspending: EUR 40,649 (FX rate change for FLD order placed in 2014 and GLC)
A39: 4 | B39: TB Treatment | C39: To ensure adherence to TB treatment by intensive patient support and follow up | D39: Patient Support | E39: 734703.4707 | F39: 444827.3474 | G39: 289876.1233 | H39: Cash incentive scheme is functioning well. Savings occurred mainly due to budget assumptions used to project cash incentives. Actual compliance was not 100%, also number of patients was less than projected/budgeted. State budget participation (Cash incentives for 150 MDR patients) also was driver for saving. Actual Incentives paid by SR was also less than budgeted. Saving: 264,375; Commitment: EUR 25,501 – December cash incentive paid in January both by SR and PR. As well as December fuel cost provided to SR. | I39: 1576406.065 | J39: 668029.3074 | K39: 908376.7576 | L39: Cash incentive scheme is functioning well. Savings occurred mainly due to budget assumptions used to project cash incentives. Actual compliance was not 100%, also number of patients was less than budgeted. State budget participation (Cash incentives for 150 MDR patients) also was driver for saving. Actual Incentives paid by SR was also less than budgeted. Saving: 882,876; Commitment: EUR 25,501 – December cash incentive paid in January both by SR and PR. As well as December fuel cost provided to SR.
A40: 5 | B40: Supportive Environment | C40: Project management - PR | D40: Supportive environment: Program management and administration | E40: 153427.7102 | F40: 105565.1913 | G40: =E40-F40 -> 47862.51892 | H40: PR Office is fully functional. Saving: EUR 56,165 - Project management actual costs, such as HR costs, fuel, tender announcement fee were found to be less than budgeted and FX rate change effect. Committed: EUR 357 - Project Management December costs paid in January including fuel, postal cost, and mobile service. Overspending: EUR 8,660 - training cost budgeted in 2014 was postponed to current reporting period. | I40: 492248.073 | J40: 297788.5313 | K40: =I40-J40 -> 194459.5417 | L40: PR Office is fully functional. Saving: EUR 194,103 Project Management costs such as TA, Audit cost, Fuel, HR due to vacant position, less unit costs than budgeted, FX rate Change, As for the TA saving – amount was spent to cover WHO Review mission that was performed last year, though the costs related to the exercise was less than budgeted. Commitment: EUR 357 - Project Management December costs paid in January including fuel, postal cost, and mobile service.
B41: Please Select… | D41: please select… | E41: 0 | F41: 0 | G41: =E41-F41 -> 0 | I41: 0 | J41: 0 | K41: =I41-J41 -> 0
B42: Please Select… | D42: please select… | E42: 0 | F42: 0 | G42: =E42-F42 -> 0 | I42: 0 | J42: 0 | K42: =I42-J42 -> 0
B43: Please Select… | D43: please select… | E43: 0 | F43: 0 | G43: 0 | I43: 0 | J43: 0 | K43: 0
B44: Please Select… | D44: please select… | E44: 0 | F44: 0 | G44: 0 | I44: 0 | J44: 0 | K44: 0
B45: Please Select… | D45: please select… | E45: 0 | F45: 0 | G45: =E45-F45 -> 0 | I45: 0 | J45: 0 | K45: =I45-J45 -> 0
B46: Please Select… | D46: please select… | E46: 0 | F46: 0 | G46: =E46-F46 -> 0 | I46: 0 | J46: 0 | K46: =I46-J46 -> 0
B47: Please Select… | D47: please select… | E47: 0 | F47: 0 | G47: =E47-F47 -> 0 | I47: 0 | J47: 0 | K47: =I47-J47 -> 0
B48: Please Select… | D48: please select… | E48: 0 | F48: 0 | G48: 0 | I48: 0 | J48: 0 | K48: 0
B49: Please Select… | D49: please select… | E49: 0 | F49: 0 | G49: 0 | I49: 0 | J49: 0 | K49: 0
B50: Please Select… | D50: please select… | E50: 0 | F50: 0 | G50: 0 | I50: 0 | J50: 0 | K50: 0
B51: Please Select… | D51: please select… | E51: 0 | F51: 0 | G51: 0 | I51: 0 | J51: 0 | K51: 0
B52: Please Select… | D52: please select… | E52: 0 | F52: 0 | G52: =E52-F52 -> 0 | I52: 0 | J52: 0 | K52: =I52-J52 -> 0
B53: Please Select… | D53: please select… | E53: 0 | F53: 0 | G53: =E53-F53 -> 0 | I53: 0 | J53: 0 | K53: =I53-J53 -> 0
B54: Please Select… | D54: please select… | E54: 0 | F54: 0 | G54: =E54-F54 -> 0 | I54: 0 | J54: 0 | K54: =I54-J54 -> 0
B55: Please Select… | D55: please select… | E55: 0 | F55: 0 | G55: 0 | I55: 0 | J55: 0 | K55: 0
B56: Please Select… | D56: please select… | E56: 0 | F56: 0 | G56: 0 | I56: 0 | J56: 0 | K56: 0
B57: Please Select… | D57: please select… | E57: 0 | F57: 0 | G57: 0 | I57: 0 | J57: 0 | K57: 0
B58: Please Select… | D58: please select… | E58: 0 | F58: 0 | G58: 0 | I58: 0 | J58: 0 | K58: 0
B59: Please Select… | D59: please select… | E59: 0 | F59: 0 | G59: =E59-F59 -> 0 | I59: 0 | J59: 0 | K59: =I59-J59 -> 0
B60: Please Select… | D60: please select… | E60: 0 | F60: 0 | G60: =E60-F60 -> 0 | I60: 0 | J60: 0 | K60: =I60-J60 -> 0
B61: Please Select… | D61: please select… | E61: 0 | F61: 0 | G61: =E61-F61 -> 0 | I61: 0 | J61: 0 | K61: =I61-J61 -> 0
B62: Please Select… | D62: please select… | E62: 0 | F62: 0 | G62: 0 | I62: 0 | J62: 0 | K62: 0
B63: Please Select… | D63: please select… | E63: 0 | F63: 0 | G63: 0 | I63: 0 | J63: 0 | K63: 0
B64: Please Select… | D64: please select… | E64: 0 | F64: 0 | G64: 0 | I64: 0 | J64: 0 | K64: 0
B65: Please Select… | D65: please select… | E65: 0 | F65: 0 | G65: 0 | I65: 0 | J65: 0 | K65: 0
B66: Please Select… | D66: please select… | E66: 0 | F66: 0 | G66: 0 | I66: 0 | J66: 0 | K66: 0
B67: Please Select… | D67: please select… | E67: 0 | F67: 0 | G67: 0 | I67: 0 | J67: 0 | K67: 0
B68: Please Select… | D68: please select… | E68: 0 | F68: 0 | G68: 0 | I68: 0 | J68: 0 | K68: 0
B69: Please Select… | D69: please select… | E69: 0 | F69: 0 | G69: =E69-F69 -> 0 | I69: 0 | J69: 0 | K69: =I69-J69 -> 0
B70: Please Select… | D70: please select… | E70: 0 | F70: 0 | G70: =E70-F70 -> 0 | I70: 0 | J70: 0 | K70: =I70-J70 -> 0
B71: Please Select… | D71: please select… | E71: 0 | F71: 0 | G71: =E71-F71 -> 0 | I71: 0 | J71: 0 | K71: =I71-J71 -> 0
B72: Please Select… | D72: please select… | E72: 0 | F72: 0 | G72: 0 | I72: 0 | J72: 0 | K72: 0
B73: Please Select… | D73: please select… | E73: 0 | F73: 0 | G73: =E73-F73 -> 0 | I73: 0 | J73: 0 | K73: =I73-J73 -> 0
B74: Please Select… | D74: please select… | E74: 0 | F74: 0 | G74: =E74-F74 -> 0 | I74: 0 | J74: 0 | K74: =I74-J74 -> 0
B75: Please Select… | D75: please select… | E75: 0 | F75: 0 | G75: =E75-F75 -> 0 | I75: 0 | J75: 0 | K75: =I75-J75 -> 0
B76: Please Select… | D76: please select… | E76: 0 | F76: 0 | G76: 0 | I76: 0 | J76: 0 | K76: 0
B77: Please Select… | D77: please select… | E77: 0 | F77: 0 | G77: =E77-F77 -> 0 | I77: 0 | J77: 0 | K77: =I77-J77 -> 0
B78: Please Select… | D78: please select… | E78: 0 | F78: 0 | G78: 0 | I78: 0 | J78: 0 | K78: 0
B79: Please Select… | D79: please select… | E79: 0 | F79: 0 | G79: 0 | I79: 0 | J79: 0 | K79: 0
B80: Please Select… | D80: please select… | E80: 0 | F80: 0 | G80: =E80-F80 -> 0 | I80: 0 | J80: 0 | K80: =I80-J80 -> 0
B81: Please Select… | D81: please select… | E81: 0 | F81: 0 | G81: =E81-F81 -> 0 | I81: 0 | J81: 0 | K81: =I81-J81 -> 0
B82: Please Select… | D82: please select… | E82: 0 | F82: 0 | G82: =E82-F82 -> 0 | I82: 0 | J82: 0 | K82: =I82-J82 -> 0
B83: Please Select… | D83: please select… | E83: 0 | F83: 0 | G83: 0 | I83: 0 | J83: 0 | K83: 0
B84: Please Select… | D84: please select… | E84: 0 | F84: 0 | G84: 0 | I84: 0 | J84: 0 | K84: 0
B85: Please Select… | D85: please select… | E85: 0 | F85: 0 | G85: =E85-F85 -> 0 | I85: 0 | J85: 0 | K85: =I85-J85 -> 0
B86: Please Select… | D86: please select… | E86: 0 | F86: 0 | G86: =E86-F86 -> 0 | I86: 0 | J86: 0 | K86: =I86-J86 -> 0
B87: Please Select… | D87: please select… | E87: 0 | F87: 0 | G87: =E87-F87 -> 0 | I87: 0 | J87: 0 | K87: =I87-J87 -> 0
B88: Please Select… | D88: please select… | E88: 0 | F88: 0 | G88: 0 | I88: 0 | J88: 0 | K88: 0
B89: Please Select… | D89: please select… | E89: 0 | F89: 0 | G89: 0 | I89: 0 | J89: 0 | K89: 0
B90: Please Select… | D90: please select… | E90: 0 | F90: 0 | G90: 0 | I90: 0 | J90: 0 | K90: 0
A91: TOTAL | E91: =SUM(E36:E90) -> 4588561.693 | F91: =SUM(F36:F90) -> 1474057.507 | G91: =SUM(G36:G90) -> 3114504.187 | I91: =SUM(I36:I90) -> 8858606.882 | J91: =SUM(J36:J90) -> 4726492.167 | K91: =SUM(K36:K90) -> 4132114.716
A96: C- BREAKDOWN* BY IMPLEMENTING ENTITY | E96: Current Reporting Period | I96: Cumulative Reporting Period
A97: # | B97: PR/SR | C97: Name | D97: Type of Implementing Entity | E97: Budget | F97: Expenditures | G97: Variance | H97: Reason for Variance | I97: Cumulative Budget | J97: Cumulative Expenditure | K97: Variance | L97: Reason for Variance
A98: 1 | B98: PR | C98: National Center for Disease Control and Public Health | D98: Other Government | E98: 4123179.138 | F98: 1147047.188 | G98: =E98-F98 -> 2976131.95 | H98: The net variance of EUR 2,976,132 consists of positive (EUR 3,161,845) and negative variances (EUR 185,713) Positive variance EUR 3,161,845 - derived from the activities that were budgeted for the current reporting period and represents either saving, commitment or postponed activity Saving -Total EUR 2,998,561 includes: EUR 23,324 - Actual unit price of fuel turned to be less than projected/budgeted. From the programmatic point of view, activities were performed as planned, though required quantity of fuel was less. EUR 426,216 – Procurement of lab supplies, including PSM costs and respirators caused saving, due to the following factors: 1. Local procurement with competitive bidding with preceding market assessment derived significantly cheaper unit costs compared to the budgeted amounts; 2. Available stock; 3. Re-calculation of average consumption rates; EUR 25,182 - Cost of Procurement side effects drugs was less than budgeted due to the decreasing number of patients and low prices derived through the local procurement (tender) and one activity was canceled - Procurement (water for injectable) was carried out by TB Centre. EUR 2,299,486 – Net saving in procurement of SLD include several reasons: recalculation of needs; tendency of decreasing prevalence of TB; BDQ Donation program provided the medicine free-of-charge; General tendency of decreasing cost of TB medicines through GDF; some savings from the SLD line were reallocated to activities as equipment by TB center. These reallocation requests were approved by the GF in January-February 2016, as well as in 2015. EUR 166,724- Actual cost for Cash Incentives (Sensitive & MDR) was less than budgeted due to actual number of patients (slightly less than projected). Most importantly, budget was made assuming max (100%) compliance to treatment. Reimbursed period covers November 2014 - November 2015 EUR 57,629 - Project management actual costs, such as HR costs, fuel, tender announcement fee, TA were found to be less than budgeted and FX rate change effect. Postponed activities and commitments - Total EUR 163,284 includes: EUR 2,377 – SRs fuel costs for December, payment transferred to next reporting period. EUR 139,915 – Payment for Procurement of SLDs and local PSM costs postponed to the next reporting period EUR 20,635 – Committed payment for Cash Incentives (Sensitive & MDR) for December 2015 (Q4); EUR 357 – Project Management costs delayed to next reporting period, including fuel, postal cost, mobile service. Negative Variance EUR 185,713 – derived from activities that were budgeted in the previous reporting period and postponed to Q3Q4 period or overspendings: EUR 35,675 – Procurement of Lab supplies and equipment carried to the current reporting period and procurement unit price and Quantities greater than budgeted. EUR 124,307 – Procurement of GeneXpert cartridges for 2016-2017 period, part of the amount was budgeted in the previous reporting period and the other part in the year 2016. EUR 7,583 – IT equipment and printing costs provided to TB center was budgeted in the year 2014 and carried forward to the current reporting period. EUR 1,693 – FLD local PSM costs occurred in 2015 per deliveries, budgeted in 2014 EUR 7,795 - GLC payment/exchange rate impact. EUR 8,660- PR training costs carried from the year 2014. | I98: 8042499.323 | J98: 4167801.858 | K98: =I98-J98 -> 3874697.466 | L98: The net variance of EUR 3,874,698 consists of the positive (EUR 4,030,130) and negative variances (EUR 155,432) Positive Variance EUR 4,030,130 – derived from the savings, commitments or postponed activities. Saving – Total EUR 3,866,846 includes: EUR 52,542 - Actual unit price of fuel turned to be less than projected/budgeted. From the programmatic point of view, activities were performed as planned, though required quantity of fuel was less; Fuel cost budgeted under line 4.7 (b) was cancelled due to the following factor: the adherence data is collected and monitored on a regular basis by regional coordinators with further submission to the TB Centre. Activity related to the monitoring of the cash incentive scheme was abolished, considering that it is being performed under the current set-up of the scheme EUR 721,034 - Procurement of lab supplies, including PSM costs and respirators caused saving, due to the following factors: 1. Local procurement with competitive bidding with preceding market assessment derived significantly cheaper unit costs compared to the budgeted amounts; 2. Available stock; 3. Re-calculation of average consumption rates; EUR 700,681 - Actual cost of Cash incentives (Sensitive & MDR) covered period June 2014 – November 2015 and was less than budgeted. The following are the reasons for saving: Sensitive - budgeted amount was calculated for 1 year period covering 70% of all sensitive patients with100% adherence (both installments). Actually patients enrolled in January - May, 2014 did not fit for being beneficiary of the scheme as approved scheme was enrolling patients starting June 1. MDR - budgeted amount was calculated for the entire treatment course (15 months) covering 75% of MDR patients from the 2012, 2013, 2014 cohorts, with100% adherence (all weeks on outpatient treatment). Actually, 5 months were covered, payments started in August, there was no 100% compliance in many cases and number of patients was less than projected/budgeted. EUR 4,276 – Payments to the staff were initiated only after scheme operationalization, though were budgeted to start earlier. Exchange rate impact also caused additional savings EUR 2,132,924 – Net saving in procurement of SLD include several reasons: recalculation of needs; tendency of decreasing prevalence of TB; BDQ Donation program provided the medicine free-of-charge; General tendency of decreasing cost of TB medicines through GDF; some savings from the SLD line were reallocated to activities as equipment by TB center. These reallocation requests were approved by the GF in January-February 2016, as well as in 2015. EUR 1,230 – Lines 3.10/3.11 were cancelled (ref. PR letter to GF19/11/2014), as the pharmaceutical was included in the GDF Order (Act. 3.1.a) EUR 2997 –The activity was canceled. Procurement (water for injectable) was carried out by TB Centre. EUR 55,908 – Cost of Procurement side effects drugs was less than budgeted due to the decreasing number of patients and low prices derived through the local procurement (tender). EUR 1,151 – Saving in printing of statistical forms due to lower unit price derived through tender; EUR 194,103 – Saving in Project Management costs such as TA, Audit cost, Fuel, HR due to vacant position, less unit costs than budgeted, FX rate Change, As for the TA saving – amount was spent to cover WHO Review mission that was performed last year, though the costs related to the exercise was less than budgeted. Postponed activities and commitments - Total EUR 163,284 includes: EUR 139,915 – Payment for Procurement of SLDs and local PSM costs postponed to the next reporting period EUR 2,377 – SRs fuel costs for December, payment transferred to next reporting period. EUR 20,635 – Committed payment for Cash Incentives (Sensitive & MDR) for December 2015 (Q4); EUR 357 – Project Management costs delayed to next reporting period, including fuel, postal cost, mobile service. Negative Variance EUR 155,432 – derived from the activities not budgeted in the cumulative period and actual costs that were greater than budgeted: EUR 40,649 - FX rate change for FLDs and GLC Mission payment. EUR 67,030 - Procurement of GeneXpert cartridges to meet the need for 2016-2017 years, part of the amount was budgeted in the previous reporting period and the other part in the year 2016. EUR 47,753 – Actual cost and quantity for lab supplies budgeted under the line 2.7 (a) was greater than projected; also Procurement of GeneXperts resulted in negative variance due to FX rate change
A99: 2 | B99: SR | C99: National Center for Tuberculosis and Lung Diseases | D99: Other Government | E99: 465382.5553 | F99: 327010.3189 | G99: =E99-F99 -> 138372.2363 | H99: SR is well-performing vis-à-vis the approved implementation plan. PR has transferred to SR EUR 344,978 to cover services for the period December 2014-November 2015 and advance payment, which is carried forward to year 2016. SRs expenditure during 2015 year is consists of the following : previous year SR cash balance EUR 17, Expenditures covered by PR, December 2015 expenditures reimbursed by SR from the advance payments; remaining amount is TB Center cash balance per bank statement as of 31/12/2015 Total Savings comprise EUR 119,441: number of patients decreased, less transportation costs required, less cost of operational research, cancelled TA; Commitment for December service which is not reimbursed by TB center in December- EUR 18,931 | I99: 816107.5589 | J99: 558690.3089 | K99: =I99-J99 -> 257417.2499 | L99: The Budget relates to the activities performed by the TB Center in April 2014-December 2015. During the cumulative period SR received payment for April 2014-Novemebr 2015 services in the amount of EUR 549,489 and advance payment with of EUR 27,186, available till the end of the contract 30/06/2016. SR actual expenditures differ from payments received from PR in the amount of EUR due to advance payment not fully utilized by the end of year, which represents the actual cash balance on Srs Bank account. The net variance in the amount of EUR 257,417 related to TB Center performance includes: Saving of EUR 238,486 (mainly unspent HR costs; less transportation incentives to patients; cheaper operational research rather than budgeted; unspent TA amount during the year 2014-2015, as all the needs were met through PR financing, including GLC/GDF missions, WHO Programme Review, etc.) Commitment for December service which is not reimbursed by TB center in December- EUR 18,931
B100: Please Select … | D100: Please Select… | E100: 0 | F100: 0 | G100: 0 | I100: 0 | J100: 0 | K100: 0
B101: Please Select … | D101: Please Select… | E101: 0 | F101: 0 | G101: 0 | I101: 0 | J101: 0 | K101: 0
B102: Please Select … | D102: Please Select… | E102: 0 | F102: 0 | G102: 0 | I102: 0 | J102: 0 | K102: 0
B103: Please Select … | D103: Please Select… | E103: 0 | F103: 0 | G103: 0 | I103: 0 | J103: 0 | K103: 0
B104: Please Select … | D104: Please Select… | E104: 0 | F104: 0 | G104: =E104-F104 -> 0 | I104: 0 | J104: 0 | K104: =I104-J104 -> 0
B105: Please Select … | D105: Please Select… | E105: 0 | F105: 0 | G105: 0 | I105: 0 | J105: 0 | K105: 0
B106: Please Select … | D106: Please Select… | E106: 0 | F106: 0 | G106: 0 | I106: 0 | J106: 0 | K106: 0
B107: Please Select … | D107: Please Select… | E107: 0 | F107: 0 | G107: 0 | I107: 0 | J107: 0 | K107: 0
B108: Please Select … | D108: Please Select… | E108: 0 | F108: 0 | G108: 0 | I108: 0 | J108: 0 | K108: 0
B109: Please Select … | D109: Please Select… | E109: 0 | F109: 0 | G109: 0 | I109: 0 | J109: 0 | K109: 0
B110: Please Select … | D110: Please Select… | E110: 0 | F110: 0 | G110: 0 | I110: 0 | J110: 0 | K110: 0
B111: Please Select … | D111: Please Select… | E111: 0 | F111: 0 | G111: =E111-F111 -> 0 | I111: 0 | J111: 0 | K111: =I111-J111 -> 0
B112: Please Select … | D112: Please Select… | E112: 0 | F112: 0 | G112: 0 | I112: 0 | J112: 0 | K112: 0
B113: Please Select … | D113: Please Select… | E113: 0 | F113: 0 | G113: 0 | I113: 0 | J113: 0 | K113: 0
B114: Please Select … | D114: Please Select… | E114: 0 | F114: 0 | G114: =E114-F114 -> 0 | I114: 0 | J114: 0 | K114: =I114-J114 -> 0
B115: Please Select … | D115: Please Select… | E115: 0 | F115: 0 | G115: 0 | I115: 0 | J115: 0 | K115: 0
B116: Please Select … | D116: Please Select… | E116: 0 | F116: 0 | G116: 0 | I116: 0 | J116: 0 | K116: 0
B117: Please Select … | D117: Please Select… | E117: 0 | F117: 0 | G117: =E117-F117 -> 0 | I117: 0 | J117: 0 | K117: =I117-J117 -> 0
B118: Please Select … | D118: Please Select… | E118: 0 | F118: 0 | G118: 0 | I118: 0 | J118: 0 | K118: 0
B119: Please Select … | D119: Please Select… | E119: 0 | F119: 0 | G119: 0 | I119: 0 | J119: 0 | K119: 0
B120: Please Select … | D120: Please Select… | E120: 0 | F120: 0 | G120: 0 | I120: 0 | J120: 0 | K120: 0
D121: TOTAL | E121: =SUM(E98:E120) -> 4588561.693 | F121: =SUM(F98:F120) -> 1474057.507 | G121: =SUM(G98:G120) -> 3114504.187 | I121: =SUM(I98:I120) -> 8858606.882 | J121: =SUM(J98:J120) -> 4726492.167 | K121: =SUM(K98:K120) -> 4132114.716
A126: * The sum of all three breakdowns should be equal (A- Budget Line-item, B- Program Activity, C- Implementing Entity).
A127: ** For the purposes of this report, the SDA Program management and administration should be included in the Supportive Environment Macro Category.
A129: D- ADDITIONAL INFORMATION
A130: Please disclose any relevant information concerning the information in the above tables. Refer to the Guidelines for Completing the Template if required.
A137: E- DISBURSEMENTS BREAKDOWN BY IMPLEMENTING ENTITY | E137: Cumulative Reporting Period
A138: # | B138: Name | C138: Type of Implementing Entity | D138: Cumulative Disbursements | E138: Comments
A139: 1 | B139: National Center for Tuberculosis and Lung Diseases | C139: Other Government | D139: 576674.7273 | E139: The actual disbursements paid to SR covers period April 2014-November 2015 and advance payment carried forward to year 2016. Diff-ce between disbursed amount by PR and EFR expenditure spent by SR amounts EUR 17,984.42 is cash balance at SR level per Bank Statement
C140: Please Select… | D140: 0
C141: Please Select… | D141: 0
C142: Please Select… | D142: 0
C143: Please Select… | D143: 0
C144: Please Select… | D144: 0
C145: Please Select… | D145: 0
C146: Please Select… | D146: 0
C147: Please Select… | D147: 0
C148: Please Select… | D148: 0
C149: Please Select… | D149: 0
C150: Please Select… | D150: 0
C151: Please Select… | D151: 0
C152: Please Select… | D152: 0
C153: Please Select… | D153: 0
C154: Please Select… | D154: 0
C155: Please Select… | D155: 0
C156: TOTAL | D156: =SUM(D139:D155) -> 576674.7273

Sheet LFA EFR_7B
A1: Ongoing Progress Update and Disbursement Request
A2: Section 7B: LFA - Enhanced Financial Reporting
A4: Country | C4: =CoverSheet!D5 -> Georgia | F4: PLEASE REFER TO THE "GUIDANCE FOR COMPLETION OF THE ENHANCED FINANCIAL REPORTING TEMPLATE" DOCUMENT TO ASSIST YOU IN COMPLETING THE TEMPLATE
A5: Grant No. | C5: =CoverSheet!D7 -> GEO-T-NCDC
A6: PR | C6: =CoverSheet!D8 -> NCDC | F6: TO BE COMPLETED ONLY ONCE A YEAR EXCEPT AT MONTH 18 FOR PURPOSES OF PHASE 2 REVIEW
A7: Currency | C7: =CoverSheet!D11 -> EUR
A8: Disease(Component) | C8: =CoverSheet!D6 -> Tuberculosis | G8: dd-mm-yyyy | K8: dd-mm-yyyy
E9: Current Reporting Period | F9: Start Date: | I9: Cumulative Reporting Period | J9: Start Date:
F10: End Date: | J10: End Date:
H11: The end date for the current reporting period and cumulative reporting period must be the same
C12: =CONCATENATE("EFR",SUBSTITUTE(SUBSTITUTE(C8,"/","")," ","")) -> EFRTuberculosis
C13: =CONCATENATE("SDA",SUBSTITUTE(SUBSTITUTE(C8,"/","")," ","")) -> SDATuberculosis | E13: The "TOTAL" rows in Table A, B and C will have a RED background if the amounts in each table do not agree. If the Totals for each Table agrees, these rows will have a YELLOW background.
A16: A- BREAKDOWN* BY EXPENDITURE CATEGORY | E16: Current Reporting Period | I16: Cumulative Reporting Period | P16: =IF('[3]PR_Programmatic Progress_1A'!R15="Select","Please select currency on Page 'PR_Programmatic Achievement (1)'", "All amounts are in: "&'[3]PR_Programmatic Progress_1A'!R15) -> All amounts are in: | R16: Budget for Reporting Period | S16: Actual Cash Outflow for Reporting Period | T16: Variance | U16: Reason for Variance | W16: Cumulative Budget through period of Progress Update | X16: Cumulative Actual Cash Outflow through period of Progress Update | Y16: Variance | Z16: Reason for Variance
A17: # | B17: Category | E17: Budget | F17: Expenditures | G17: Variance | H17: Reason for Variance | I17: Cumulative Budget | J17: Cumulative Expenditure | K17: Variance | L17: Reason for Variance | P17: 1. Total PR cash outflow vs. budget | R17: =R18+R19 -> 0 | S17: =S18+S19 -> 0 | T17: =IF(R17="",IF(S17="","",R17-S17),R17-S17) -> 0 | W17: =W18+W19 -> 0 | X17: =X18+X19 -> 0 | Y17: =IF(W17="",IF(X17="","",W17-X17),W17-X17) -> 0
A18: 1 | B18: Human Resources | E18: 0 | F18: 0 | G18: =E18-F18 -> 0 | I18: 0 | J18: 0 | K18: =I18-J18 -> 0 | P18: 1a. PR's total expenditures | R18: ='[3]PR_Total PR Cash Outflow_3A'!C13 -> 0 | S18: ='[3]PR_Total PR Cash Outflow_3A'!D13 -> 0 | T18: =IF(R18="",IF(S18="",0,R18-S18),R18-S18) -> 0 | W18: ='[3]PR_Total PR Cash Outflow_3A'!H13 -> 0 | X18: ='[3]PR_Total PR Cash Outflow_3A'!I13 -> 0 | Y18: =IF(W18="",IF(X18="",0,W18-X18),W18-X18) -> 0
A19: 2 | B19: Technical Assistance | E19: 0 | F19: 0 | G19: =E19-F19 -> 0 | I19: 0 | J19: 0 | K19: =I19-J19 -> 0 | P19: 1b. Disbursements to sub-recipients | R19: ='[3]PR_Total PR Cash Outflow_3A'!C14 -> 0 | S19: ='[3]PR_Total PR Cash Outflow_3A'!D14 -> 0 | T19: =IF(R19="",IF(S19="",0,R19-S19),R19-S19) -> 0 | W19: ='[3]PR_Total PR Cash Outflow_3A'!H14 -> 0 | X19: ='[3]PR_Total PR Cash Outflow_3A'!I14 -> 0 | Y19: =IF(W19="",IF(X19="",0,W19-X19),W19-X19) -> 0
A20: 3 | B20: Training | E20: 0 | F20: 0 | G20: 0 | I20: 0 | J20: 0 | K20: 0
A21: 4 | B21: Health Products and Health Equipment | E21: 0 | F21: 0 | G21: 0 | I21: 0 | J21: 0 | K21: 0 | R21: Budget for Reporting Period* | S21: Actual Cash Outflow for Reporting Period | T21: Variance | U21: Reason for Variance | W21: Cumulative Budget through period of Progress Update | X21: Cumulative Actual Cash Outflow through period of Progress Update | Y21: Variance | Z21: Reason for Variance
A22: 5 | B22: Medicines and Pharmaceutical Products | E22: 0 | F22: 0 | G22: 0 | I22: 0 | J22: 0 | K22: 0 | P22: 2. Total pharmaceutical & health product expenditures vs. budget | R22: =R23+R24 -> 0 | S22: =S23+S24 -> 0 | T22: =IF(R22="",IF(S22="","",R22-S22),R22-S22) -> 0 | W22: =W23+W24 -> 0 | X22: =X23+X24 -> 0 | Y22: =IF(W22="",IF(X22="","",W22-X22),W22-X22) -> 0
A23: 6 | B23: Procurement and Supply Management Costs | E23: 0 | F23: 0 | G23: 0 | I23: 0 | J23: 0 | K23: 0 | P23: 2a. Medicines and pharmaceutical products | R23: ='[3]PR_Total PR Cash Outflow_3A'!C18 -> 0 | S23: ='[3]PR_Total PR Cash Outflow_3A'!D18 -> 0 | T23: =IF(R23="",IF(S23="",0,R23-S23),R23-S23) -> 0 | W23: ='[3]PR_Total PR Cash Outflow_3A'!H18 -> 0 | X23: ='[3]PR_Total PR Cash Outflow_3A'!I18 -> 0 | Y23: =IF(W23="",IF(X23="",0,W23-X23),W23-X23) -> 0
A24: 7 | B24: Infrastructure and Other Equipment | E24: 0 | F24: 0 | G24: 0 | I24: 0 | J24: 0 | K24: 0 | P24: 2b. Health products and health equipment | R24: ='[3]PR_Total PR Cash Outflow_3A'!C19 -> 0 | S24: ='[3]PR_Total PR Cash Outflow_3A'!D19 -> 0 | T24: =IF(R24="",IF(S24="",0,R24-S24),R24-S24) -> 0 | W24: ='[3]PR_Total PR Cash Outflow_3A'!H19 -> 0 | X24: ='[3]PR_Total PR Cash Outflow_3A'!I19 -> 0 | Y24: =IF(W24="",IF(X24="",0,W24-X24),W24-X24) -> 0
A25: 8 | B25: Communication Materials | E25: 0 | F25: 0 | G25: 0 | I25: 0 | J25: 0 | K25: 0
A26: 9 | B26: Monitoring & Evaluation | E26: 0 | F26: 0 | G26: 0 | I26: 0 | J26: 0 | K26: 0
A27: 10 | B27: Living Support to Clients/Target Populations | E27: 0 | F27: 0 | G27: 0 | I27: 0 | J27: 0 | K27: 0
A28: 11 | B28: Planning and Administration | E28: 0 | F28: 0 | G28: 0 | I28: 0 | J28: 0 | K28: 0
A29: 12 | B29: Overheads | E29: 0 | F29: 0 | G29: 0 | I29: 0 | J29: 0 | K29: 0
A30: 13 | B30: Other | E30: 0 | F30: 0 | G30: 0 | I30: 0 | J30: 0 | K30: 0
D31: TOTAL | E31: =SUM(E18:E30) -> 0 | F31: =SUM(F18:F30) -> 0 | G31: =SUM(G18:G30) -> 0 | I31: =SUM(I18:I30) -> 0 | J31: =SUM(J18:J30) -> 0 | K31: 0
A34: B- BREAKDOWN* BY PROGRAM ACTIVITY | E34: Current Reporting Period | I34: Cumulative Reporting Period
A35: # | B35: Macro-category | C35: Objectives | D35: Service Delivery Area | E35: Budget | F35: Expenditures | G35: Variance | H35: Reason for Variance | I35: Cumulative Budget | J35: Cumulative Expenditure | K35: Variance | L35: Reason for Variance
B36: Please Select… | D36: please select… | E36: 0 | F36: 0 | G36: =E36-F36 -> 0 | I36: 0 | J36: 0 | K36: =I36-J36 -> 0
B37: Please Select… | D37: please select… | E37: 0 | F37: 0 | G37: =E37-F37 -> 0 | I37: 0 | J37: 0 | K37: =I37-J37 -> 0
B38: Please Select… | D38: please select… | E38: 0 | F38: 0 | G38: 0 | I38: 0 | J38: 0 | K38: 0
B39: Please Select… | D39: please select… | E39: 0 | F39: 0 | G39: 0 | I39: 0 | J39: 0 | K39: 0
B40: Please Select… | D40: please select… | E40: 0 | F40: 0 | G40: 0 | I40: 0 | J40: 0 | K40: 0
B41: Please Select… | D41: please select… | E41: 0 | F41: 0 | G41: 0 | I41: 0 | J41: 0 | K41: 0
B42: Please Select… | D42: please select… | E42: 0 | F42: 0 | G42: 0 | I42: 0 | J42: 0 | K42: 0
B43: Please Select… | D43: please select… | E43: 0 | F43: 0 | G43: 0 | I43: 0 | J43: 0 | K43: 0
B44: Please Select… | D44: please select… | E44: 0 | F44: 0 | G44: 0 | I44: 0 | J44: 0 | K44: 0
B45: Please Select… | D45: please select… | E45: 0 | F45: 0 | G45: 0 | I45: 0 | J45: 0 | K45: 0
B46: Please Select… | D46: please select… | E46: 0 | F46: 0 | G46: 0 | I46: 0 | J46: 0 | K46: 0
B47: Please Select… | D47: please select… | E47: 0 | F47: 0 | G47: 0 | I47: 0 | J47: 0 | K47: 0
B48: Please Select… | D48: please select… | E48: 0 | F48: 0 | G48: 0 | I48: 0 | J48: 0 | K48: 0
B49: Please Select… | D49: please select… | E49: 0 | F49: 0 | G49: 0 | I49: 0 | J49: 0 | K49: 0
B50: Please Select… | D50: please select… | E50: 0 | F50: 0 | G50: 0 | I50: 0 | J50: 0 | K50: 0
B51: Please Select… | D51: please select… | E51: 0 | F51: 0 | G51: =E51-F51 -> 0 | I51: 0 | J51: 0 | K51: =I51-J51 -> 0
B52: Please Select… | D52: please select… | E52: 0 | F52: 0 | G52: 0 | I52: 0 | J52: 0 | K52: 0
B53: Please Select… | D53: please select… | E53: 0 | F53: 0 | G53: 0 | I53: 0 | J53: 0 | K53: 0
B54: Please Select… | D54: please select… | E54: 0 | F54: 0 | G54: 0 | I54: 0 | J54: 0 | K54: 0
B55: Please Select… | D55: please select… | E55: 0 | F55: 0 | G55: 0 | I55: 0 | J55: 0 | K55: 0
B56: Please Select… | D56: please select… | E56: 0 | F56: 0 | G56: 0 | I56: 0 | J56: 0 | K56: 0
B57: Please Select… | D57: please select… | E57: 0 | F57: 0 | G57: 0 | I57: 0 | J57: 0 | K57: 0
B58: Please Select… | D58: please select… | E58: 0 | F58: 0 | G58: 0 | I58: 0 | J58: 0 | K58: 0
B59: Please Select… | D59: please select… | E59: 0 | F59: 0 | G59: 0 | I59: 0 | J59: 0 | K59: 0
B60: Please Select… | D60: please select… | E60: 0 | F60: 0 | G60: 0 | I60: 0 | J60: 0 | K60: 0
B61: Please Select… | D61: please select… | E61: 0 | F61: 0 | G61: 0 | I61: 0 | J61: 0 | K61: 0
B62: Please Select… | D62: please select… | E62: 0 | F62: 0 | G62: 0 | I62: 0 | J62: 0 | K62: 0
B63: Please Select… | D63: please select… | E63: 0 | F63: 0 | G63: =E63-F63 -> 0 | I63: 0 | J63: 0 | K63: =I63-J63 -> 0
B64: Please Select… | D64: please select… | E64: 0 | F64: 0 | G64: 0 | I64: 0 | J64: 0 | K64: 0
B65: Please Select… | D65: please select… | E65: 0 | F65: 0 | G65: 0 | I65: 0 | J65: 0 | K65: 0
B66: Please Select… | D66: please select… | E66: 0 | F66: 0 | G66: 0 | I66: 0 | J66: 0 | K66: 0
B67: Please Select… | D67: please select… | E67: 0 | F67: 0 | G67: 0 | I67: 0 | J67: 0 | K67: 0
B68: Please Select… | D68: please select… | E68: 0 | F68: 0 | G68: 0 | I68: 0 | J68: 0 | K68: 0
B69: Please Select… | D69: please select… | E69: 0 | F69: 0 | G69: 0 | I69: 0 | J69: 0 | K69: 0
B70: Please Select… | D70: please select… | E70: 0 | F70: 0 | G70: 0 | I70: 0 | J70: 0 | K70: 0
B71: Please Select… | D71: please select… | E71: 0 | F71: 0 | G71: 0 | I71: 0 | J71: 0 | K71: 0
B72: Please Select… | D72: please select… | E72: 0 | F72: 0 | G72: 0 | I72: 0 | J72: 0 | K72: 0
B73: Please Select… | D73: please select… | E73: 0 | F73: 0 | G73: 0 | I73: 0 | J73: 0 | K73: 0
B74: Please Select… | D74: please select… | E74: 0 | F74: 0 | G74: 0 | I74: 0 | J74: 0 | K74: 0
B75: Please Select… | D75: please select… | E75: 0 | F75: 0 | G75: 0 | I75: 0 | J75: 0 | K75: 0
B76: Please Select… | D76: please select… | E76: 0 | F76: 0 | G76: 0 | I76: 0 | J76: 0 | K76: 0
B77: Please Select… | D77: please select… | E77: 0 | F77: 0 | G77: =E77-F77 -> 0 | I77: 0 | J77: 0 | K77: =I77-J77 -> 0
B78: Please Select… | D78: please select… | E78: 0 | F78: 0 | G78: 0 | I78: 0 | J78: 0 | K78: 0
B79: Please Select… | D79: please select… | E79: 0 | F79: 0 | G79: 0 | I79: 0 | J79: 0 | K79: 0
B80: Please Select… | D80: please select… | E80: 0 | F80: 0 | G80: 0 | I80: 0 | J80: 0 | K80: 0
B81: Please Select… | D81: please select… | E81: 0 | F81: 0 | G81: 0 | I81: 0 | J81: 0 | K81: 0
B82: Please Select… | D82: please select… | E82: 0 | F82: 0 | G82: 0 | I82: 0 | J82: 0 | K82: 0
B83: Please Select… | D83: please select… | E83: 0 | F83: 0 | G83: 0 | I83: 0 | J83: 0 | K83: 0
B84: Please Select… | D84: please select… | E84: 0 | F84: 0 | G84: =E84-F84 -> 0 | I84: 0 | J84: 0 | K84: =I84-J84 -> 0
B85: Please Select… | D85: please select… | E85: 0 | F85: 0 | G85: 0 | I85: 0 | J85: 0 | K85: 0
B86: Please Select… | D86: please select… | E86: 0 | F86: 0 | G86: 0 | I86: 0 | J86: 0 | K86: 0
B87: Please Select… | D87: please select… | E87: 0 | F87: 0 | G87: =E87-F87 -> 0 | I87: 0 | J87: 0 | K87: =I87-J87 -> 0
B88: Please Select… | D88: please select… | E88: 0 | F88: 0 | G88: 0 | I88: 0 | J88: 0 | K88: 0
B89: Please Select… | D89: please select… | E89: 0 | F89: 0 | G89: 0 | I89: 0 | J89: 0 | K89: 0
B90: Please Select… | D90: please select… | E90: 0 | F90: 0 | G90: 0 | I90: 0 | J90: 0 | K90: 0
A91: TOTAL | E91: =SUM(E36:E90) -> 0 | F91: =SUM(F36:F90) -> 0 | G91: 0 | I91: =SUM(I36:I90) -> 0 | J91: =SUM(J36:J90) -> 0 | K91: =SUM(K36:K90) -> 0
A96: C- BREAKDOWN* BY IMPLEMENTING ENTITY | E96: Current Reporting Period | I96: Cumulative Reporting Period
A97: # | B97: PR/SR | C97: Name | D97: Type of Implementing Entity | E97: Budget | F97: Expenditures | G97: Variance | H97: Reason for Variance | I97: Cumulative Budget | J97: Cumulative Expenditure | K97: Variance | L97: Reason for Variance
B98: Please Select … | D98: Please Select… | E98: 0 | F98: 0 | G98: =E98-F98 -> 0 | I98: 0 | J98: 0 | K98: =I98-J98 -> 0
B99: Please Select … | D99: Please Select… | E99: 0 | F99: 0 | G99: =E99-F99 -> 0 | I99: 0 | J99: 0 | K99: =I99-J99 -> 0
B100: Please Select … | D100: Please Select… | E100: 0 | F100: 0 | G100: 0 | I100: 0 | J100: 0 | K100: 0
B101: Please Select … | D101: Please Select… | E101: 0 | F101: 0 | G101: 0 | I101: 0 | J101: 0 | K101: 0
B102: Please Select … | D102: Please Select… | E102: 0 | F102: 0 | G102: =E102-F102 -> 0 | I102: 0 | J102: 0 | K102: =I102-J102 -> 0
B103: Please Select … | D103: Please Select… | E103: 0 | F103: 0 | G103: 0 | I103: 0 | J103: 0 | K103: 0
B104: Please Select … | D104: Please Select… | E104: 0 | F104: 0 | G104: 0 | I104: 0 | J104: 0 | K104: 0
B105: Please Select … | D105: Please Select… | E105: 0 | F105: 0 | G105: 0 | I105: 0 | J105: 0 | K105: 0
B106: Please Select … | D106: Please Select… | E106: 0 | F106: 0 | G106: 0 | I106: 0 | J106: 0 | K106: 0
B107: Please Select … | D107: Please Select… | E107: 0 | F107: 0 | G107: =E107-F107 -> 0 | I107: 0 | J107: 0 | K107: =I107-J107 -> 0
B108: Please Select … | D108: Please Select… | E108: 0 | F108: 0 | G108: 0 | I108: 0 | J108: 0 | K108: 0
B109: Please Select … | D109: Please Select… | E109: 0 | F109: 0 | G109: 0 | I109: 0 | J109: 0 | K109: 0
B110: Please Select … | D110: Please Select… | E110: 0 | F110: 0 | G110: 0 | I110: 0 | J110: 0 | K110: 0
B111: Please Select … | D111: Please Select… | E111: 0 | F111: 0 | G111: =E111-F111 -> 0 | I111: 0 | J111: 0 | K111: =I111-J111 -> 0
B112: Please Select … | D112: Please Select… | E112: 0 | F112: 0 | G112: 0 | I112: 0 | J112: 0 | K112: 0
B113: Please Select … | D113: Please Select… | E113: 0 | F113: 0 | G113: 0 | I113: 0 | J113: 0 | K113: 0
B114: Please Select … | D114: Please Select… | E114: 0 | F114: 0 | G114: 0 | I114: 0 | J114: 0 | K114: 0
B115: Please Select … | D115: Please Select… | E115: 0 | F115: 0 | G115: 0 | I115: 0 | J115: 0 | K115: 0
B116: Please Select … | D116: Please Select… | E116: 0 | F116: 0 | G116: 0 | I116: 0 | J116: 0 | K116: 0
B117: Please Select … | D117: Please Select… | E117: 0 | F117: 0 | G117: 0 | I117: 0 | J117: 0 | K117: 0
B118: Please Select … | D118: Please Select… | E118: 0 | F118: 0 | G118: 0 | I118: 0 | J118: 0 | K118: 0
B119: Please Select … | D119: Please Select… | E119: 0 | F119: 0 | G119: 0 | I119: 0 | J119: 0 | K119: 0
B120: Please Select … | D120: Please Select… | E120: 0 | F120: 0 | G120: 0 | I120: 0 | J120: 0 | K120: 0
D121: TOTAL | E121: =SUM(E98:E120) -> 0 | F121: =SUM(F98:F120) -> 0 | G121: 0 | I121: =SUM(I98:I120) -> 0 | J121: =SUM(J98:J120) -> 0 | K121: 0
A126: * The sum of all three breakdowns should be equal (A- Budget Line-item, B- Program Activity, C- Implementing Entity).
A127: ** For the purposes of this report, the SDA Program management and administration should be included in the Supportive Environment Macro Category.
A129: D- ADDITIONAL INFORMATION
A130: Please disclose any relevant information concerning the information in the above tables. Refer to the Guidelines for Completing the Template if required.
A137: E- DISBURSEMENTS BREAKDOWN BY IMPLEMENTING ENTITY | E137: Cumulative Reporting Period
A138: # | B138: Name | C138: Type of Implementing Entity | D138: Cumulative Disbursements | E138: Comments
C139: Please Select… | D139: 0
C140: Please Select… | D140: 0
C141: Please Select… | D141: 0
C142: Please Select… | D142: 0
C143: Please Select… | D143: 0
C144: Please Select… | D144: 0
C145: Please Select… | D145: 0
C146: Please Select… | D146: 0
C147: Please Select… | D147: 0
C148: Please Select… | D148: 0
C149: Please Select… | D149: 0
C150: Please Select… | D150: 0
C151: Please Select… | D151: 0
C152: Please Select… | D152: 0
C153: Please Select… | D153: 0
C154: Please Select… | D154: 0
C155: Please Select… | D155: 0
C156: TOTAL | D156: =SUM(D139:D155) -> 0

Sheet Annual Cash Forecast_8A
A1: Ongoing Progress Update and Disbursement Request
A3: Section 8A: The Global Fund Annual Forecast Template
A4: =#REF! ->  | B4: =+#REF! -> 
A5: =#REF! ->  | B5: =+#REF! -> 
A6: =#REF! ->  | B6: =+#REF! -> 
A7: =#REF! ->  | B7: =+#REF! -> 
A8: =#REF! ->  | B8: =+#REF! -> 
A9: =#REF! ->  | B9: =+#REF! -> 
A10: =#REF! ->  | B10: =+#REF! -> 
A11: =#REF! ->  | B11: =+#REF! -> 
A13: Reporting Cycle | B13: From | C13: To
A14: Current reporting period | B14: 2015-01-01 | C14: 2015-12-31
A15: Cumulative Reporting period | B15: 2015-01-01 | C15: 2015-12-31
A20: Summary Breakdown by Cost Grouping
A22: Costing Dimension (Cost Grouping) | B22: Budget for Forecast Period | C22: Unspent from previous periods | D22: Budget for the Buffer Period | E22: Total Budget available (including the buffer) | F22: Adjustment for the Forecast Period (based on implementable activities) | G22: Adjustment for the Buffer Period | H22: Total Principal Recipient Forecast (including Buffer) | I22: Comments | K22: Local Fund Agent Adjustment on PR Budget | L22: Local Fund Agent Adjustment on Budget for the Buffer Period | M22: Local Fund Agent Adjustment on the Forecast | N22: Local Fund Agent Adjustment on the Buffer Forecast | O22: Local Fund Agent - Adjusted Forecast (including the buffer) | P22: Comments
A23: Human Resources (HR) | B23: 135454.1401 | C23: ='PR EFR_7A'!K18 -> 86572.96989 | D23: 0 | E23: =B23+C23+D23 -> 222027.11 | F23: 39048.22025 | G23: 0 | H23: =E23+F23+G23 -> 261075.3302 | I23: Project Management costs attributed to HIV Grant will be covered from TB Budget during the HIV Grant Extension period | O23: =K23+L23+H23+M23+N23 -> 261075.3302
A24: Technical Assistance | B24: 13420 | C24: ='PR EFR_7A'!K19 -> 104218.672 | D24: 0 | E24: =B24+C24+D24 -> 117638.672 | F24: 181447.7405 | G24: 0 | H24: =E24+F24+G24 -> 299086.4125 | I24: Project Management costs attributed to HIV Grant will be covered from TB Budget during the HIV Grant Extension period; New activities added (transition plan) | O24: =K24+L24+H24+M24+N24 -> 299086.4125
A25: Training | B25: 3000 | C25: ='PR EFR_7A'!K20 -> 10893.25712 | D25: 0 | E25: 13893.25712 | F25: 50036.88159 | G25: 0 | H25: 63930.13871 | I25: Project Management costs attributed to HIV Grant will be covered from TB Budget during the HIV Grant Extension period; New activities added (TB support; TB education) | O25: 63930.13871
A26: Health Products and Health Equipment | B26: 447048.8931 | C26: ='PR EFR_7A'!K21 -> 581549.7255 | D26: 0 | E26: 1028598.619 | F26: -210055.8582 | G26: 0 | H26: 818542.7604 | O26: 818542.7604
A27: Medicines and Pharmaceutical Products | B27: 1151470.353 | C27: ='PR EFR_7A'!K22 -> 2099149.527 | D27: 0 | E27: 3250619.88 | F27: -2606700.756 | G27: 0 | H27: 643919.1235 | I27: Savings coming from the procurement of SLDs will be spent during the next 6 months for the interventions approved by TGF through the respective Notes for the Records and Funds Reallocation Requests. | O27: 643919.1235
A28: Procurement and Supply Management Costs | B28: 126085.1481 | C28: ='PR EFR_7A'!K23 -> 225713.6636 | D28: 0 | E28: 351798.8117 | F28: -343810.9406 | G28: 0 | H28: 7987.871145 | O28: 7987.871145
A29: Infrastructure and Other Equipment | B29: 7864.182907 | C29: ='PR EFR_7A'!K24 -> 39025.3431 | D29: 0 | E29: 46889.52601 | F29: -31526.49304 | G29: 0 | H29: 15363.03297 | O29: 15363.03297
A30: Communication Materials | B30: 0 | C30: ='PR EFR_7A'!K25 -> 0 | D30: 0 | E30: 0 | F30: 0 | G30: 0 | H30: 0 | O30: 0
A31: Monitoring & Evaluation | B31: 43629.71169 | C31: ='PR EFR_7A'!K26 -> 70462.27076 | D31: 0 | E31: 114091.9824 | F31: -66519.66261 | G31: 0 | H31: 47572.31983 | O31: 47572.31983
A32: Living Support to Clients/Target Populations | B32: 338856.12 | C32: ='PR EFR_7A'!K27 -> 878234.6009 | D32: 0 | E32: 1217090.721 | F32: -966404.3886 | G32: 0 | H32: 250686.3322 | O32: 250686.3322
A33: Planning and Administration | B33: 53317.40384 | C33: ='PR EFR_7A'!K28 -> 26635.13435 | D33: 0 | E33: 79952.53818 | F33: 30234.03091 | G33: 0 | H33: 110186.5691 | I33: Project Management costs attributed to HIV Grant will be covered from TB Budget during the HIV Grant Extension period | O33: 110186.5691
A34: Overheads | B34: 4239.084208 | C34: ='PR EFR_7A'!K29 -> 9659.556489 | D34: 0 | E34: 13898.6407 | F34: -6587.282109 | G34: 0 | H34: 7311.358588 | O34: 7311.358588
A35: Other | B35: 0 | C35: ='PR EFR_7A'!K30 -> -0.003101107058 | D35: 0 | E35: -0.003101107058 | F35: -23681.55232 | G35: 0 | H35: -23681.55542 | O35: -23681.55542
A36: Grand Total | B36: =SUM(B23:B35) -> 2324385.037 | C36: =SUM(C23:C35) -> 4132114.717 | D36: =SUM(D23:D35) -> 0 | E36: =SUM(E23:E35) -> 6456499.754 | F36: =SUM(F23:F35) -> -3954520.061 | G36: 0 | H36: 2501979.694 | K36: =SUM(K23:K35) -> 0 | L36: =SUM(L23:L35) -> 0 | M36: 0 | N36: 0 | O36: 2501979.694

Sheet Request and Recommendation_8B
A1: Ongoing Progress Review and Disbursement Request
A2: DISBURSEMENT REQUEST PERIOD
A3: Grant Name: | F3: =#REF! -> 
A4: Disbursement Request - Disbursement Period: | F4: Cycle: | H4: =IF(#REF!="Select","",#REF!) ->  | I4: Number: | J4: =IF(#REF!="Select","",#REF!) -> 
A5: Disbursement Request - Period Covered: | F5: Beginning Date: | H5: =IF(#REF!="Select","",#REF!) ->  | I5: End Date: | J5: =IF(#REF!="Select","",#REF!) -> 
A6: Disbursement Request - Number: | F6: =IF(#REF!=""," ",#REF!) -> 
A7: Currency: | F7: =IF(#REF!=""," ",#REF!) -> 
A9: Section 8B. Disbursement Request and Recommendation
A11: Total forecasted net cash expenditures by the Principal Recipient for the period immediately following the period covered by the Progress Update:
A13: 1. Period beginning date: | F13: =IF(CoverSheet!J11="","",CoverSheet!J11) -> 2016-01-01 | H13: end date: | I13: =IF(CoverSheet!L11="","",CoverSheet!L11) -> 2016-06-30 | K13: Approved budget amount (PR): | M13: ='Annual Cash Forecast_8A'!B36 -> 2324385.037 | O13: Forecasted amount (PR) | P13: ='Annual Cash Forecast_8A'!B36+'Annual Cash Forecast_8A'!C36+'Annual Cash Forecast_8A'!F36 -> 2501979.694
K15: LFA-verified approved budget amount: | M15: ='Annual Cash Forecast_8A'!B36+'Annual Cash Forecast_8A'!K36 -> 2324385.037 | O15: LFA-adjusted forecasted amount: | P15: =P13+'Annual Cash Forecast_8A'!M36 -> 2501979.694
A16: 2a. Cash buffer period (by default)
A17: (cash "buffer") beginning date: | F17: =IF(I13="","",I13+1) -> 2016-07-01 | H17: end date: | I17: =IF(F17="","",DATE(YEAR(F17),MONTH(F17)+3,DAY(F17)-1)) -> 2016-09-30 | K17: Approved budget amount (PR): | M17: ='Annual Cash Forecast_8A'!D36 -> 0 | O17: Forecasted amount (PR): | P17: ='Annual Cash Forecast_8A'!D36+'Annual Cash Forecast_8A'!G36 -> 0
K19: LFA-verified approved budget amount: | M19: ='Annual Cash Forecast_8A'!D36+'Annual Cash Forecast_8A'!L36 -> 0 | O19: LFA-adjusted forecasted amount: | P19: =P17+'Annual Cash Forecast_8A'!N36 -> 0 | R19: PR Total Forecast
A20: 2b. Additional "buffer" (discretionary, select only if there is a prior agreement with the FPM) (1) | R20: =P13+P17+P24 -> 2501979.694
B21: Cash "buffer" agreed with FPM (2) | F21: Select | R21: LFA Total Forecast
R22: =P15+P19+P26 -> 2501979.694
A24: (cash "buffer") beginning date | F24: =IF(I17="","",I17+1) -> 2016-10-01 | H24: end date: | I24: =IF(F21="","",IF(F21="1M",DATE(YEAR(I17),MONTH(I17)+1,DAY(I17)-1),IF(F21="2M",DATE(YEAR(I17),MONTH(I17)+2,DAY(I17)-1),IF(F21="3M",DATE(YEAR(I17),MONTH(I17)+3,DAY(I17)-1),"")))) ->  | K24: Approved budget amount: | M24: 0 | O24: Forecasted amount: | P24: 0
K26: LFA-verified approved budget amount: | O26: LFA-adjusted forecasted amount:
A28: (1) Upon agreement with the FPM, additional Cash buffer can be requested if the PU/DR report contains a completed AFR or EFR report or if there is a request from the Secretariat for the PR to complete the report on SR Cash Reconciliation contained in the “SR Cash Reconciliation 2D”, or if there are any additional Global Fund-specific requirements that cannot be delivered within 60 days. However such requests may or may not be satisfied based on the review of the current PU/DR.
A29: (2) When the additional (cash "buffer" ) period is 1 or 2 months, the approved budget and forecasted amounts should be calculated as prorated values for the period following the regular buffer period.
A31: PR's explanation of any significant variance between forecasted amounts and amounts as originally budgeted. Please explain any significant variance (based on your judgment) between the forecasted amounts and the amounts as per approved budgets. Please specify the main factors and related amounts that are the major drivers of the variance. NB. Consider the following items when providing the analysis. - Expected timing of payments for any significant budgetary items, - Impact of existing cash balance at SR levels - Current confirmed commitments to be paid during disbursement request period - Current/expected unit prices compared to those in the budget - Change in quantities compared to budget - Exchange rates and inflation - Linkage between budget absorption and programmatic performance to-date. ! The forecast should include any existing commitments (eligible under this grant) as of the end of the reporting period and which are likely to be paid during the disbursement period | H31: It has to be emphasized that although the budget absorption was less than planned 53,6 % (due to reasons justified below), the entire programme activities were performed accordingly. The major reasons for developing variance are as follows: local procurement with competitive bidding, with preceding market assessment in 2014-2015 period, derived cheaper unit costs compared to the budgeted. The latter resulted in the saving totaled at: 242,000 GEL PR supported re-calculation of the available stock of medicines and lab. supplies at SR level, considering the fact of close-out of Expand TB project. Besides final shipments from the said donor were received during 2014 – 2015. The exercise resulted in the development of the updated request coming from the SR (Annex 5 of the contract with SR). Based on the updated request, PR revised the procurement budget for laboratory supplies. In order to keep the procurements needs-based, PR supported SR in re-calculating average consumption rates for medicines and supplies. MDR scheme budget calculation was based on the 2012, 2013, 2014 TB cohort (75% of patients) data with 100% compliance to treatment. Budget amount for Sensitive patients was calculated for 1 year period covering 70% of all sensitive patients with 100% adherence (both installments). Actually patients enrolled in January - May, 2014 did not fit for being beneficiary of the scheme, as approved scheme was enrolling patients starting June 1. Actual average number of patients for both schemes per month was less than projected. Based on the above, and also the fact that 150 MDRs were covered through the state funding (225 MDRs from the year 2016), PR re-calculated 2015 -2016 budget for the scheme and latter resulted in saving of funds. Since year 2014, the significant devaluation of the Georgian national currency GEL took place (GEL's depreciation is 30 percent). This derived savings in the Grant currency. Savings from the current grant were aligned in the following directions: EUR 2,580,926 was added to the NFM budget, EUR 584,000 was moved to HIV NFM budget (Split); EUR 805,000 is anticipated for TB Extension Budget;
A33: LFA comments on PR's explanation of any significant variance between forecasted amounts and amounts as originally budgeted.
A37: Less: | B37: 3. Cash Balance: End of period covered by Progress Update (Item 5.1 in PRLFA Cash Reconciliation): | J37: PR-reported amounts | K37: PR Comments | L37: LFA-verified amounts | N37: LFA Comments
J38: ='PR Cash Reconciliation_2A,B,C'!D52 -> 484367.2863 | L38: ='PR Cash Reconciliation_2A,B,C'!H52 -> 484367.2863
B39: 4. Cash in Transit for the reporting period (Disbursements to PR & third party disbursements): | J39: ='PR Cash Reconciliation_2A,B,C'!D63 -> 0 | L39: ='PR Cash Reconciliation_2A,B,C'!H63 -> 0
B40: 5.Cash in Transit after the current reporting period (Disbursements to PR & third party disbursements) : | J40: ='PR Cash Reconciliation_2A,B,C'!D64 -> 2017612.9 | L40: ='PR Cash Reconciliation_2A,B,C'!H64 -> 2017612.9
J41: PR-requested amount | K41: PR Comments | L41: LFA-verified amounts | N41: LFA Comments
A42: 6. Disbursement Request to the Global Fund for the period immediately following the period covered by the Progress Update, plus additional period (cash buffer): | J42: =IF(R20=0,0,IF(R20-J38-J39-J40<0,0,R20-J38-J39-J40)) -> 0 | L42: =IF(R22=0,0,IF(R22-L38-L39-L40<0,0,R22-L38-L39-L40)) -> 0 | M42: =IF(T22=0,0,IF(T22-M38-M39-M40<0,0,T22-M38-M39-M40)) -> 0
A44: 7. Does the PR's Disbursement Request include funds for health product procurement? | J44: Yes
A45: 8. Exchange Rate (used to translate local currency into grant currency) | J45: Yes
F47: Rates used by the PR | H47: LFA-verified rates | J47: Name of local currency, date and source of the exchange rate, and other comments (if appropriate)
B49: - used to convert Opening Cash Balance | F49: 2.4992 | H49: 0 | J49: Exchange rate at the closing date of the previous reporting period (source: www.nbg.gov.ge)
B51: - used to convert Closing Cash Balance | F51: 2.6169 | H51: 0 | J51: Exchange rate at the closing date of the current reporting period (source: www.nbg.gov.ge)
B53: - used to convert Total PR Cash Outflow for the Progress Update Period | F53: - | H53: 0 | J53: Exchange rate at the date of transaction (source: www.nbg.gov.ge)
J56: LFA comments on the exchange rates used by the PR

Sheet PR Authorization_9A
A1: Ongoing Progress Review and Disbursement Request
A2: DISBURSEMENT REQUEST PERIOD
A3: Grant Name: | F3: =#REF! -> 
A4: Disbursement Request - Disbursement Period: | F4: Cycle: | H4: =IF(#REF!="Select","",#REF!) ->  | I4: Number: | J4: =IF(#REF!="Select","",#REF!) -> 
A5: Disbursement Request - Period Covered: | F5: Beginning Date: | H5: =IF(#REF!="Select","",#REF!) ->  | I5: End Date: | J5: =IF(#REF!="Select","",#REF!) -> 
A6: Disbursement Request - Number: | F6: =IF(#REF!=""," ",#REF!) -> 
A7: Currency: | F7: =IF(#REF!=""," ",#REF!) -> 
A8: Section 9A. PR Authorization
A9: The undersigned acknowledges that: (i) all the information (programmatic, financial, or otherwise) provided in this Progress Update and Disbursement Request is complete and accurate; (ii) funds disbursed in accordance with this request shall be deposited in the bank account specified in the Facesheet; and (iii) funds disbursed under the Grant Agreement shall be used in accordance with the Grant Agreement.
A11: Signed on behalf of the Principal Recipient: (signature of Authorized Designated Representative)
A12: Name: | F12: Irma Khonelidze
A13: Title: | F13: Program Director
A14: Date and Place: | F14: 16 March 2016 Tbilisi, Georgia

Sheet LFA Authorization_9B
A1: Ongoing Progress Review and Disbursement Request
A2: DISBURSEMENT REQUEST PERIOD
A3: Grant Name: | F3: =#REF! -> 
A4: Disbursement Request - Disbursement Period: | F4: Cycle: | H4: =IF(#REF!="Select","",#REF!) ->  | I4: Number: | J4: =IF(#REF!="Select","",#REF!) -> 
A5: Disbursement Request - Period Covered: | F5: Beginning Date: | H5: =IF(#REF!="Select","",#REF!) ->  | I5: End Date: | J5: =IF(#REF!="Select","",#REF!) -> 
A6: Disbursement Request - Number: | F6: =IF(#REF!=""," ",#REF!) -> 
A7: Currency: | F7: =IF(#REF!=""," ",#REF!) -> 
A8: For LFA Use Only
A9: Section 9B. LFA Authorization
A10: Summary of the LFA's approach used for verification of financial, programmatic and procurement data and Quality Assurance undertaken by the LFA
